Body Name,Date Paid,Transaction Number,Amount,Supplier Name,Supplier Type,Expense Area,Cost Centre Description,Expense Type
Cambridgeshire County Council,12-Jan-16,19481426-12651132,-40901,Mytime Active,Trade Supplier,PH,Gen prevention activities - Misc,Other Hired Contract Services
Cambridgeshire County Council,12-Jan-16,19234741-12651021,-28668,Zenith Canopy Structures Limited,Company,Passenger Transport,Park and Ride Admin,Building Maintenance - Non Structural Maintenance
Cambridgeshire County Council,21-Jan-16,19878479-12727359,-10523.04,Nhs Cambridgeshire & Peterborough Ccg 06h Receivables M059,Other Public Bodies,3 - Operations - Countywide Services,Countywide PD Service,SDS - Care and support Services
Cambridgeshire County Council,21-Jan-16,19880488-12723733,-9610.24,Congregation Of The Daughters Of The Cross Of Liege (St Elizabeths Centre),Charity,S&C,Placements - Education,Independent School Placements
Cambridgeshire County Council,12-Jan-16,19535350-12651016,-7428,Sanctuary Home Care Ltd,Care Establishment,2 - Commissioning - Older people Pool,Older People - City & South,Daycare
Cambridgeshire County Council,06-Jan-16,19535356-12606527,-7428,Sanctuary Care Limited,Care Establishment,2 - Commissioning - Older people Pool,Older People - City & South,Daycare
Cambridgeshire County Council,12-Jan-16,19345888-12650433,-5882,Peterborough Regional College,Education,S&C,16 -19 Business Delivery Team,Contribution to Partnerships
Cambridgeshire County Council,14-Jan-16,19827692-12663511,-5809.46,Redacted Personal Data,Individual,2 - Commissioning - Older people Pool,Older People - City & South,SDS - Personal Budgets Contributions
Cambridgeshire County Council,12-Jan-16,19756369-12650930,-3813.22,Glennfield Healthcare,Care Establishment,4 - Commissioning - Mental Health & Supporting People,Hunts Mental Health Team,Residential Independent Sector
Cambridgeshire County Council,06-Jan-16,19770270-12606600,-3790.51,Southern Electric Plc,Trade Supplier,Local Infrastructure & Street Management,Bridges Works,Bridges
Cambridgeshire County Council,27-Jan-16,19893954-12736655,-3509.1,T & T Private Hire Ltd,Trade Supplier,S&C,Home to School Transport - Special,Home to School - Outcounty
Cambridgeshire County Council,06-Jan-16,19764972-12606540,-3339,Dews Coaches,Trade Supplier,S&C,H to S Transport - Secondary,Home to School - Contract
Cambridgeshire County Council,06-Jan-16,19770220-12606596,-3133.3,Southern Electric Plc,Trade Supplier,Local Infrastructure & Street Management,Bridges Works,Bridges
Cambridgeshire County Council,07-Jan-16,19770272-12610220,-3105.62,Southern Electric Plc,Trade Supplier,Local Infrastructure & Street Management,Bridges Works,Bridges
Cambridgeshire County Council,22-Jan-16,19889624-12728400,-2852.58,The Edmund Trust,Care Establishment,2 - Operations - Learning Disability,LDP South Cambs Team,Supported Living
Cambridgeshire County Council,07-Jan-16,19770223-12610218,-2842.58,Southern Electric Plc,Trade Supplier,Local Infrastructure & Street Management,Bridges Works,Bridges
Cambridgeshire County Council,06-Jan-16,19770213-12606594,-2829.68,Southern Electric Plc,Trade Supplier,Local Infrastructure & Street Management,Bridges Works,Bridges
Cambridgeshire County Council,06-Jan-16,19770226-12606598,-2699.85,Southern Electric Plc,Trade Supplier,Local Infrastructure & Street Management,Bridges Works,Bridges
Cambridgeshire County Council,07-Jan-16,19770274-12610222,-2554.13,Southern Electric Plc,Trade Supplier,Local Infrastructure & Street Management,Bridges Works,Bridges
Cambridgeshire County Council,25-Jan-16,19880542-12730360,-2388,Hi-Spec Facilities Services Plc,Trade Supplier,LGSS Managed,FM Caretaker Housing,Building alterations
Cambridgeshire County Council,28-Jan-16,19813277-12739468,-2293.63,Softcat Ltd,Trade Supplier,LRNG,ICT Service Procurement,Materials for resale
Cambridgeshire County Council,21-Jan-16,19884723-12724509,-2286.28,Redacted Personal Data,Individual,2 - Operations - Learning Disability,LDP Fens - Special Needs,Direct Payments - Social Services
Cambridgeshire County Council,21-Jan-16,19884725-12724511,-2286.28,Redacted Personal Data,Individual,2 - Operations - Learning Disability,LDP Fens - Special Needs,Direct Payments - Social Services
Cambridgeshire County Council,21-Jan-16,19884726-12724512,-2286.28,Redacted Personal Data,Individual,2 - Operations - Learning Disability,LDP Fens - Special Needs,Direct Payments - Social Services
Cambridgeshire County Council,21-Jan-16,19884737-12724500,-2286.28,Redacted Personal Data,Individual,2 - Operations - Learning Disability,LDP Fens - Special Needs,Direct Payments - Social Services
Cambridgeshire County Council,13-Jan-16,19583474-12658437,-2223.48,Heron House Care Home,Care Establishment,2 - Commissioning - Older people Pool,Older People - Fenland,General Office Expenses & Stationery
Cambridgeshire County Council,13-Jan-16,19583475-12658438,-2223.48,Heron House Care Home,Care Establishment,2 - Commissioning - Older people Pool,Older People - Fenland,Nursing Independent Sector
Cambridgeshire County Council,13-Jan-16,19585768-12658442,-2223.48,Heron House Care Home,Care Establishment,2 - Commissioning - Older people Pool,Older People - Fenland,Nursing Independent Sector
Cambridgeshire County Council,13-Jan-16,19585769-12658443,-2223.48,Heron House Care Home,Care Establishment,2 - Commissioning - Older people Pool,Older People - Fenland,Nursing Independent Sector
Cambridgeshire County Council,13-Jan-16,19583473-12658436,-2196,Heron House Care Home,Care Establishment,2 - Commissioning - Older people Pool,Older People - Fenland,Nursing Independent Sector
Cambridgeshire County Council,13-Jan-16,19585765-12658439,-2196,Heron House Care Home,Care Establishment,2 - Commissioning - Older people Pool,Older People - Fenland,Nursing Independent Sector
Cambridgeshire County Council,13-Jan-16,19585766-12658440,-2196,Heron House Care Home,Care Establishment,2 - Commissioning - Older people Pool,Older People - Fenland,Nursing Independent Sector
Cambridgeshire County Council,08-Jan-16,19733970-12628462,-2154.62,Augusta Care Ltd,Care Establishment,2 - Operations - Learning Disability,LDP Fenland Team,Supported Living
Cambridgeshire County Council,08-Jan-16,19733971-12628463,-2154.62,Augusta Care Ltd,Care Establishment,2 - Operations - Learning Disability,LDP Fenland Team,Supported Living
Cambridgeshire County Council,08-Jan-16,19733974-12628464,-2154.62,Augusta Care Ltd,Care Establishment,2 - Operations - Learning Disability,LDP Fenland Team,Supported Living
Cambridgeshire County Council,08-Jan-16,19733975-12628465,-2154.62,Augusta Care Ltd,Care Establishment,2 - Operations - Learning Disability,LDP Fenland Team,Supported Living
Cambridgeshire County Council,08-Jan-16,19733976-12628466,-2154.62,Augusta Care Ltd,Care Establishment,2 - Operations - Learning Disability,LDP Fenland Team,Supported Living
Cambridgeshire County Council,08-Jan-16,19733977-12628467,-2154.62,Augusta Care Ltd,Care Establishment,2 - Operations - Learning Disability,LDP Fenland Team,Supported Living
Cambridgeshire County Council,08-Jan-16,19733978-12628468,-2154.62,Augusta Care Ltd,Care Establishment,2 - Operations - Learning Disability,LDP Fenland Team,Supported Living
Cambridgeshire County Council,08-Jan-16,19733981-12628469,-2154.62,Augusta Care Ltd,Care Establishment,2 - Operations - Learning Disability,LDP Fenland Team,Supported Living
Cambridgeshire County Council,08-Jan-16,19733988-12628471,-2154.62,Augusta Care Ltd,Care Establishment,2 - Operations - Learning Disability,LDP Fenland Team,Supported Living
Cambridgeshire County Council,21-Jan-16,19579425-12723342,-1976.03,Gretton Homes,Care Establishment,3 - Operations - Countywide Services,Young Adults LDP,Residential Independent Sector
Cambridgeshire County Council,21-Jan-16,19579426-12723343,-1976.03,Gretton Homes,Care Establishment,3 - Operations - Countywide Services,Young Adults LDP,Residential Independent Sector
Cambridgeshire County Council,21-Jan-16,19579427-12723344,-1976.03,Gretton Homes,Care Establishment,3 - Operations - Countywide Services,Young Adults LDP,Residential Independent Sector
Cambridgeshire County Council,21-Jan-16,19579428-12723345,-1976.03,Gretton Homes,Care Establishment,3 - Operations - Countywide Services,Young Adults LDP,Residential Independent Sector
Cambridgeshire County Council,21-Jan-16,19579429-12723346,-1976.03,Gretton Homes,Care Establishment,3 - Operations - Countywide Services,Young Adults LDP,Residential Independent Sector
Cambridgeshire County Council,21-Jan-16,19579430-12723347,-1976.03,Gretton Homes,Care Establishment,3 - Operations - Countywide Services,Young Adults LDP,Residential Independent Sector
Cambridgeshire County Council,21-Jan-16,19579431-12723348,-1976.03,Gretton Homes,Care Establishment,3 - Operations - Countywide Services,Young Adults LDP,Residential Independent Sector
Cambridgeshire County Council,21-Jan-16,19579432-12723349,-1976.03,Gretton Homes,Care Establishment,3 - Operations - Countywide Services,Young Adults LDP,Residential Independent Sector
Cambridgeshire County Council,21-Jan-16,19579433-12723350,-1976.03,Gretton Homes,Care Establishment,3 - Operations - Countywide Services,Young Adults LDP,Residential Independent Sector
Cambridgeshire County Council,21-Jan-16,19579434-12723351,-1976.03,Gretton Homes,Care Establishment,3 - Operations - Countywide Services,Young Adults LDP,Residential Independent Sector
Cambridgeshire County Council,21-Jan-16,19579435-12723352,-1976.03,Gretton Homes,Care Establishment,3 - Operations - Countywide Services,Young Adults LDP,Residential Independent Sector
Cambridgeshire County Council,21-Jan-16,19579436-12723353,-1976.03,Gretton Homes,Care Establishment,3 - Operations - Countywide Services,Young Adults LDP,Residential Independent Sector
Cambridgeshire County Council,21-Jan-16,19579437-12723354,-1976.03,Gretton Homes,Care Establishment,3 - Operations - Countywide Services,Young Adults LDP,Residential Independent Sector
Cambridgeshire County Council,21-Jan-16,19579438-12723355,-1976.03,Gretton Homes,Care Establishment,3 - Operations - Countywide Services,Young Adults LDP,Residential Independent Sector
Cambridgeshire County Council,21-Jan-16,19579439-12723356,-1976.03,Gretton Homes,Care Establishment,3 - Operations - Countywide Services,Young Adults LDP,Residential Independent Sector
Cambridgeshire County Council,21-Jan-16,19579440-12723357,-1976.03,Gretton Homes,Care Establishment,3 - Operations - Countywide Services,Young Adults LDP,Residential Independent Sector
Cambridgeshire County Council,21-Jan-16,19579441-12723358,-1976.03,Gretton Homes,Care Establishment,3 - Operations - Countywide Services,Young Adults LDP,Residential Independent Sector
Cambridgeshire County Council,21-Jan-16,19579442-12723359,-1976.03,Gretton Homes,Care Establishment,3 - Operations - Countywide Services,Young Adults LDP,Residential Independent Sector
Cambridgeshire County Council,21-Jan-16,19579443-12723360,-1976.03,Gretton Homes,Care Establishment,3 - Operations - Countywide Services,Young Adults LDP,Residential Independent Sector
Cambridgeshire County Council,21-Jan-16,19579444-12723361,-1976.03,Gretton Homes,Care Establishment,3 - Operations - Countywide Services,Young Adults LDP,Residential Independent Sector
Cambridgeshire County Council,21-Jan-16,19579446-12723363,-1976.03,Gretton Homes,Care Establishment,3 - Operations - Countywide Services,Young Adults LDP,Residential Independent Sector
Cambridgeshire County Council,21-Jan-16,19579447-12723364,-1976.03,Gretton Homes,Care Establishment,3 - Operations - Countywide Services,Young Adults LDP,Residential Independent Sector
Cambridgeshire County Council,21-Jan-16,19579448-12723365,-1976.03,Gretton Homes,Care Establishment,3 - Operations - Countywide Services,Young Adults LDP,Residential Independent Sector
Cambridgeshire County Council,21-Jan-16,19579449-12723366,-1976.03,Gretton Homes,Care Establishment,3 - Operations - Countywide Services,Young Adults LDP,Residential Independent Sector
Cambridgeshire County Council,21-Jan-16,19579450-12723367,-1976.03,Gretton Homes,Care Establishment,3 - Operations - Countywide Services,Young Adults LDP,Residential Independent Sector
Cambridgeshire County Council,21-Jan-16,19579451-12723368,-1976.03,Gretton Homes,Care Establishment,3 - Operations - Countywide Services,Young Adults LDP,Residential Independent Sector
Cambridgeshire County Council,21-Jan-16,19579452-12723369,-1976.03,Gretton Homes,Care Establishment,3 - Operations - Countywide Services,Young Adults LDP,Residential Independent Sector
Cambridgeshire County Council,21-Jan-16,19579453-12723370,-1976.03,Gretton Homes,Care Establishment,3 - Operations - Countywide Services,Young Adults LDP,Residential Independent Sector
Cambridgeshire County Council,21-Jan-16,19579454-12723371,-1976.03,Gretton Homes,Care Establishment,3 - Operations - Countywide Services,Young Adults LDP,Residential Independent Sector
Cambridgeshire County Council,21-Jan-16,19579455-12723372,-1976.03,Gretton Homes,Care Establishment,3 - Operations - Countywide Services,Young Adults LDP,Residential Independent Sector
Cambridgeshire County Council,21-Jan-16,19579456-12723373,-1976.03,Gretton Homes,Care Establishment,3 - Operations - Countywide Services,Young Adults LDP,Residential Independent Sector
Cambridgeshire County Council,21-Jan-16,19579457-12723374,-1976.03,Gretton Homes,Care Establishment,3 - Operations - Countywide Services,Young Adults LDP,Residential Independent Sector
Cambridgeshire County Council,27-Jan-16,19367610-12736447,-1879.4,Voyage (Lichfield),Care Establishment,2 - Commissioning - Older people Pool,Older People - Fenland,Supported Living
Cambridgeshire County Council,14-Jan-16,19486147-12674569,-1800,Granta Housing- 71 /73 Fen Road,Care Establishment,2 - Operations - Learning Disability,LDP South Cambs Team,Nursing Independent Sector
Cambridgeshire County Council,14-Jan-16,19486150-12674570,-1800,Granta Housing- 71 /73 Fen Road,Care Establishment,2 - Operations - Learning Disability,LDP South Cambs Team,Nursing Independent Sector
Cambridgeshire County Council,14-Jan-16,19486151-12674571,-1800,Granta Housing- 71 /73 Fen Road,Care Establishment,2 - Operations - Learning Disability,LDP South Cambs Team,Nursing Independent Sector
Cambridgeshire County Council,14-Jan-16,19486152-12674572,-1800,Granta Housing- 71 /73 Fen Road,Care Establishment,2 - Operations - Learning Disability,LDP South Cambs Team,Nursing Independent Sector
Cambridgeshire County Council,14-Jan-16,19487167-12674573,-1800,Granta Housing- 71 /73 Fen Road,Care Establishment,2 - Operations - Learning Disability,LDP South Cambs Team,Nursing Independent Sector
Cambridgeshire County Council,14-Jan-16,19487168-12674574,-1800,Granta Housing- 71 /73 Fen Road,Care Establishment,2 - Operations - Learning Disability,LDP South Cambs Team,Nursing Independent Sector
Cambridgeshire County Council,14-Jan-16,19487170-12674575,-1800,Granta Housing- 71 /73 Fen Road,Care Establishment,2 - Operations - Learning Disability,LDP South Cambs Team,Nursing Independent Sector
Cambridgeshire County Council,14-Jan-16,19487173-12674576,-1800,Granta Housing- 71 /73 Fen Road,Care Establishment,2 - Operations - Learning Disability,LDP South Cambs Team,Nursing Independent Sector
Cambridgeshire County Council,14-Jan-16,19487178-12674577,-1800,Granta Housing- 71 /73 Fen Road,Care Establishment,2 - Operations - Learning Disability,LDP South Cambs Team,Nursing Independent Sector
Cambridgeshire County Council,14-Jan-16,19487179-12674578,-1800,Granta Housing- 71 /73 Fen Road,Care Establishment,2 - Operations - Learning Disability,LDP South Cambs Team,Nursing Independent Sector
Cambridgeshire County Council,14-Jan-16,19487182-12674579,-1800,Granta Housing- 71 /73 Fen Road,Care Establishment,2 - Operations - Learning Disability,LDP South Cambs Team,Nursing Independent Sector
Cambridgeshire County Council,14-Jan-16,19487189-12674580,-1800,Granta Housing- 71 /73 Fen Road,Care Establishment,2 - Operations - Learning Disability,LDP South Cambs Team,Nursing Independent Sector
Cambridgeshire County Council,14-Jan-16,19487196-12674582,-1800,Granta Housing- 71 /73 Fen Road,Care Establishment,2 - Operations - Learning Disability,LDP South Cambs Team,Nursing Independent Sector
Cambridgeshire County Council,14-Jan-16,19487199-12674583,-1800,Granta Housing- 71 /73 Fen Road,Care Establishment,2 - Operations - Learning Disability,LDP South Cambs Team,Nursing Independent Sector
Cambridgeshire County Council,14-Jan-16,19487201-12674541,-1800,Granta Housing- 71 /73 Fen Road,Care Establishment,2 - Operations - Learning Disability,LDP South Cambs Team,Nursing Independent Sector
Cambridgeshire County Council,14-Jan-16,19487202-12674542,-1800,Granta Housing- 71 /73 Fen Road,Care Establishment,2 - Operations - Learning Disability,LDP South Cambs Team,Nursing Independent Sector
Cambridgeshire County Council,14-Jan-16,19487203-12674543,-1800,Granta Housing- 71 /73 Fen Road,Care Establishment,2 - Operations - Learning Disability,LDP South Cambs Team,Nursing Independent Sector
Cambridgeshire County Council,14-Jan-16,19487208-12674544,-1800,Granta Housing- 71 /73 Fen Road,Care Establishment,2 - Operations - Learning Disability,LDP South Cambs Team,Nursing Independent Sector
Cambridgeshire County Council,12-Jan-16,19737920-12651019,-1617.36,Utc Cambridge,Education,LRNG,ICT Service Helpline,Materials for resale
Cambridgeshire County Council,06-Jan-16,19771630-12606613,-1606.56,Southern Electric Plc,Trade Supplier,Local Infrastructure & Street Management,Bridges Works,Bridges
Cambridgeshire County Council,12-Jan-16,19223192-12651018,-1599.99,Mosaic Foster Care Ltd,Care Establishment,S&C,Placements - Social Care,Agency Placements - Out County
Cambridgeshire County Council,08-Jan-16,19781630-12631813,-1475.71,Social Care Solutions Ltd,Care Establishment,2 - Operations - Learning Disability,LDP Huntingdonshire Team,Supported Living
Cambridgeshire County Council,08-Jan-16,19781632-12631814,-1475.71,Social Care Solutions Ltd,Care Establishment,2 - Operations - Learning Disability,LDP Huntingdonshire Team,Supported Living
Cambridgeshire County Council,08-Jan-16,19781635-12631816,-1475.71,Social Care Solutions Ltd,Care Establishment,2 - Operations - Learning Disability,LDP Huntingdonshire Team,Supported Living
Cambridgeshire County Council,08-Jan-16,19781654-12631806,-1475.71,Social Care Solutions Ltd,Care Establishment,2 - Operations - Learning Disability,LDP Huntingdonshire Team,Supported Living
Cambridgeshire County Council,08-Jan-16,19781656-12631807,-1475.71,Social Care Solutions Ltd,Care Establishment,2 - Operations - Learning Disability,LDP Huntingdonshire Team,Supported Living
Cambridgeshire County Council,08-Jan-16,19781657-12631808,-1475.71,Social Care Solutions Ltd,Care Establishment,2 - Operations - Learning Disability,LDP Huntingdonshire Team,Supported Living
Cambridgeshire County Council,08-Jan-16,19781658-12631798,-1475.71,Social Care Solutions Ltd,Care Establishment,2 - Operations - Learning Disability,LDP Huntingdonshire Team,Supported Living
Cambridgeshire County Council,08-Jan-16,19781666-12631801,-1475.71,Social Care Solutions Ltd,Care Establishment,2 - Operations - Learning Disability,LDP Huntingdonshire Team,Supported Living
Cambridgeshire County Council,08-Jan-16,19784413-12631707,-1475.71,Social Care Solutions Ltd,Care Establishment,2 - Operations - Learning Disability,LDP Fens - Special Needs,Supported Living
Cambridgeshire County Council,08-Jan-16,19784430-12631708,-1475.71,Social Care Solutions Ltd,Care Establishment,2 - Operations - Learning Disability,LDP Fens - Special Needs,Supported Living
Cambridgeshire County Council,08-Jan-16,19784442-12631710,-1475.71,Social Care Solutions Ltd,Care Establishment,2 - Operations - Learning Disability,LDP Fens - Special Needs,Supported Living
Cambridgeshire County Council,08-Jan-16,19784446-12631711,-1475.71,Social Care Solutions Ltd,Care Establishment,2 - Operations - Learning Disability,LDP Fens - Special Needs,Supported Living
Cambridgeshire County Council,08-Jan-16,19784639-12631705,-1475.71,Social Care Solutions Ltd,Care Establishment,2 - Operations - Learning Disability,LDP Fens - Special Needs,Supported Living
Cambridgeshire County Council,08-Jan-16,19787814-12631626,-1475.71,Social Care Solutions Ltd,Care Establishment,2 - Operations - Learning Disability,LDP Fenland Team,Supported Living
Cambridgeshire County Council,08-Jan-16,19787815-12631627,-1475.71,Social Care Solutions Ltd,Care Establishment,2 - Operations - Learning Disability,LDP Fenland Team,Supported Living
Cambridgeshire County Council,08-Jan-16,19787824-12631653,-1475.71,Social Care Solutions Ltd,Care Establishment,2 - Operations - Learning Disability,LDP Fenland Team,Supported Living
Cambridgeshire County Council,08-Jan-16,19787984-12631630,-1475.71,Social Care Solutions Ltd,Care Establishment,2 - Operations - Learning Disability,LDP Fenland Team,Supported Living
Cambridgeshire County Council,08-Jan-16,19787987-12631633,-1475.71,Social Care Solutions Ltd,Care Establishment,2 - Operations - Learning Disability,LDP Fenland Team,Supported Living
Cambridgeshire County Council,08-Jan-16,19787988-12631634,-1475.71,Social Care Solutions Ltd,Care Establishment,2 - Operations - Learning Disability,LDP Fenland Team,Supported Living
Cambridgeshire County Council,08-Jan-16,19787990-12631636,-1475.71,Social Care Solutions Ltd,Care Establishment,2 - Operations - Learning Disability,LDP Fenland Team,Supported Living
Cambridgeshire County Council,08-Jan-16,19787992-12631638,-1475.71,Social Care Solutions Ltd,Care Establishment,2 - Operations - Learning Disability,LDP Fenland Team,Supported Living
Cambridgeshire County Council,08-Jan-16,19787994-12631639,-1475.71,Social Care Solutions Ltd,Care Establishment,2 - Operations - Learning Disability,LDP Fenland Team,Supported Living
Cambridgeshire County Council,08-Jan-16,19787997-12631641,-1475.71,Social Care Solutions Ltd,Care Establishment,2 - Operations - Learning Disability,LDP Fenland Team,Supported Living
Cambridgeshire County Council,08-Jan-16,19787999-12631643,-1475.71,Social Care Solutions Ltd,Care Establishment,2 - Operations - Learning Disability,LDP Fenland Team,Supported Living
Cambridgeshire County Council,08-Jan-16,19788002-12631646,-1475.71,Social Care Solutions Ltd,Care Establishment,2 - Operations - Learning Disability,LDP Fenland Team,Supported Living
Cambridgeshire County Council,08-Jan-16,19789060-12631818,-1475.71,Social Care Solutions Ltd,Care Establishment,2 - Operations - Learning Disability,LDP Fenland Team,Supported Living
Cambridgeshire County Council,08-Jan-16,19789061-12631819,-1475.71,Social Care Solutions Ltd,Care Establishment,2 - Operations - Learning Disability,LDP Fenland Team,Supported Living
Cambridgeshire County Council,08-Jan-16,19789068-12631821,-1475.71,Social Care Solutions Ltd,Care Establishment,2 - Operations - Learning Disability,LDP Fenland Team,Supported Living
Cambridgeshire County Council,08-Jan-16,19789071-12631823,-1475.71,Social Care Solutions Ltd,Care Establishment,2 - Operations - Learning Disability,LDP Fenland Team,Supported Living
Cambridgeshire County Council,08-Jan-16,19789077-12631827,-1475.71,Social Care Solutions Ltd,Care Establishment,2 - Operations - Learning Disability,LDP Fenland Team,Supported Living
Cambridgeshire County Council,08-Jan-16,19789084-12631830,-1475.71,Social Care Solutions Ltd,Care Establishment,2 - Operations - Learning Disability,LDP Fenland Team,Supported Living
Cambridgeshire County Council,08-Jan-16,19791450-12631717,-1475.71,Social Care Solutions Ltd,Care Establishment,2 - Operations - Learning Disability,LDP Fens - Special Needs,Supported Living
Cambridgeshire County Council,08-Jan-16,19791452-12631719,-1475.71,Social Care Solutions Ltd,Care Establishment,2 - Operations - Learning Disability,LDP Fens - Special Needs,Supported Living
Cambridgeshire County Council,08-Jan-16,19791453-12631720,-1475.71,Social Care Solutions Ltd,Care Establishment,2 - Operations - Learning Disability,LDP Fens - Special Needs,Supported Living
Cambridgeshire County Council,08-Jan-16,19791454-12631721,-1475.71,Social Care Solutions Ltd,Care Establishment,2 - Operations - Learning Disability,LDP Fens - Special Needs,Supported Living
Cambridgeshire County Council,08-Jan-16,19791457-12631724,-1475.71,Social Care Solutions Ltd,Care Establishment,2 - Operations - Learning Disability,LDP Fens - Special Needs,Supported Living
Cambridgeshire County Council,08-Jan-16,19791459-12631726,-1475.71,Social Care Solutions Ltd,Care Establishment,2 - Operations - Learning Disability,LDP Fens - Special Needs,Supported Living
Cambridgeshire County Council,08-Jan-16,19791462-12631729,-1475.71,Social Care Solutions Ltd,Care Establishment,2 - Operations - Learning Disability,LDP Fens - Special Needs,Supported Living
Cambridgeshire County Council,08-Jan-16,19791467-12631734,-1475.71,Social Care Solutions Ltd,Care Establishment,2 - Operations - Learning Disability,LDP Fens - Special Needs,Supported Living
Cambridgeshire County Council,08-Jan-16,19791469-12631736,-1475.71,Social Care Solutions Ltd,Care Establishment,2 - Operations - Learning Disability,LDP Fens - Special Needs,Supported Living
Cambridgeshire County Council,08-Jan-16,19792886-12631681,-1475.71,Social Care Solutions Ltd,Care Establishment,2 - Operations - Learning Disability,LDP Huntingdonshire Team,Supported Living
Cambridgeshire County Council,08-Jan-16,19795608-12631833,-1475.71,Social Care Solutions Ltd,Care Establishment,2 - Operations - Learning Disability,LDP Fens - Special Needs,Supported Living
Cambridgeshire County Council,08-Jan-16,19796245-12631785,-1475.71,Social Care Solutions Ltd,Care Establishment,2 - Operations - Learning Disability,LDP Fens - Special Needs,Supported Living
Cambridgeshire County Council,08-Jan-16,19796257-12631788,-1475.71,Social Care Solutions Ltd,Care Establishment,2 - Operations - Learning Disability,LDP Fens - Special Needs,Supported Living
Cambridgeshire County Council,08-Jan-16,19796293-12631783,-1475.71,Social Care Solutions Ltd,Care Establishment,2 - Operations - Learning Disability,LDP Fens - Special Needs,Supported Living
Cambridgeshire County Council,08-Jan-16,19796330-12631760,-1475.71,Social Care Solutions Ltd,Care Establishment,2 - Operations - Learning Disability,LDP Fens - Special Needs,Supported Living
Cambridgeshire County Council,08-Jan-16,19796501-12631761,-1475.71,Social Care Solutions Ltd,Care Establishment,2 - Operations - Learning Disability,LDP Fens - Special Needs,Supported Living
Cambridgeshire County Council,08-Jan-16,19796502-12631762,-1475.71,Social Care Solutions Ltd,Care Establishment,2 - Operations - Learning Disability,LDP Fens - Special Needs,Supported Living
Cambridgeshire County Council,08-Jan-16,19796503-12631763,-1475.71,Social Care Solutions Ltd,Care Establishment,2 - Operations - Learning Disability,LDP Fens - Special Needs,Supported Living
Cambridgeshire County Council,08-Jan-16,19796506-12631766,-1475.71,Social Care Solutions Ltd,Care Establishment,2 - Operations - Learning Disability,LDP Fens - Special Needs,Supported Living
Cambridgeshire County Council,08-Jan-16,19796507-12631767,-1475.71,Social Care Solutions Ltd,Care Establishment,2 - Operations - Learning Disability,LDP Fens - Special Needs,Supported Living
Cambridgeshire County Council,08-Jan-16,19796511-12631771,-1475.71,Social Care Solutions Ltd,Care Establishment,2 - Operations - Learning Disability,LDP Fens - Special Needs,Supported Living
Cambridgeshire County Council,08-Jan-16,19796514-12631774,-1475.71,Social Care Solutions Ltd,Care Establishment,2 - Operations - Learning Disability,LDP Fens - Special Needs,Supported Living
Cambridgeshire County Council,08-Jan-16,19796516-12631776,-1475.71,Social Care Solutions Ltd,Care Establishment,2 - Operations - Learning Disability,LDP Fens - Special Needs,Supported Living
Cambridgeshire County Council,14-Jan-16,19823084-12669785,-1475.47,Caretech Community Services,Care Establishment,2 - Operations - Learning Disability,LDP Huntingdonshire Team,Residential Independent Sector
Cambridgeshire County Council,14-Jan-16,19823085-12669786,-1475.47,Caretech Community Services,Care Establishment,2 - Operations - Learning Disability,LDP Huntingdonshire Team,Residential Independent Sector
Cambridgeshire County Council,14-Jan-16,19823094-12669795,-1475.47,Caretech Community Services,Care Establishment,2 - Operations - Learning Disability,LDP Huntingdonshire Team,Residential Independent Sector
Cambridgeshire County Council,14-Jan-16,19823096-12669797,-1475.47,Caretech Community Services,Care Establishment,2 - Operations - Learning Disability,LDP Huntingdonshire Team,Residential Independent Sector
Cambridgeshire County Council,14-Jan-16,19823097-12669798,-1475.47,Caretech Community Services,Care Establishment,2 - Operations - Learning Disability,LDP Huntingdonshire Team,Residential Independent Sector
Cambridgeshire County Council,14-Jan-16,19823102-12669803,-1475.47,Caretech Community Services,Care Establishment,2 - Operations - Learning Disability,LDP Huntingdonshire Team,Residential Independent Sector
Cambridgeshire County Council,14-Jan-16,19823104-12669805,-1475.47,Caretech Community Services,Care Establishment,2 - Operations - Learning Disability,LDP Huntingdonshire Team,Residential Independent Sector
Cambridgeshire County Council,14-Jan-16,19823110-12669811,-1475.47,Caretech Community Services,Care Establishment,2 - Operations - Learning Disability,LDP Huntingdonshire Team,Residential Independent Sector
Cambridgeshire County Council,14-Jan-16,19823111-12669812,-1475.47,Caretech Community Services,Care Establishment,2 - Operations - Learning Disability,LDP Huntingdonshire Team,Residential Independent Sector
Cambridgeshire County Council,14-Jan-16,19823116-12669817,-1475.47,Caretech Community Services,Care Establishment,2 - Operations - Learning Disability,LDP Huntingdonshire Team,Residential Independent Sector
Cambridgeshire County Council,14-Jan-16,19823123-12669824,-1475.47,Caretech Community Services,Care Establishment,2 - Operations - Learning Disability,LDP Huntingdonshire Team,Residential Independent Sector
Cambridgeshire County Council,14-Jan-16,19823124-12669825,-1475.47,Caretech Community Services,Care Establishment,2 - Operations - Learning Disability,LDP Huntingdonshire Team,Residential Independent Sector
Cambridgeshire County Council,14-Jan-16,19825930-12669736,-1475.47,Caretech Community Services,Care Establishment,2 - Operations - Learning Disability,LDP Huntingdonshire Team,Residential Independent Sector
Cambridgeshire County Council,14-Jan-16,19825936-12669742,-1475.47,Caretech Community Services,Care Establishment,2 - Operations - Learning Disability,LDP Huntingdonshire Team,Residential Independent Sector
Cambridgeshire County Council,14-Jan-16,19825937-12669743,-1475.47,Caretech Community Services,Care Establishment,2 - Operations - Learning Disability,LDP Huntingdonshire Team,Residential Independent Sector
Cambridgeshire County Council,14-Jan-16,19825938-12669744,-1475.47,Caretech Community Services,Care Establishment,2 - Operations - Learning Disability,LDP Huntingdonshire Team,Residential Independent Sector
Cambridgeshire County Council,14-Jan-16,19831951-12669939,-1475.47,Caretech Community Services,Care Establishment,2 - Operations - Learning Disability,LDP Huntingdonshire Team,Residential Independent Sector
Cambridgeshire County Council,14-Jan-16,19831957-12669945,-1475.47,Caretech Community Services,Care Establishment,2 - Operations - Learning Disability,LDP Huntingdonshire Team,Residential Independent Sector
Cambridgeshire County Council,14-Jan-16,19831958-12669946,-1475.47,Caretech Community Services,Care Establishment,2 - Operations - Learning Disability,LDP Huntingdonshire Team,Residential Independent Sector
Cambridgeshire County Council,14-Jan-16,19831959-12669947,-1475.47,Caretech Community Services,Care Establishment,2 - Operations - Learning Disability,LDP Huntingdonshire Team,Residential Independent Sector
Cambridgeshire County Council,14-Jan-16,19831960-12669948,-1475.47,Caretech Community Services,Care Establishment,2 - Operations - Learning Disability,LDP Huntingdonshire Team,Residential Independent Sector
Cambridgeshire County Council,14-Jan-16,19831961-12669949,-1475.47,Caretech Community Services,Care Establishment,2 - Operations - Learning Disability,LDP Huntingdonshire Team,Residential Independent Sector
Cambridgeshire County Council,14-Jan-16,19831962-12669950,-1475.47,Caretech Community Services,Care Establishment,2 - Operations - Learning Disability,LDP Huntingdonshire Team,Residential Independent Sector
Cambridgeshire County Council,14-Jan-16,19831964-12669952,-1475.47,Caretech Community Services,Care Establishment,2 - Operations - Learning Disability,LDP Huntingdonshire Team,Residential Independent Sector
Cambridgeshire County Council,14-Jan-16,19831965-12669953,-1475.47,Caretech Community Services,Care Establishment,2 - Operations - Learning Disability,LDP Huntingdonshire Team,Residential Independent Sector
Cambridgeshire County Council,14-Jan-16,19831966-12669954,-1475.47,Caretech Community Services,Care Establishment,2 - Operations - Learning Disability,LDP Huntingdonshire Team,Residential Independent Sector
Cambridgeshire County Council,14-Jan-16,19831970-12669958,-1475.47,Caretech Community Services,Care Establishment,2 - Operations - Learning Disability,LDP Huntingdonshire Team,Residential Independent Sector
Cambridgeshire County Council,14-Jan-16,19831971-12669959,-1475.47,Caretech Community Services,Care Establishment,2 - Operations - Learning Disability,LDP Huntingdonshire Team,Residential Independent Sector
Cambridgeshire County Council,14-Jan-16,19831972-12669960,-1475.47,Caretech Community Services,Care Establishment,2 - Operations - Learning Disability,LDP Huntingdonshire Team,Residential Independent Sector
Cambridgeshire County Council,14-Jan-16,19831978-12669895,-1475.47,Caretech Community Services,Care Establishment,2 - Operations - Learning Disability,LDP Huntingdonshire Team,Residential Independent Sector
Cambridgeshire County Council,14-Jan-16,19831979-12669896,-1475.47,Caretech Community Services,Care Establishment,2 - Operations - Learning Disability,LDP Huntingdonshire Team,Residential Independent Sector
Cambridgeshire County Council,14-Jan-16,19831980-12669897,-1475.47,Caretech Community Services,Care Establishment,2 - Operations - Learning Disability,LDP Huntingdonshire Team,Residential Independent Sector
Cambridgeshire County Council,14-Jan-16,19831982-12669899,-1475.47,Caretech Community Services,Care Establishment,2 - Operations - Learning Disability,LDP Huntingdonshire Team,Residential Independent Sector
Cambridgeshire County Council,14-Jan-16,19831992-12669909,-1475.47,Caretech Community Services,Care Establishment,2 - Operations - Learning Disability,LDP Huntingdonshire Team,Residential Independent Sector
Cambridgeshire County Council,14-Jan-16,19831995-12669912,-1475.47,Caretech Community Services,Care Establishment,2 - Operations - Learning Disability,LDP Huntingdonshire Team,Residential Independent Sector
Cambridgeshire County Council,14-Jan-16,19832000-12669917,-1475.47,Caretech Community Services,Care Establishment,2 - Operations - Learning Disability,LDP Huntingdonshire Team,Residential Independent Sector
Cambridgeshire County Council,14-Jan-16,19832001-12669918,-1475.47,Caretech Community Services,Care Establishment,2 - Operations - Learning Disability,LDP Huntingdonshire Team,Residential Independent Sector
Cambridgeshire County Council,14-Jan-16,19832002-12669919,-1475.47,Caretech Community Services,Care Establishment,2 - Operations - Learning Disability,LDP Huntingdonshire Team,Residential Independent Sector
Cambridgeshire County Council,14-Jan-16,19832004-12669921,-1475.47,Caretech Community Services,Care Establishment,2 - Operations - Learning Disability,LDP Huntingdonshire Team,Residential Independent Sector
Cambridgeshire County Council,14-Jan-16,19832015-12669881,-1475.47,Caretech Community Services,Care Establishment,2 - Operations - Learning Disability,LDP Huntingdonshire Team,Residential Independent Sector
Cambridgeshire County Council,14-Jan-16,19832022-12669888,-1475.47,Caretech Community Services,Care Establishment,2 - Operations - Learning Disability,LDP Huntingdonshire Team,Residential Independent Sector
Cambridgeshire County Council,14-Jan-16,19832028-12669894,-1475.47,Caretech Community Services,Care Establishment,2 - Operations - Learning Disability,LDP Huntingdonshire Team,Residential Independent Sector
Cambridgeshire County Council,06-Jan-16,19770278-12606602,-1456.98,Southern Electric Plc,Trade Supplier,Local Infrastructure & Street Management,Bridges Works,Bridges
Cambridgeshire County Council,29-Jan-16,19911682-12749172,-1456.79,Dimensions (Uk) Ltd,Care Establishment,2 - Operations - Learning Disability,LDP South Cambs Team,Supported Living
Cambridgeshire County Council,08-Jan-16,19581729-12626270,-1354.32,Thera East Anglia,Trust (Other),2 - Operations - Learning Disability,LDP E Cambs Team,Supported Living
Cambridgeshire County Council,08-Jan-16,19581730-12626271,-1354.32,Thera East Anglia,Trust (Other),2 - Operations - Learning Disability,LDP E Cambs Team,Supported Living
Cambridgeshire County Council,08-Jan-16,19581731-12626272,-1354.32,Thera East Anglia,Trust (Other),2 - Operations - Learning Disability,LDP E Cambs Team,Supported Living
Cambridgeshire County Council,08-Jan-16,19581732-12626273,-1354.32,Thera East Anglia,Trust (Other),2 - Operations - Learning Disability,LDP E Cambs Team,Supported Living
Cambridgeshire County Council,08-Jan-16,19581733-12626274,-1354.32,Thera East Anglia,Trust (Other),2 - Operations - Learning Disability,LDP E Cambs Team,Supported Living
Cambridgeshire County Council,08-Jan-16,19581734-12626275,-1354.32,Thera East Anglia,Trust (Other),2 - Operations - Learning Disability,LDP E Cambs Team,Supported Living
Cambridgeshire County Council,08-Jan-16,19581736-12626277,-1354.32,Thera East Anglia,Trust (Other),2 - Operations - Learning Disability,LDP E Cambs Team,Supported Living
Cambridgeshire County Council,08-Jan-16,19581737-12626278,-1354.32,Thera East Anglia,Trust (Other),2 - Operations - Learning Disability,LDP E Cambs Team,Supported Living
Cambridgeshire County Council,08-Jan-16,19581738-12626279,-1354.32,Thera East Anglia,Trust (Other),2 - Operations - Learning Disability,LDP E Cambs Team,Supported Living
Cambridgeshire County Council,08-Jan-16,19581739-12626280,-1354.32,Thera East Anglia,Trust (Other),2 - Operations - Learning Disability,LDP E Cambs Team,Supported Living
Cambridgeshire County Council,08-Jan-16,19581740-12626281,-1354.32,Thera East Anglia,Trust (Other),2 - Operations - Learning Disability,LDP E Cambs Team,Supported Living
Cambridgeshire County Council,08-Jan-16,19581741-12626231,-1354.32,Thera East Anglia,Trust (Other),2 - Operations - Learning Disability,LDP E Cambs Team,Supported Living
Cambridgeshire County Council,08-Jan-16,19581742-12626232,-1354.32,Thera East Anglia,Trust (Other),2 - Operations - Learning Disability,LDP E Cambs Team,Supported Living
Cambridgeshire County Council,08-Jan-16,19581743-12626233,-1354.32,Thera East Anglia,Trust (Other),2 - Operations - Learning Disability,LDP E Cambs Team,Supported Living
Cambridgeshire County Council,08-Jan-16,19581744-12626234,-1354.32,Thera East Anglia,Trust (Other),2 - Operations - Learning Disability,LDP E Cambs Team,Supported Living
Cambridgeshire County Council,08-Jan-16,19581745-12626235,-1354.32,Thera East Anglia,Trust (Other),2 - Operations - Learning Disability,LDP E Cambs Team,Supported Living
Cambridgeshire County Council,08-Jan-16,19581746-12626236,-1354.32,Thera East Anglia,Trust (Other),2 - Operations - Learning Disability,LDP E Cambs Team,Supported Living
Cambridgeshire County Council,08-Jan-16,19581747-12626237,-1354.32,Thera East Anglia,Trust (Other),2 - Operations - Learning Disability,LDP E Cambs Team,Supported Living
Cambridgeshire County Council,08-Jan-16,19581748-12626238,-1354.32,Thera East Anglia,Trust (Other),2 - Operations - Learning Disability,LDP E Cambs Team,Supported Living
Cambridgeshire County Council,08-Jan-16,19581749-12626239,-1354.32,Thera East Anglia,Trust (Other),2 - Operations - Learning Disability,LDP E Cambs Team,Supported Living
Cambridgeshire County Council,08-Jan-16,19584517-12626244,-1354.32,Thera East Anglia,Trust (Other),2 - Operations - Learning Disability,LDP E Cambs Team,Supported Living
Cambridgeshire County Council,08-Jan-16,19584518-12626245,-1354.32,Thera East Anglia,Trust (Other),2 - Operations - Learning Disability,LDP E Cambs Team,Supported Living
Cambridgeshire County Council,08-Jan-16,19584519-12626246,-1354.32,Thera East Anglia,Trust (Other),2 - Operations - Learning Disability,LDP E Cambs Team,Supported Living
Cambridgeshire County Council,08-Jan-16,19584520-12626247,-1354.32,Thera East Anglia,Trust (Other),2 - Operations - Learning Disability,LDP E Cambs Team,Supported Living
Cambridgeshire County Council,14-Jan-16,19832021-12669887,-1264.69,Caretech Community Services,Care Establishment,2 - Operations - Learning Disability,LDP Huntingdonshire Team,Residential Independent Sector
Cambridgeshire County Council,14-Jan-16,19485174-12674546,-1223.95,Granta Housing- 71 /73 Fen Road,Care Establishment,2 - Operations - Learning Disability,LDP City Team,Nursing Independent Sector
Cambridgeshire County Council,14-Jan-16,19485177-12674548,-1223.95,Granta Housing- 71 /73 Fen Road,Care Establishment,2 - Operations - Learning Disability,LDP City Team,Nursing Independent Sector
Cambridgeshire County Council,14-Jan-16,19485178-12674549,-1223.95,Granta Housing- 71 /73 Fen Road,Care Establishment,2 - Operations - Learning Disability,LDP City Team,Nursing Independent Sector
Cambridgeshire County Council,14-Jan-16,19485179-12674550,-1223.95,Granta Housing- 71 /73 Fen Road,Care Establishment,2 - Operations - Learning Disability,LDP City Team,Nursing Independent Sector
Cambridgeshire County Council,14-Jan-16,19485182-12674552,-1223.95,Granta Housing- 71 /73 Fen Road,Care Establishment,2 - Operations - Learning Disability,LDP City Team,Nursing Independent Sector
Cambridgeshire County Council,14-Jan-16,19485189-12674556,-1223.95,Granta Housing- 71 /73 Fen Road,Care Establishment,2 - Operations - Learning Disability,LDP City Team,Nursing Independent Sector
Cambridgeshire County Council,14-Jan-16,19485190-12674557,-1223.95,Granta Housing- 71 /73 Fen Road,Care Establishment,2 - Operations - Learning Disability,LDP City Team,Nursing Independent Sector
Cambridgeshire County Council,14-Jan-16,19485197-12674564,-1223.95,Granta Housing- 71 /73 Fen Road,Care Establishment,2 - Operations - Learning Disability,LDP City Team,Nursing Independent Sector
Cambridgeshire County Council,14-Jan-16,19485198-12674565,-1223.95,Granta Housing- 71 /73 Fen Road,Care Establishment,2 - Operations - Learning Disability,LDP City Team,Nursing Independent Sector
Cambridgeshire County Council,14-Jan-16,19485199-12674566,-1223.95,Granta Housing- 71 /73 Fen Road,Care Establishment,2 - Operations - Learning Disability,LDP City Team,Nursing Independent Sector
Cambridgeshire County Council,14-Jan-16,19485201-12674567,-1223.95,Granta Housing- 71 /73 Fen Road,Care Establishment,2 - Operations - Learning Disability,LDP City Team,Nursing Independent Sector
Cambridgeshire County Council,14-Jan-16,19485203-12674568,-1223.95,Granta Housing- 71 /73 Fen Road,Care Establishment,2 - Operations - Learning Disability,LDP City Team,Nursing Independent Sector
Cambridgeshire County Council,14-Jan-16,19778771-12669423,-1150,Longueville Court,Care Establishment,3 - Operations - Countywide Services,Countywide PD Service,Residential Independent Sector
Cambridgeshire County Council,14-Jan-16,19778773-12669425,-1150,Longueville Court,Care Establishment,3 - Operations - Countywide Services,Countywide PD Service,Residential Independent Sector
Cambridgeshire County Council,21-Jan-16,19579445-12723362,-1129.16,Gretton Homes,Care Establishment,3 - Operations - Countywide Services,Young Adults LDP,Residential Independent Sector
Cambridgeshire County Council,06-Jan-16,19770652-12606610,-1019.31,Southern Electric Plc,Trade Supplier,Local Infrastructure & Street Management,Bridges Works,Bridges
Cambridgeshire County Council,06-Jan-16,19770650-12606609,-1017.74,Southern Electric Plc,Trade Supplier,Local Infrastructure & Street Management,Bridges Works,Bridges
Cambridgeshire County Council,14-Jan-16,19822829-12665423,-926.11,Making Space#1,Care Establishment,3 - Operations - Countywide Services,Countywide PD Service,Nursing Independent Sector
Cambridgeshire County Council,14-Jan-16,19822830-12665424,-926.11,Making Space#1,Care Establishment,3 - Operations - Countywide Services,Countywide PD Service,Nursing Independent Sector
Cambridgeshire County Council,14-Jan-16,19822832-12665426,-926.11,Making Space#1,Care Establishment,3 - Operations - Countywide Services,Countywide PD Service,Nursing Independent Sector
Cambridgeshire County Council,14-Jan-16,19822833-12665427,-926.11,Making Space#1,Care Establishment,3 - Operations - Countywide Services,Countywide PD Service,Nursing Independent Sector
Cambridgeshire County Council,14-Jan-16,19822834-12665428,-926.11,Making Space#1,Care Establishment,3 - Operations - Countywide Services,Countywide PD Service,Nursing Independent Sector
Cambridgeshire County Council,14-Jan-16,19822836-12665430,-926.11,Making Space#1,Care Establishment,3 - Operations - Countywide Services,Countywide PD Service,Nursing Independent Sector
Cambridgeshire County Council,14-Jan-16,19822839-12665433,-926.11,Making Space#1,Care Establishment,3 - Operations - Countywide Services,Countywide PD Service,Nursing Independent Sector
Cambridgeshire County Council,14-Jan-16,19822841-12665435,-926.11,Making Space#1,Care Establishment,3 - Operations - Countywide Services,Countywide PD Service,Nursing Independent Sector
Cambridgeshire County Council,14-Jan-16,19822842-12665436,-926.11,Making Space#1,Care Establishment,3 - Operations - Countywide Services,Countywide PD Service,Nursing Independent Sector
Cambridgeshire County Council,14-Jan-16,19822844-12665438,-926.11,Making Space#1,Care Establishment,3 - Operations - Countywide Services,Countywide PD Service,Nursing Independent Sector
Cambridgeshire County Council,14-Jan-16,19822847-12665441,-926.11,Making Space#1,Care Establishment,3 - Operations - Countywide Services,Countywide PD Service,Nursing Independent Sector
Cambridgeshire County Council,14-Jan-16,19822848-12665442,-926.11,Making Space#1,Care Establishment,3 - Operations - Countywide Services,Countywide PD Service,Nursing Independent Sector
Cambridgeshire County Council,14-Jan-16,19822850-12665444,-926.11,Making Space#1,Care Establishment,3 - Operations - Countywide Services,Countywide PD Service,Nursing Independent Sector
Cambridgeshire County Council,14-Jan-16,19822851-12665445,-926.11,Making Space#1,Care Establishment,3 - Operations - Countywide Services,Countywide PD Service,Nursing Independent Sector
Cambridgeshire County Council,14-Jan-16,19822852-12665446,-926.11,Making Space#1,Care Establishment,3 - Operations - Countywide Services,Countywide PD Service,Nursing Independent Sector
Cambridgeshire County Council,14-Jan-16,19822854-12665448,-926.11,Making Space#1,Care Establishment,3 - Operations - Countywide Services,Countywide PD Service,Nursing Independent Sector
Cambridgeshire County Council,14-Jan-16,19829870-12665349,-926.11,Making Space#1,Care Establishment,3 - Operations - Countywide Services,Countywide PD Service,Nursing Independent Sector
Cambridgeshire County Council,14-Jan-16,19829873-12665352,-926.11,Making Space#1,Care Establishment,3 - Operations - Countywide Services,Countywide PD Service,Nursing Independent Sector
Cambridgeshire County Council,14-Jan-16,19829876-12665355,-926.11,Making Space#1,Care Establishment,3 - Operations - Countywide Services,Countywide PD Service,Nursing Independent Sector
Cambridgeshire County Council,14-Jan-16,19829878-12665357,-926.11,Making Space#1,Care Establishment,3 - Operations - Countywide Services,Countywide PD Service,Nursing Independent Sector
Cambridgeshire County Council,14-Jan-16,19829880-12665359,-926.11,Making Space#1,Care Establishment,3 - Operations - Countywide Services,Countywide PD Service,Nursing Independent Sector
Cambridgeshire County Council,14-Jan-16,19829881-12665360,-926.11,Making Space#1,Care Establishment,3 - Operations - Countywide Services,Countywide PD Service,Nursing Independent Sector
Cambridgeshire County Council,14-Jan-16,19829882-12665361,-926.11,Making Space#1,Care Establishment,3 - Operations - Countywide Services,Countywide PD Service,Nursing Independent Sector
Cambridgeshire County Council,14-Jan-16,19829883-12665362,-926.11,Making Space#1,Care Establishment,3 - Operations - Countywide Services,Countywide PD Service,Nursing Independent Sector
Cambridgeshire County Council,14-Jan-16,19829884-12665363,-926.11,Making Space#1,Care Establishment,3 - Operations - Countywide Services,Countywide PD Service,Nursing Independent Sector
Cambridgeshire County Council,14-Jan-16,19829885-12665364,-926.11,Making Space#1,Care Establishment,3 - Operations - Countywide Services,Countywide PD Service,Nursing Independent Sector
Cambridgeshire County Council,14-Jan-16,19829888-12665367,-926.11,Making Space#1,Care Establishment,3 - Operations - Countywide Services,Countywide PD Service,Nursing Independent Sector
Cambridgeshire County Council,14-Jan-16,19829892-12665371,-926.11,Making Space#1,Care Establishment,3 - Operations - Countywide Services,Countywide PD Service,Nursing Independent Sector
Cambridgeshire County Council,14-Jan-16,19829894-12665373,-926.11,Making Space#1,Care Establishment,3 - Operations - Countywide Services,Countywide PD Service,Nursing Independent Sector
Cambridgeshire County Council,14-Jan-16,19829895-12665374,-926.11,Making Space#1,Care Establishment,3 - Operations - Countywide Services,Countywide PD Service,Nursing Independent Sector
Cambridgeshire County Council,14-Jan-16,19829901-12665380,-926.11,Making Space#1,Care Establishment,3 - Operations - Countywide Services,Countywide PD Service,Nursing Independent Sector
Cambridgeshire County Council,14-Jan-16,19829902-12665381,-926.11,Making Space#1,Care Establishment,3 - Operations - Countywide Services,Countywide PD Service,Nursing Independent Sector
Cambridgeshire County Council,14-Jan-16,19829903-12665382,-926.11,Making Space#1,Care Establishment,3 - Operations - Countywide Services,Countywide PD Service,Nursing Independent Sector
Cambridgeshire County Council,14-Jan-16,19829905-12665384,-926.11,Making Space#1,Care Establishment,3 - Operations - Countywide Services,Countywide PD Service,Nursing Independent Sector
Cambridgeshire County Council,14-Jan-16,19829908-12665387,-926.11,Making Space#1,Care Establishment,3 - Operations - Countywide Services,Countywide PD Service,Nursing Independent Sector
Cambridgeshire County Council,14-Jan-16,19829910-12665389,-926.11,Making Space#1,Care Establishment,3 - Operations - Countywide Services,Countywide PD Service,Nursing Independent Sector
Cambridgeshire County Council,14-Jan-16,19835675-12665399,-926.11,Making Space#1,Care Establishment,3 - Operations - Countywide Services,Countywide PD Service,Nursing Independent Sector
Cambridgeshire County Council,14-Jan-16,19835681-12665405,-926.11,Making Space#1,Care Establishment,3 - Operations - Countywide Services,Countywide PD Service,Nursing Independent Sector
Cambridgeshire County Council,14-Jan-16,19835683-12665407,-926.11,Making Space#1,Care Establishment,3 - Operations - Countywide Services,Countywide PD Service,Nursing Independent Sector
Cambridgeshire County Council,14-Jan-16,19835685-12665409,-926.11,Making Space#1,Care Establishment,3 - Operations - Countywide Services,Countywide PD Service,Nursing Independent Sector
Cambridgeshire County Council,14-Jan-16,19835686-12665410,-926.11,Making Space#1,Care Establishment,3 - Operations - Countywide Services,Countywide PD Service,Nursing Independent Sector
Cambridgeshire County Council,21-Jan-16,19884785-12721989,-926.11,Making Space#1,Care Establishment,3 - Operations - Countywide Services,Countywide PD Service,Nursing Independent Sector
Cambridgeshire County Council,21-Jan-16,19884787-12721991,-926.11,Making Space#1,Care Establishment,3 - Operations - Countywide Services,Countywide PD Service,Nursing Independent Sector
Cambridgeshire County Council,21-Jan-16,19884791-12721995,-926.11,Making Space#1,Care Establishment,3 - Operations - Countywide Services,Countywide PD Service,Nursing Independent Sector
Cambridgeshire County Council,21-Jan-16,19884793-12721997,-926.11,Making Space#1,Care Establishment,3 - Operations - Countywide Services,Countywide PD Service,Nursing Independent Sector
Cambridgeshire County Council,21-Jan-16,19884794-12721998,-926.11,Making Space#1,Care Establishment,3 - Operations - Countywide Services,Countywide PD Service,Nursing Independent Sector
Cambridgeshire County Council,21-Jan-16,19886724-12721969,-926.11,Making Space#1,Care Establishment,3 - Operations - Countywide Services,Countywide PD Service,Nursing Independent Sector
Cambridgeshire County Council,21-Jan-16,19886726-12721971,-926.11,Making Space#1,Care Establishment,3 - Operations - Countywide Services,Countywide PD Service,Nursing Independent Sector
Cambridgeshire County Council,21-Jan-16,19886730-12721975,-926.11,Making Space#1,Care Establishment,3 - Operations - Countywide Services,Countywide PD Service,Nursing Independent Sector
Cambridgeshire County Council,21-Jan-16,19886731-12721976,-926.11,Making Space#1,Care Establishment,3 - Operations - Countywide Services,Countywide PD Service,Nursing Independent Sector
Cambridgeshire County Council,21-Jan-16,19886733-12721922,-926.11,Making Space#1,Care Establishment,3 - Operations - Countywide Services,Countywide PD Service,Nursing Independent Sector
Cambridgeshire County Council,21-Jan-16,19886734-12721923,-926.11,Making Space#1,Care Establishment,3 - Operations - Countywide Services,Countywide PD Service,Nursing Independent Sector
Cambridgeshire County Council,21-Jan-16,19886738-12721927,-926.11,Making Space#1,Care Establishment,3 - Operations - Countywide Services,Countywide PD Service,Nursing Independent Sector
Cambridgeshire County Council,21-Jan-16,19886739-12721928,-926.11,Making Space#1,Care Establishment,3 - Operations - Countywide Services,Countywide PD Service,Nursing Independent Sector
Cambridgeshire County Council,21-Jan-16,19886740-12721929,-926.11,Making Space#1,Care Establishment,3 - Operations - Countywide Services,Countywide PD Service,Nursing Independent Sector
Cambridgeshire County Council,21-Jan-16,19886743-12721932,-926.11,Making Space#1,Care Establishment,3 - Operations - Countywide Services,Countywide PD Service,Nursing Independent Sector
Cambridgeshire County Council,21-Jan-16,19886745-12721934,-926.11,Making Space#1,Care Establishment,3 - Operations - Countywide Services,Countywide PD Service,Nursing Independent Sector
Cambridgeshire County Council,21-Jan-16,19886746-12721935,-926.11,Making Space#1,Care Establishment,3 - Operations - Countywide Services,Countywide PD Service,Nursing Independent Sector
Cambridgeshire County Council,21-Jan-16,19886751-12721940,-926.11,Making Space#1,Care Establishment,3 - Operations - Countywide Services,Countywide PD Service,Nursing Independent Sector
Cambridgeshire County Council,21-Jan-16,19886754-12721943,-926.11,Making Space#1,Care Establishment,3 - Operations - Countywide Services,Countywide PD Service,Nursing Independent Sector
Cambridgeshire County Council,21-Jan-16,19886756-12721945,-926.11,Making Space#1,Care Establishment,3 - Operations - Countywide Services,Countywide PD Service,Nursing Independent Sector
Cambridgeshire County Council,21-Jan-16,19886757-12721946,-926.11,Making Space#1,Care Establishment,3 - Operations - Countywide Services,Countywide PD Service,Nursing Independent Sector
Cambridgeshire County Council,21-Jan-16,19886758-12721947,-926.11,Making Space#1,Care Establishment,3 - Operations - Countywide Services,Countywide PD Service,Nursing Independent Sector
Cambridgeshire County Council,21-Jan-16,19886759-12721948,-926.11,Making Space#1,Care Establishment,3 - Operations - Countywide Services,Countywide PD Service,Nursing Independent Sector
Cambridgeshire County Council,21-Jan-16,19886760-12721949,-926.11,Making Space#1,Care Establishment,3 - Operations - Countywide Services,Countywide PD Service,Nursing Independent Sector
Cambridgeshire County Council,21-Jan-16,19886764-12721953,-926.11,Making Space#1,Care Establishment,3 - Operations - Countywide Services,Countywide PD Service,Nursing Independent Sector
Cambridgeshire County Council,21-Jan-16,19886766-12721955,-926.11,Making Space#1,Care Establishment,3 - Operations - Countywide Services,Countywide PD Service,Nursing Independent Sector
Cambridgeshire County Council,21-Jan-16,19886769-12721958,-926.11,Making Space#1,Care Establishment,3 - Operations - Countywide Services,Countywide PD Service,Nursing Independent Sector
Cambridgeshire County Council,21-Jan-16,19886770-12721959,-926.11,Making Space#1,Care Establishment,3 - Operations - Countywide Services,Countywide PD Service,Nursing Independent Sector
Cambridgeshire County Council,21-Jan-16,19886771-12721960,-926.11,Making Space#1,Care Establishment,3 - Operations - Countywide Services,Countywide PD Service,Nursing Independent Sector
Cambridgeshire County Council,21-Jan-16,19886772-12721961,-926.11,Making Space#1,Care Establishment,3 - Operations - Countywide Services,Countywide PD Service,Nursing Independent Sector
Cambridgeshire County Council,21-Jan-16,19886777-12721966,-926.11,Making Space#1,Care Establishment,3 - Operations - Countywide Services,Countywide PD Service,Nursing Independent Sector
Cambridgeshire County Council,21-Jan-16,19886779-12721968,-926.11,Making Space#1,Care Establishment,3 - Operations - Countywide Services,Countywide PD Service,Nursing Independent Sector
Cambridgeshire County Council,14-Jan-16,19780288-12668834,-916.94,The Manor Cheshire Home,Care Establishment,3 - Operations - Countywide Services,Countywide PD Service,Residential Independent Sector
Cambridgeshire County Council,14-Jan-16,19791904-12668832,-916.94,The Manor Cheshire Home,Care Establishment,3 - Operations - Countywide Services,Countywide PD Service,Residential Independent Sector
Cambridgeshire County Council,14-Jan-16,19791905-12668833,-916.94,The Manor Cheshire Home,Care Establishment,3 - Operations - Countywide Services,Countywide PD Service,Residential Independent Sector
Cambridgeshire County Council,08-Jan-16,19782198-12636323,-900,Hunters Healthcare (Hunters Down),Care Establishment,2 - Commissioning - Older people Pool,Hunts O P  Team,Residential Independent Sector
Cambridgeshire County Council,08-Jan-16,19782199-12636324,-900,Hunters Healthcare (Hunters Down),Care Establishment,2 - Commissioning - Older people Pool,Hunts O P  Team,Residential Independent Sector
Cambridgeshire County Council,08-Jan-16,19782201-12636326,-900,Hunters Healthcare (Hunters Down),Care Establishment,2 - Commissioning - Older people Pool,Hunts O P  Team,Residential Independent Sector
Cambridgeshire County Council,08-Jan-16,19782202-12636327,-900,Hunters Healthcare (Hunters Down),Care Establishment,2 - Commissioning - Older people Pool,Hunts O P  Team,Residential Independent Sector
Cambridgeshire County Council,08-Jan-16,19782204-12636329,-900,Hunters Healthcare (Hunters Down),Care Establishment,2 - Commissioning - Older people Pool,Hunts O P  Team,Residential Independent Sector
Cambridgeshire County Council,08-Jan-16,19782207-12636332,-900,Hunters Healthcare (Hunters Down),Care Establishment,2 - Commissioning - Older people Pool,Hunts O P  Team,Residential Independent Sector
Cambridgeshire County Council,07-Jan-16,19770932-12610025,-894.37,Andys Taxis Limited,Trade Supplier,S&C,H to S Transport - Secondary,Home to School - Contract
Cambridgeshire County Council,14-Jan-16,19485193-12674560,-874.25,Granta Housing- 71 /73 Fen Road,Care Establishment,2 - Operations - Learning Disability,LDP City Team,Nursing Independent Sector
Cambridgeshire County Council,07-Jan-16,19770713-12610223,-855.5,Southern Electric Plc,Trade Supplier,Local Infrastructure & Street Management,Bridges Works,Bridges
Cambridgeshire County Council,29-Jan-16,19883689-12748413,-851.91,Abbey Healthcare (Huntingdon) Ltd,Care Establishment,2 - Commissioning - Older people Pool,Older People Mental Health Hunts,Nursing Independent Sector
Cambridgeshire County Council,29-Jan-16,19883690-12748414,-851.91,Abbey Healthcare (Huntingdon) Ltd,Care Establishment,2 - Commissioning - Older people Pool,Older People Mental Health Hunts,Nursing Independent Sector
Cambridgeshire County Council,29-Jan-16,19883691-12748415,-851.91,Abbey Healthcare (Huntingdon) Ltd,Care Establishment,2 - Commissioning - Older people Pool,Older People Mental Health Hunts,Nursing Independent Sector
Cambridgeshire County Council,29-Jan-16,19883692-12748404,-851.91,Abbey Healthcare (Huntingdon) Ltd,Care Establishment,2 - Commissioning - Older people Pool,Older People Mental Health Hunts,Nursing Independent Sector
Cambridgeshire County Council,29-Jan-16,19883693-12748405,-851.91,Abbey Healthcare (Huntingdon) Ltd,Care Establishment,2 - Commissioning - Older people Pool,Older People Mental Health Hunts,Nursing Independent Sector
Cambridgeshire County Council,29-Jan-16,19883695-12748407,-851.91,Abbey Healthcare (Huntingdon) Ltd,Care Establishment,2 - Commissioning - Older people Pool,Older People Mental Health Hunts,Nursing Independent Sector
Cambridgeshire County Council,29-Jan-16,19883696-12748408,-851.91,Abbey Healthcare (Huntingdon) Ltd,Care Establishment,2 - Commissioning - Older people Pool,Older People Mental Health Hunts,Nursing Independent Sector
Cambridgeshire County Council,29-Jan-16,19883697-12748409,-851.91,Abbey Healthcare (Huntingdon) Ltd,Care Establishment,2 - Commissioning - Older people Pool,Older People Mental Health Hunts,Nursing Independent Sector
Cambridgeshire County Council,29-Jan-16,19883698-12748410,-851.91,Abbey Healthcare (Huntingdon) Ltd,Care Establishment,2 - Commissioning - Older people Pool,Older People Mental Health Hunts,Nursing Independent Sector
Cambridgeshire County Council,29-Jan-16,19883699-12748411,-851.91,Abbey Healthcare (Huntingdon) Ltd,Care Establishment,2 - Commissioning - Older people Pool,Older People Mental Health Hunts,Nursing Independent Sector
Cambridgeshire County Council,29-Jan-16,19883700-12748412,-851.91,Abbey Healthcare (Huntingdon) Ltd,Care Establishment,2 - Commissioning - Older people Pool,Older People Mental Health Hunts,Nursing Independent Sector
Cambridgeshire County Council,15-Jan-16,19828649-12695425,-850,Meadows Homecare Services,Care Establishment,3 - Operations - Countywide Services,Countywide PD Service,Day and Domicillary Care Independent Sector
Cambridgeshire County Council,14-Jan-16,19736058-12669475,-835,Longueville Court,Care Establishment,2 - Commissioning - Older people Pool,Older People Mental Health Hunts,Nursing Independent Sector
Cambridgeshire County Council,14-Jan-16,19736060-12669477,-835,Longueville Court,Care Establishment,2 - Commissioning - Older people Pool,Older People Mental Health Hunts,Nursing Independent Sector
Cambridgeshire County Council,14-Jan-16,19736065-12669482,-835,Longueville Court,Care Establishment,2 - Commissioning - Older people Pool,Older People Mental Health Hunts,Nursing Independent Sector
Cambridgeshire County Council,14-Jan-16,19736066-12669483,-835,Longueville Court,Care Establishment,2 - Commissioning - Older people Pool,Older People Mental Health Hunts,Nursing Independent Sector
Cambridgeshire County Council,14-Jan-16,19736067-12669484,-835,Longueville Court,Care Establishment,2 - Commissioning - Older people Pool,Older People Mental Health Hunts,Nursing Independent Sector
Cambridgeshire County Council,14-Jan-16,19736068-12669485,-835,Longueville Court,Care Establishment,2 - Commissioning - Older people Pool,Older People Mental Health Hunts,Nursing Independent Sector
Cambridgeshire County Council,14-Jan-16,19736069-12669486,-835,Longueville Court,Care Establishment,2 - Commissioning - Older people Pool,Older People Mental Health Hunts,Nursing Independent Sector
Cambridgeshire County Council,14-Jan-16,19736070-12669487,-835,Longueville Court,Care Establishment,2 - Commissioning - Older people Pool,Older People Mental Health Hunts,Nursing Independent Sector
Cambridgeshire County Council,14-Jan-16,19736071-12669488,-835,Longueville Court,Care Establishment,2 - Commissioning - Older people Pool,Older People Mental Health Hunts,Nursing Independent Sector
Cambridgeshire County Council,14-Jan-16,19736078-12669493,-835,Longueville Court,Care Establishment,2 - Commissioning - Older people Pool,Older People Mental Health Hunts,Nursing Independent Sector
Cambridgeshire County Council,14-Jan-16,19736079-12669494,-835,Longueville Court,Care Establishment,2 - Commissioning - Older people Pool,Older People Mental Health Hunts,Nursing Independent Sector
Cambridgeshire County Council,14-Jan-16,19736085-12669446,-835,Longueville Court,Care Establishment,2 - Commissioning - Older people Pool,Older People Mental Health Hunts,Nursing Independent Sector
Cambridgeshire County Council,14-Jan-16,19736086-12669447,-835,Longueville Court,Care Establishment,2 - Commissioning - Older people Pool,Older People Mental Health Hunts,Nursing Independent Sector
Cambridgeshire County Council,14-Jan-16,19736089-12669450,-835,Longueville Court,Care Establishment,2 - Commissioning - Older people Pool,Older People Mental Health Hunts,Nursing Independent Sector
Cambridgeshire County Council,14-Jan-16,19736090-12669451,-835,Longueville Court,Care Establishment,2 - Commissioning - Older people Pool,Older People Mental Health Hunts,Nursing Independent Sector
Cambridgeshire County Council,14-Jan-16,19736091-12669452,-835,Longueville Court,Care Establishment,2 - Commissioning - Older people Pool,Older People Mental Health Hunts,Nursing Independent Sector
Cambridgeshire County Council,14-Jan-16,19736092-12669453,-835,Longueville Court,Care Establishment,2 - Commissioning - Older people Pool,Older People Mental Health Hunts,Nursing Independent Sector
Cambridgeshire County Council,14-Jan-16,19736096-12669455,-835,Longueville Court,Care Establishment,2 - Commissioning - Older people Pool,Older People Mental Health Hunts,Nursing Independent Sector
Cambridgeshire County Council,14-Jan-16,19736097-12669456,-835,Longueville Court,Care Establishment,2 - Commissioning - Older people Pool,Older People Mental Health Hunts,Nursing Independent Sector
Cambridgeshire County Council,14-Jan-16,19736099-12669458,-835,Longueville Court,Care Establishment,2 - Commissioning - Older people Pool,Older People Mental Health Hunts,Nursing Independent Sector
Cambridgeshire County Council,14-Jan-16,19736104-12669462,-835,Longueville Court,Care Establishment,2 - Commissioning - Older people Pool,Older People Mental Health Hunts,Nursing Independent Sector
Cambridgeshire County Council,14-Jan-16,19736105-12669463,-835,Longueville Court,Care Establishment,2 - Commissioning - Older people Pool,Older People Mental Health Hunts,Nursing Independent Sector
Cambridgeshire County Council,14-Jan-16,19736113-12669469,-835,Longueville Court,Care Establishment,2 - Commissioning - Older people Pool,Older People Mental Health Hunts,Nursing Independent Sector
Cambridgeshire County Council,14-Jan-16,19736114-12669470,-835,Longueville Court,Care Establishment,2 - Commissioning - Older people Pool,Older People Mental Health Hunts,Nursing Independent Sector
Cambridgeshire County Council,14-Jan-16,19736118-12669474,-835,Longueville Court,Care Establishment,2 - Commissioning - Older people Pool,Older People Mental Health Hunts,Nursing Independent Sector
Cambridgeshire County Council,14-Jan-16,19754858-12669371,-835,Longueville Court,Care Establishment,2 - Commissioning - Older people Pool,Older People Mental Health Hunts,Nursing Independent Sector
Cambridgeshire County Council,14-Jan-16,19754859-12669372,-835,Longueville Court,Care Establishment,2 - Commissioning - Older people Pool,Older People Mental Health Hunts,Nursing Independent Sector
Cambridgeshire County Council,14-Jan-16,19754860-12669373,-835,Longueville Court,Care Establishment,2 - Commissioning - Older people Pool,Older People Mental Health Hunts,Nursing Independent Sector
Cambridgeshire County Council,14-Jan-16,19754867-12669378,-835,Longueville Court,Care Establishment,2 - Commissioning - Older people Pool,Older People Mental Health Hunts,Nursing Independent Sector
Cambridgeshire County Council,14-Jan-16,19754873-12669384,-835,Longueville Court,Care Establishment,2 - Commissioning - Older people Pool,Older People Mental Health Hunts,Nursing Independent Sector
Cambridgeshire County Council,14-Jan-16,19754874-12669385,-835,Longueville Court,Care Establishment,2 - Commissioning - Older people Pool,Older People Mental Health Hunts,Nursing Independent Sector
Cambridgeshire County Council,14-Jan-16,19754877-12669388,-835,Longueville Court,Care Establishment,2 - Commissioning - Older people Pool,Older People Mental Health Hunts,Nursing Independent Sector
Cambridgeshire County Council,14-Jan-16,19754878-12669389,-835,Longueville Court,Care Establishment,2 - Commissioning - Older people Pool,Older People Mental Health Hunts,Nursing Independent Sector
Cambridgeshire County Council,14-Jan-16,19754880-12669391,-835,Longueville Court,Care Establishment,2 - Commissioning - Older people Pool,Older People Mental Health Hunts,Nursing Independent Sector
Cambridgeshire County Council,14-Jan-16,19754882-12669393,-835,Longueville Court,Care Establishment,2 - Commissioning - Older people Pool,Older People Mental Health Hunts,Nursing Independent Sector
Cambridgeshire County Council,14-Jan-16,19754883-12669394,-835,Longueville Court,Care Establishment,2 - Commissioning - Older people Pool,Older People Mental Health Hunts,Nursing Independent Sector
Cambridgeshire County Council,14-Jan-16,19754889-12669397,-835,Longueville Court,Care Establishment,2 - Commissioning - Older people Pool,Older People Mental Health Hunts,Nursing Independent Sector
Cambridgeshire County Council,14-Jan-16,19754891-12669399,-835,Longueville Court,Care Establishment,2 - Commissioning - Older people Pool,Older People Mental Health Hunts,Nursing Independent Sector
Cambridgeshire County Council,14-Jan-16,19754892-12669400,-835,Longueville Court,Care Establishment,2 - Commissioning - Older people Pool,Older People Mental Health Hunts,Nursing Independent Sector
Cambridgeshire County Council,14-Jan-16,19754896-12669404,-835,Longueville Court,Care Establishment,2 - Commissioning - Older people Pool,Older People Mental Health Hunts,Nursing Independent Sector
Cambridgeshire County Council,14-Jan-16,19754898-12669406,-835,Longueville Court,Care Establishment,2 - Commissioning - Older people Pool,Older People Mental Health Hunts,Nursing Independent Sector
Cambridgeshire County Council,14-Jan-16,19754903-12669410,-835,Longueville Court,Care Establishment,2 - Commissioning - Older people Pool,Older People Mental Health Hunts,Nursing Independent Sector
Cambridgeshire County Council,14-Jan-16,19754905-12669411,-835,Longueville Court,Care Establishment,2 - Commissioning - Older people Pool,Older People Mental Health Hunts,Nursing Independent Sector
Cambridgeshire County Council,14-Jan-16,19754907-12669413,-835,Longueville Court,Care Establishment,2 - Commissioning - Older people Pool,Older People Mental Health Hunts,Nursing Independent Sector
Cambridgeshire County Council,14-Jan-16,19754909-12669415,-835,Longueville Court,Care Establishment,2 - Commissioning - Older people Pool,Older People Mental Health Hunts,Nursing Independent Sector
Cambridgeshire County Council,14-Jan-16,19754910-12669416,-835,Longueville Court,Care Establishment,2 - Commissioning - Older people Pool,Older People Mental Health Hunts,Nursing Independent Sector
Cambridgeshire County Council,14-Jan-16,19754912-12669417,-835,Longueville Court,Care Establishment,2 - Commissioning - Older people Pool,Older People Mental Health Hunts,Nursing Independent Sector
Cambridgeshire County Council,14-Jan-16,19754913-12669418,-835,Longueville Court,Care Establishment,2 - Commissioning - Older people Pool,Older People Mental Health Hunts,Nursing Independent Sector
Cambridgeshire County Council,14-Jan-16,19754914-12669419,-835,Longueville Court,Care Establishment,2 - Commissioning - Older people Pool,Older People Mental Health Hunts,Nursing Independent Sector
Cambridgeshire County Council,14-Jan-16,19754915-12669420,-835,Longueville Court,Care Establishment,2 - Commissioning - Older people Pool,Older People Mental Health Hunts,Nursing Independent Sector
Cambridgeshire County Council,14-Jan-16,19782663-12669426,-835,Longueville Court,Care Establishment,2 - Commissioning - Older people Pool,Older People Mental Health Hunts,Nursing Independent Sector
Cambridgeshire County Council,14-Jan-16,19782667-12669428,-835,Longueville Court,Care Establishment,2 - Commissioning - Older people Pool,Older People Mental Health Hunts,Nursing Independent Sector
Cambridgeshire County Council,14-Jan-16,19782668-12669429,-835,Longueville Court,Care Establishment,2 - Commissioning - Older people Pool,Older People Mental Health Hunts,Nursing Independent Sector
Cambridgeshire County Council,14-Jan-16,19782672-12669432,-835,Longueville Court,Care Establishment,2 - Commissioning - Older people Pool,Older People Mental Health Hunts,Nursing Independent Sector
Cambridgeshire County Council,14-Jan-16,19782679-12669436,-835,Longueville Court,Care Establishment,2 - Commissioning - Older people Pool,Older People Mental Health Hunts,Nursing Independent Sector
Cambridgeshire County Council,14-Jan-16,19782683-12669439,-835,Longueville Court,Care Establishment,2 - Commissioning - Older people Pool,Older People Mental Health Hunts,Nursing Independent Sector
Cambridgeshire County Council,14-Jan-16,19782684-12669440,-835,Longueville Court,Care Establishment,2 - Commissioning - Older people Pool,Older People Mental Health Hunts,Nursing Independent Sector
Cambridgeshire County Council,14-Jan-16,19782687-12669441,-835,Longueville Court,Care Establishment,2 - Commissioning - Older people Pool,Older People Mental Health Hunts,Nursing Independent Sector
Cambridgeshire County Council,14-Jan-16,19782689-12669443,-835,Longueville Court,Care Establishment,2 - Commissioning - Older people Pool,Older People Mental Health Hunts,Nursing Independent Sector
Cambridgeshire County Council,14-Jan-16,19793495-12669345,-835,Longueville Court,Care Establishment,2 - Commissioning - Older people Pool,Older People Mental Health Hunts,Nursing Independent Sector
Cambridgeshire County Council,14-Jan-16,19793496-12669346,-835,Longueville Court,Care Establishment,2 - Commissioning - Older people Pool,Older People Mental Health Hunts,Nursing Independent Sector
Cambridgeshire County Council,14-Jan-16,19793500-12669348,-835,Longueville Court,Care Establishment,2 - Commissioning - Older people Pool,Older People Mental Health Hunts,Nursing Independent Sector
Cambridgeshire County Council,14-Jan-16,19793504-12669349,-835,Longueville Court,Care Establishment,2 - Commissioning - Older people Pool,Older People Mental Health Hunts,Nursing Independent Sector
Cambridgeshire County Council,14-Jan-16,19793505-12669350,-835,Longueville Court,Care Establishment,2 - Commissioning - Older people Pool,Older People Mental Health Hunts,Nursing Independent Sector
Cambridgeshire County Council,14-Jan-16,19793506-12669351,-835,Longueville Court,Care Establishment,2 - Commissioning - Older people Pool,Older People Mental Health Hunts,Nursing Independent Sector
Cambridgeshire County Council,14-Jan-16,19793510-12669353,-835,Longueville Court,Care Establishment,2 - Commissioning - Older people Pool,Older People Mental Health Hunts,Nursing Independent Sector
Cambridgeshire County Council,14-Jan-16,19793513-12669356,-835,Longueville Court,Care Establishment,2 - Commissioning - Older people Pool,Older People Mental Health Hunts,Nursing Independent Sector
Cambridgeshire County Council,14-Jan-16,19793515-12669357,-835,Longueville Court,Care Establishment,2 - Commissioning - Older people Pool,Older People Mental Health Hunts,Nursing Independent Sector
Cambridgeshire County Council,14-Jan-16,19793532-12669365,-835,Longueville Court,Care Establishment,2 - Commissioning - Older people Pool,Older People Mental Health Hunts,Nursing Independent Sector
Cambridgeshire County Council,14-Jan-16,19793534-12669367,-835,Longueville Court,Care Establishment,2 - Commissioning - Older people Pool,Older People Mental Health Hunts,Nursing Independent Sector
Cambridgeshire County Council,14-Jan-16,19793538-12669368,-835,Longueville Court,Care Establishment,2 - Commissioning - Older people Pool,Older People Mental Health Hunts,Nursing Independent Sector
Cambridgeshire County Council,14-Jan-16,19793545-12669337,-835,Longueville Court,Care Establishment,2 - Commissioning - Older people Pool,Older People Mental Health Hunts,Nursing Independent Sector
Cambridgeshire County Council,14-Jan-16,19793558-12669340,-835,Longueville Court,Care Establishment,2 - Commissioning - Older people Pool,Older People Mental Health Hunts,Nursing Independent Sector
Cambridgeshire County Council,14-Jan-16,19793564-12669343,-835,Longueville Court,Care Establishment,2 - Commissioning - Older people Pool,Older People Mental Health Hunts,Nursing Independent Sector
Cambridgeshire County Council,14-Jan-16,19793565-12669344,-835,Longueville Court,Care Establishment,2 - Commissioning - Older people Pool,Older People Mental Health Hunts,Nursing Independent Sector
Cambridgeshire County Council,14-Jan-16,19828918-12669306,-835,Longueville Court,Care Establishment,2 - Commissioning - Older people Pool,Older People Mental Health Hunts,Nursing Independent Sector
Cambridgeshire County Council,14-Jan-16,19828921-12669309,-835,Longueville Court,Care Establishment,2 - Commissioning - Older people Pool,Older People Mental Health Hunts,Nursing Independent Sector
Cambridgeshire County Council,14-Jan-16,19828922-12669310,-835,Longueville Court,Care Establishment,2 - Commissioning - Older people Pool,Older People Mental Health Hunts,Nursing Independent Sector
Cambridgeshire County Council,14-Jan-16,19828926-12669314,-835,Longueville Court,Care Establishment,2 - Commissioning - Older people Pool,Older People Mental Health Hunts,Nursing Independent Sector
Cambridgeshire County Council,14-Jan-16,19828927-12669281,-835,Longueville Court,Care Establishment,2 - Commissioning - Older people Pool,Older People Mental Health Hunts,Nursing Independent Sector
Cambridgeshire County Council,14-Jan-16,19828930-12669284,-835,Longueville Court,Care Establishment,2 - Commissioning - Older people Pool,Older People Mental Health Hunts,Nursing Independent Sector
Cambridgeshire County Council,14-Jan-16,19828932-12669286,-835,Longueville Court,Care Establishment,2 - Commissioning - Older people Pool,Older People Mental Health Hunts,Nursing Independent Sector
Cambridgeshire County Council,14-Jan-16,19828936-12669289,-835,Longueville Court,Care Establishment,2 - Commissioning - Older people Pool,Older People Mental Health Hunts,Nursing Independent Sector
Cambridgeshire County Council,14-Jan-16,19828939-12669291,-835,Longueville Court,Care Establishment,2 - Commissioning - Older people Pool,Older People Mental Health Hunts,Nursing Independent Sector
Cambridgeshire County Council,14-Jan-16,19828942-12669294,-835,Longueville Court,Care Establishment,2 - Commissioning - Older people Pool,Older People Mental Health Hunts,Nursing Independent Sector
Cambridgeshire County Council,14-Jan-16,19828944-12669296,-835,Longueville Court,Care Establishment,2 - Commissioning - Older people Pool,Older People Mental Health Hunts,Nursing Independent Sector
Cambridgeshire County Council,14-Jan-16,19828946-12669297,-835,Longueville Court,Care Establishment,2 - Commissioning - Older people Pool,Older People Mental Health Hunts,Nursing Independent Sector
Cambridgeshire County Council,14-Jan-16,19828951-12669301,-835,Longueville Court,Care Establishment,2 - Commissioning - Older people Pool,Older People Mental Health Hunts,Nursing Independent Sector
Cambridgeshire County Council,14-Jan-16,19828954-12669303,-835,Longueville Court,Care Establishment,2 - Commissioning - Older people Pool,Older People Mental Health Hunts,Nursing Independent Sector
Cambridgeshire County Council,14-Jan-16,19828958-12669305,-835,Longueville Court,Care Establishment,2 - Commissioning - Older people Pool,Older People Mental Health Hunts,Nursing Independent Sector
Cambridgeshire County Council,14-Jan-16,19834367-12669316,-835,Longueville Court,Care Establishment,2 - Commissioning - Older people Pool,Older People Mental Health Hunts,Nursing Independent Sector
Cambridgeshire County Council,14-Jan-16,19834370-12669319,-835,Longueville Court,Care Establishment,2 - Commissioning - Older people Pool,Older People Mental Health Hunts,Nursing Independent Sector
Cambridgeshire County Council,14-Jan-16,19834371-12669320,-835,Longueville Court,Care Establishment,2 - Commissioning - Older people Pool,Older People Mental Health Hunts,Nursing Independent Sector
Cambridgeshire County Council,14-Jan-16,19834373-12669322,-835,Longueville Court,Care Establishment,2 - Commissioning - Older people Pool,Older People Mental Health Hunts,Nursing Independent Sector
Cambridgeshire County Council,14-Jan-16,19834375-12669324,-835,Longueville Court,Care Establishment,2 - Commissioning - Older people Pool,Older People Mental Health Hunts,Nursing Independent Sector
Cambridgeshire County Council,14-Jan-16,19834377-12669326,-835,Longueville Court,Care Establishment,2 - Commissioning - Older people Pool,Older People Mental Health Hunts,Nursing Independent Sector
Cambridgeshire County Council,14-Jan-16,19834382-12669330,-835,Longueville Court,Care Establishment,2 - Commissioning - Older people Pool,Older People Mental Health Hunts,Nursing Independent Sector
Cambridgeshire County Council,14-Jan-16,19834383-12669331,-835,Longueville Court,Care Establishment,2 - Commissioning - Older people Pool,Older People Mental Health Hunts,Nursing Independent Sector
Cambridgeshire County Council,14-Jan-16,19834386-12669334,-835,Longueville Court,Care Establishment,2 - Commissioning - Older people Pool,Older People Mental Health Hunts,Nursing Independent Sector
Cambridgeshire County Council,14-Jan-16,19834387-12669335,-835,Longueville Court,Care Establishment,2 - Commissioning - Older people Pool,Older People Mental Health Hunts,Nursing Independent Sector
Cambridgeshire County Council,14-Jan-16,19778772-12669424,-821.43,Longueville Court,Care Establishment,3 - Operations - Countywide Services,Countywide PD Service,Residential Independent Sector
Cambridgeshire County Council,08-Jan-16,19734216-12637283,-808.41,Caerus Care Ltd,Care Establishment,2 - Operations - Learning Disability,LDP Fenland Team,Supported Living
Cambridgeshire County Council,08-Jan-16,19734219-12637286,-808.41,Caerus Care Ltd,Care Establishment,2 - Operations - Learning Disability,LDP Fenland Team,Supported Living
Cambridgeshire County Council,08-Jan-16,19734220-12637287,-808.41,Caerus Care Ltd,Care Establishment,2 - Operations - Learning Disability,LDP Fenland Team,Supported Living
Cambridgeshire County Council,08-Jan-16,19734223-12637290,-808.41,Caerus Care Ltd,Care Establishment,2 - Operations - Learning Disability,LDP Fenland Team,Supported Living
Cambridgeshire County Council,14-Jan-16,19835752-12668778,-808.02,The Manor Cheshire Home,Care Establishment,3 - Operations - Countywide Services,Countywide PD Service,Residential Independent Sector
Cambridgeshire County Council,14-Jan-16,19835753-12668779,-808.02,The Manor Cheshire Home,Care Establishment,3 - Operations - Countywide Services,Countywide PD Service,Residential Independent Sector
Cambridgeshire County Council,14-Jan-16,19835754-12668780,-808.02,The Manor Cheshire Home,Care Establishment,3 - Operations - Countywide Services,Countywide PD Service,Residential Independent Sector
Cambridgeshire County Council,14-Jan-16,19835757-12668783,-808.02,The Manor Cheshire Home,Care Establishment,3 - Operations - Countywide Services,Countywide PD Service,Residential Independent Sector
Cambridgeshire County Council,14-Jan-16,19835759-12668785,-808.02,The Manor Cheshire Home,Care Establishment,3 - Operations - Countywide Services,Countywide PD Service,Residential Independent Sector
Cambridgeshire County Council,14-Jan-16,19835760-12668786,-808.02,The Manor Cheshire Home,Care Establishment,3 - Operations - Countywide Services,Countywide PD Service,Residential Independent Sector
Cambridgeshire County Council,14-Jan-16,19835763-12668789,-808.02,The Manor Cheshire Home,Care Establishment,3 - Operations - Countywide Services,Countywide PD Service,Residential Independent Sector
Cambridgeshire County Council,14-Jan-16,19835767-12668793,-808.02,The Manor Cheshire Home,Care Establishment,3 - Operations - Countywide Services,Countywide PD Service,Residential Independent Sector
Cambridgeshire County Council,14-Jan-16,19835768-12668794,-808.02,The Manor Cheshire Home,Care Establishment,3 - Operations - Countywide Services,Countywide PD Service,Residential Independent Sector
Cambridgeshire County Council,14-Jan-16,19835775-12668801,-808.02,The Manor Cheshire Home,Care Establishment,3 - Operations - Countywide Services,Countywide PD Service,Residential Independent Sector
Cambridgeshire County Council,14-Jan-16,19835779-12668805,-808.02,The Manor Cheshire Home,Care Establishment,3 - Operations - Countywide Services,Countywide PD Service,Residential Independent Sector
Cambridgeshire County Council,14-Jan-16,19835780-12668806,-808.02,The Manor Cheshire Home,Care Establishment,3 - Operations - Countywide Services,Countywide PD Service,Residential Independent Sector
Cambridgeshire County Council,14-Jan-16,19829872-12665351,-793.81,Making Space#1,Care Establishment,3 - Operations - Countywide Services,Countywide PD Service,Nursing Independent Sector
Cambridgeshire County Council,21-Jan-16,19884789-12721993,-793.81,Making Space#1,Care Establishment,3 - Operations - Countywide Services,Countywide PD Service,Nursing Independent Sector
Cambridgeshire County Council,08-Jan-16,19581735-12626276,-773.9,Thera East Anglia,Trust (Other),2 - Operations - Learning Disability,LDP E Cambs Team,Supported Living
Cambridgeshire County Council,14-Jan-16,19487190-12674581,-771.43,Granta Housing- 71 /73 Fen Road,Care Establishment,2 - Operations - Learning Disability,LDP South Cambs Team,Nursing Independent Sector
Cambridgeshire County Council,08-Jan-16,19782209-12636334,-771.43,Hunters Healthcare (Hunters Down),Care Establishment,2 - Commissioning - Older people Pool,Hunts O P  Team,Residential Independent Sector
Cambridgeshire County Council,08-Jan-16,19734411-12621270,-755.91,25 Scotney Street,Care Establishment,2 - Operations - Learning Disability,LDP Huntingdonshire Team,Supported Living
Cambridgeshire County Council,08-Jan-16,19734412-12621271,-755.91,25 Scotney Street,Care Establishment,2 - Operations - Learning Disability,LDP Huntingdonshire Team,Supported Living
Cambridgeshire County Council,08-Jan-16,19734413-12621272,-755.91,25 Scotney Street,Care Establishment,2 - Operations - Learning Disability,LDP Huntingdonshire Team,Supported Living
Cambridgeshire County Council,08-Jan-16,19734420-12621279,-755.91,25 Scotney Street,Care Establishment,2 - Operations - Learning Disability,LDP Huntingdonshire Team,Supported Living
Cambridgeshire County Council,08-Jan-16,19734421-12621280,-755.91,25 Scotney Street,Care Establishment,2 - Operations - Learning Disability,LDP Huntingdonshire Team,Supported Living
Cambridgeshire County Council,08-Jan-16,19734424-12621283,-755.91,25 Scotney Street,Care Establishment,2 - Operations - Learning Disability,LDP Huntingdonshire Team,Supported Living
Cambridgeshire County Council,08-Jan-16,19734427-12621286,-755.91,25 Scotney Street,Care Establishment,2 - Operations - Learning Disability,LDP Huntingdonshire Team,Supported Living
Cambridgeshire County Council,08-Jan-16,19734432-12621249,-755.91,25 Scotney Street,Care Establishment,2 - Operations - Learning Disability,LDP Huntingdonshire Team,Supported Living
Cambridgeshire County Council,08-Jan-16,19734435-12621252,-755.91,25 Scotney Street,Care Establishment,2 - Operations - Learning Disability,LDP Huntingdonshire Team,Supported Living
Cambridgeshire County Council,08-Jan-16,19734436-12621253,-755.91,25 Scotney Street,Care Establishment,2 - Operations - Learning Disability,LDP Huntingdonshire Team,Supported Living
Cambridgeshire County Council,08-Jan-16,19734442-12621259,-755.91,25 Scotney Street,Care Establishment,2 - Operations - Learning Disability,LDP Huntingdonshire Team,Supported Living
Cambridgeshire County Council,08-Jan-16,19734443-12621260,-755.91,25 Scotney Street,Care Establishment,2 - Operations - Learning Disability,LDP Huntingdonshire Team,Supported Living
Cambridgeshire County Council,08-Jan-16,19734444-12621261,-755.91,25 Scotney Street,Care Establishment,2 - Operations - Learning Disability,LDP Huntingdonshire Team,Supported Living
Cambridgeshire County Council,08-Jan-16,19734446-12621263,-755.91,25 Scotney Street,Care Establishment,2 - Operations - Learning Disability,LDP Huntingdonshire Team,Supported Living
Cambridgeshire County Council,08-Jan-16,19734448-12621265,-755.91,25 Scotney Street,Care Establishment,2 - Operations - Learning Disability,LDP Huntingdonshire Team,Supported Living
Cambridgeshire County Council,08-Jan-16,19734451-12621268,-755.91,25 Scotney Street,Care Establishment,2 - Operations - Learning Disability,LDP Huntingdonshire Team,Supported Living
Cambridgeshire County Council,08-Jan-16,19734452-12621269,-755.91,25 Scotney Street,Care Establishment,2 - Operations - Learning Disability,LDP Huntingdonshire Team,Supported Living
Cambridgeshire County Council,08-Jan-16,19735154-12621226,-755.91,25 Scotney Street,Care Establishment,2 - Operations - Learning Disability,LDP Huntingdonshire Team,Supported Living
Cambridgeshire County Council,08-Jan-16,19735162-12621234,-755.91,25 Scotney Street,Care Establishment,2 - Operations - Learning Disability,LDP Huntingdonshire Team,Supported Living
Cambridgeshire County Council,08-Jan-16,19735164-12621236,-755.91,25 Scotney Street,Care Establishment,2 - Operations - Learning Disability,LDP Huntingdonshire Team,Supported Living
Cambridgeshire County Council,08-Jan-16,19735167-12621239,-755.91,25 Scotney Street,Care Establishment,2 - Operations - Learning Disability,LDP Huntingdonshire Team,Supported Living
Cambridgeshire County Council,08-Jan-16,19735173-12621245,-755.91,25 Scotney Street,Care Establishment,2 - Operations - Learning Disability,LDP Huntingdonshire Team,Supported Living
Cambridgeshire County Council,08-Jan-16,19735896-12621178,-755.91,25 Scotney Street,Care Establishment,2 - Operations - Learning Disability,LDP Huntingdonshire Team,Supported Living
Cambridgeshire County Council,08-Jan-16,19735897-12621179,-755.91,25 Scotney Street,Care Establishment,2 - Operations - Learning Disability,LDP Huntingdonshire Team,Supported Living
Cambridgeshire County Council,08-Jan-16,19735899-12621181,-755.91,25 Scotney Street,Care Establishment,2 - Operations - Learning Disability,LDP Huntingdonshire Team,Supported Living
Cambridgeshire County Council,08-Jan-16,19735903-12621185,-755.91,25 Scotney Street,Care Establishment,2 - Operations - Learning Disability,LDP Huntingdonshire Team,Supported Living
Cambridgeshire County Council,08-Jan-16,19735905-12621187,-755.91,25 Scotney Street,Care Establishment,2 - Operations - Learning Disability,LDP Huntingdonshire Team,Supported Living
Cambridgeshire County Council,08-Jan-16,19735911-12621193,-755.91,25 Scotney Street,Care Establishment,2 - Operations - Learning Disability,LDP Huntingdonshire Team,Supported Living
Cambridgeshire County Council,08-Jan-16,19735918-12621200,-755.91,25 Scotney Street,Care Establishment,2 - Operations - Learning Disability,LDP Huntingdonshire Team,Supported Living
Cambridgeshire County Council,08-Jan-16,19735924-12621206,-755.91,25 Scotney Street,Care Establishment,2 - Operations - Learning Disability,LDP Huntingdonshire Team,Supported Living
Cambridgeshire County Council,08-Jan-16,19735925-12621207,-755.91,25 Scotney Street,Care Establishment,2 - Operations - Learning Disability,LDP Huntingdonshire Team,Supported Living
Cambridgeshire County Council,08-Jan-16,19735929-12621211,-755.91,25 Scotney Street,Care Establishment,2 - Operations - Learning Disability,LDP Huntingdonshire Team,Supported Living
Cambridgeshire County Council,08-Jan-16,19735931-12621213,-755.91,25 Scotney Street,Care Establishment,2 - Operations - Learning Disability,LDP Huntingdonshire Team,Supported Living
Cambridgeshire County Council,08-Jan-16,19735932-12621214,-755.91,25 Scotney Street,Care Establishment,2 - Operations - Learning Disability,LDP Huntingdonshire Team,Supported Living
Cambridgeshire County Council,08-Jan-16,19735934-12621216,-755.91,25 Scotney Street,Care Establishment,2 - Operations - Learning Disability,LDP Huntingdonshire Team,Supported Living
Cambridgeshire County Council,14-Jan-16,19753558-12670824,-738.33,Hovenden House,Care Establishment,2 - Commissioning - Older people Pool,Older People - Fenland,Residential Independent Sector
Cambridgeshire County Council,14-Jan-16,19753559-12670825,-738.33,Hovenden House,Care Establishment,2 - Commissioning - Older people Pool,Older People - Fenland,Residential Independent Sector
Cambridgeshire County Council,14-Jan-16,19753560-12670826,-738.33,Hovenden House,Care Establishment,2 - Commissioning - Older people Pool,Older People - Fenland,Residential Independent Sector
Cambridgeshire County Council,14-Jan-16,19753561-12670827,-738.33,Hovenden House,Care Establishment,2 - Commissioning - Older people Pool,Older People - Fenland,Residential Independent Sector
Cambridgeshire County Council,14-Jan-16,19753562-12670828,-738.33,Hovenden House,Care Establishment,2 - Commissioning - Older people Pool,Older People - Fenland,Residential Independent Sector
Cambridgeshire County Council,14-Jan-16,19753563-12670829,-738.33,Hovenden House,Care Establishment,2 - Commissioning - Older people Pool,Older People - Fenland,Residential Independent Sector
Cambridgeshire County Council,14-Jan-16,19753564-12670830,-738.33,Hovenden House,Care Establishment,2 - Commissioning - Older people Pool,Older People - Fenland,Residential Independent Sector
Cambridgeshire County Council,15-Jan-16,19828670-12695426,-728.57,Meadows Homecare Services,Care Establishment,3 - Operations - Countywide Services,Countywide PD Service,Day and Domicillary Care Independent Sector
Cambridgeshire County Council,08-Jan-16,19703446-12637401,-721.24,Caerus Care Ltd,Care Establishment,2 - Operations - Learning Disability,LDP Fenland Team,Supported Living
Cambridgeshire County Council,08-Jan-16,19703447-12637402,-721.24,Caerus Care Ltd,Care Establishment,2 - Operations - Learning Disability,LDP Fenland Team,Supported Living
Cambridgeshire County Council,08-Jan-16,19703455-12637410,-721.24,Caerus Care Ltd,Care Establishment,2 - Operations - Learning Disability,LDP Fenland Team,Supported Living
Cambridgeshire County Council,13-Jan-16,19585770-12658444,-714.69,Heron House Care Home,Care Establishment,2 - Commissioning - Older people Pool,Older People - Fenland,Nursing Independent Sector
Cambridgeshire County Council,14-Jan-16,19831013-12666371,-714.43,Availl Healthcare,Care Establishment,3 - Operations - Countywide Services,Countywide PD Service,Day and Domicillary Care Independent Sector
Cambridgeshire County Council,13-Jan-16,19585767-12658441,-705.86,Heron House Care Home,Care Establishment,2 - Commissioning - Older people Pool,Older People - Fenland,Nursing Independent Sector
Cambridgeshire County Council,14-Jan-16,19756271-12667914,-705.6,Chamarel Ld,Care Establishment,2 - Operations - Learning Disability,LDP South Cambs Team,Residential Accommodation - Adults - Independent Sector
Cambridgeshire County Council,14-Jan-16,19756272-12667915,-705.6,Chamarel Ld,Care Establishment,2 - Operations - Learning Disability,LDP South Cambs Team,Residential Accommodation - Adults - Independent Sector
Cambridgeshire County Council,14-Jan-16,19756273-12667916,-705.6,Chamarel Ld,Care Establishment,2 - Operations - Learning Disability,LDP South Cambs Team,Residential Accommodation - Adults - Independent Sector
Cambridgeshire County Council,14-Jan-16,19756274-12667917,-705.6,Chamarel Ld,Care Establishment,2 - Operations - Learning Disability,LDP South Cambs Team,Residential Accommodation - Adults - Independent Sector
Cambridgeshire County Council,14-Jan-16,19756275-12667918,-705.6,Chamarel Ld,Care Establishment,2 - Operations - Learning Disability,LDP South Cambs Team,Residential Accommodation - Adults - Independent Sector
Cambridgeshire County Council,14-Jan-16,19756276-12667919,-705.6,Chamarel Ld,Care Establishment,2 - Operations - Learning Disability,LDP South Cambs Team,Residential Accommodation - Adults - Independent Sector
Cambridgeshire County Council,14-Jan-16,19756277-12667920,-705.6,Chamarel Ld,Care Establishment,2 - Operations - Learning Disability,LDP South Cambs Team,Residential Accommodation - Adults - Independent Sector
Cambridgeshire County Council,14-Jan-16,19756278-12667921,-705.6,Chamarel Ld,Care Establishment,2 - Operations - Learning Disability,LDP South Cambs Team,Residential Accommodation - Adults - Independent Sector
Cambridgeshire County Council,14-Jan-16,19756279-12667922,-705.6,Chamarel Ld,Care Establishment,2 - Operations - Learning Disability,LDP South Cambs Team,Residential Accommodation - Adults - Independent Sector
Cambridgeshire County Council,14-Jan-16,19756280-12667923,-705.6,Chamarel Ld,Care Establishment,2 - Operations - Learning Disability,LDP South Cambs Team,Residential Accommodation - Adults - Independent Sector
Cambridgeshire County Council,14-Jan-16,19756281-12667924,-705.6,Chamarel Ld,Care Establishment,2 - Operations - Learning Disability,LDP South Cambs Team,Residential Accommodation - Adults - Independent Sector
Cambridgeshire County Council,14-Jan-16,19756282-12667925,-705.6,Chamarel Ld,Care Establishment,2 - Operations - Learning Disability,LDP South Cambs Team,Residential Accommodation - Adults - Independent Sector
Cambridgeshire County Council,14-Jan-16,19756283-12667926,-705.6,Chamarel Ld,Care Establishment,2 - Operations - Learning Disability,LDP South Cambs Team,Residential Accommodation - Adults - Independent Sector
Cambridgeshire County Council,14-Jan-16,19756284-12667927,-705.6,Chamarel Ld,Care Establishment,2 - Operations - Learning Disability,LDP South Cambs Team,Residential Accommodation - Adults - Independent Sector
Cambridgeshire County Council,14-Jan-16,19756285-12667928,-705.6,Chamarel Ld,Care Establishment,2 - Operations - Learning Disability,LDP South Cambs Team,Residential Accommodation - Adults - Independent Sector
Cambridgeshire County Council,14-Jan-16,19756286-12667929,-705.6,Chamarel Ld,Care Establishment,2 - Operations - Learning Disability,LDP South Cambs Team,Residential Accommodation - Adults - Independent Sector
Cambridgeshire County Council,14-Jan-16,19756287-12667930,-705.6,Chamarel Ld,Care Establishment,2 - Operations - Learning Disability,LDP South Cambs Team,Residential Accommodation - Adults - Independent Sector
Cambridgeshire County Council,14-Jan-16,19756288-12667931,-705.6,Chamarel Ld,Care Establishment,2 - Operations - Learning Disability,LDP South Cambs Team,Residential Accommodation - Adults - Independent Sector
Cambridgeshire County Council,14-Jan-16,19756290-12667933,-705.6,Chamarel Ld,Care Establishment,2 - Operations - Learning Disability,LDP South Cambs Team,Residential Accommodation - Adults - Independent Sector
Cambridgeshire County Council,14-Jan-16,19756291-12667934,-705.6,Chamarel Ld,Care Establishment,2 - Operations - Learning Disability,LDP South Cambs Team,Residential Accommodation - Adults - Independent Sector
Cambridgeshire County Council,14-Jan-16,19756292-12667935,-705.6,Chamarel Ld,Care Establishment,2 - Operations - Learning Disability,LDP South Cambs Team,Residential Accommodation - Adults - Independent Sector
Cambridgeshire County Council,14-Jan-16,19756293-12667936,-705.6,Chamarel Ld,Care Establishment,2 - Operations - Learning Disability,LDP South Cambs Team,Residential Accommodation - Adults - Independent Sector
Cambridgeshire County Council,14-Jan-16,19756294-12667937,-705.6,Chamarel Ld,Care Establishment,2 - Operations - Learning Disability,LDP South Cambs Team,Residential Accommodation - Adults - Independent Sector
Cambridgeshire County Council,14-Jan-16,19756295-12667938,-705.6,Chamarel Ld,Care Establishment,2 - Operations - Learning Disability,LDP South Cambs Team,Residential Accommodation - Adults - Independent Sector
Cambridgeshire County Council,14-Jan-16,19756296-12667939,-705.6,Chamarel Ld,Care Establishment,2 - Operations - Learning Disability,LDP South Cambs Team,Residential Accommodation - Adults - Independent Sector
Cambridgeshire County Council,14-Jan-16,19756297-12667940,-705.6,Chamarel Ld,Care Establishment,2 - Operations - Learning Disability,LDP South Cambs Team,Residential Accommodation - Adults - Independent Sector
Cambridgeshire County Council,14-Jan-16,19756298-12667941,-705.6,Chamarel Ld,Care Establishment,2 - Operations - Learning Disability,LDP South Cambs Team,Residential Accommodation - Adults - Independent Sector
Cambridgeshire County Council,14-Jan-16,19756299-12667942,-705.6,Chamarel Ld,Care Establishment,2 - Operations - Learning Disability,LDP South Cambs Team,Residential Accommodation - Adults - Independent Sector
Cambridgeshire County Council,14-Jan-16,19835256-12667725,-705.6,Chamarel Ld,Care Establishment,2 - Operations - Learning Disability,LDP South Cambs Team,Residential Accommodation - Adults - Independent Sector
Cambridgeshire County Council,14-Jan-16,19835258-12667727,-705.6,Chamarel Ld,Care Establishment,2 - Operations - Learning Disability,LDP South Cambs Team,Residential Accommodation - Adults - Independent Sector
Cambridgeshire County Council,14-Jan-16,19835259-12667728,-705.6,Chamarel Ld,Care Establishment,2 - Operations - Learning Disability,LDP South Cambs Team,Residential Accommodation - Adults - Independent Sector
Cambridgeshire County Council,14-Jan-16,19835263-12667732,-705.6,Chamarel Ld,Care Establishment,2 - Operations - Learning Disability,LDP South Cambs Team,Residential Accommodation - Adults - Independent Sector
Cambridgeshire County Council,14-Jan-16,19835264-12667733,-705.6,Chamarel Ld,Care Establishment,2 - Operations - Learning Disability,LDP South Cambs Team,Residential Accommodation - Adults - Independent Sector
Cambridgeshire County Council,14-Jan-16,19835269-12667738,-705.6,Chamarel Ld,Care Establishment,2 - Operations - Learning Disability,LDP South Cambs Team,Residential Accommodation - Adults - Independent Sector
Cambridgeshire County Council,14-Jan-16,19835274-12667743,-705.6,Chamarel Ld,Care Establishment,2 - Operations - Learning Disability,LDP South Cambs Team,Residential Accommodation - Adults - Independent Sector
Cambridgeshire County Council,14-Jan-16,19835275-12667744,-705.6,Chamarel Ld,Care Establishment,2 - Operations - Learning Disability,LDP South Cambs Team,Residential Accommodation - Adults - Independent Sector
Cambridgeshire County Council,14-Jan-16,19835276-12667745,-705.6,Chamarel Ld,Care Establishment,2 - Operations - Learning Disability,LDP South Cambs Team,Residential Accommodation - Adults - Independent Sector
Cambridgeshire County Council,14-Jan-16,19835279-12667748,-705.6,Chamarel Ld,Care Establishment,2 - Operations - Learning Disability,LDP South Cambs Team,Residential Accommodation - Adults - Independent Sector
Cambridgeshire County Council,14-Jan-16,19835281-12667750,-705.6,Chamarel Ld,Care Establishment,2 - Operations - Learning Disability,LDP South Cambs Team,Residential Accommodation - Adults - Independent Sector
Cambridgeshire County Council,14-Jan-16,19835282-12667751,-705.6,Chamarel Ld,Care Establishment,2 - Operations - Learning Disability,LDP South Cambs Team,Residential Accommodation - Adults - Independent Sector
Cambridgeshire County Council,14-Jan-16,19835283-12667752,-705.6,Chamarel Ld,Care Establishment,2 - Operations - Learning Disability,LDP South Cambs Team,Residential Accommodation - Adults - Independent Sector
Cambridgeshire County Council,14-Jan-16,19828258-12668157,-700,Rose Lodge,Care Establishment,2 - Commissioning - Older people Pool,Older People Mental Health Fenland,Nursing Independent Sector
Cambridgeshire County Council,14-Jan-16,19828260-12668159,-700,Rose Lodge,Care Establishment,2 - Commissioning - Older people Pool,Older People Mental Health Fenland,Nursing Independent Sector
Cambridgeshire County Council,14-Jan-16,19828261-12668160,-700,Rose Lodge,Care Establishment,2 - Commissioning - Older people Pool,Older People Mental Health Fenland,Nursing Independent Sector
Cambridgeshire County Council,14-Jan-16,19828262-12668161,-700,Rose Lodge,Care Establishment,2 - Commissioning - Older people Pool,Older People Mental Health Fenland,Nursing Independent Sector
Cambridgeshire County Council,21-Jan-16,19884086-12722664,-700,Home Close Ltd,Care Establishment,2 - Commissioning - Older people Pool,Older People - City & South,Nursing Independent Sector
Cambridgeshire County Council,21-Jan-16,19884089-12722667,-700,Home Close Ltd,Care Establishment,2 - Commissioning - Older people Pool,Older People - City & South,Nursing Independent Sector
Cambridgeshire County Council,21-Jan-16,19884091-12722669,-700,Home Close Ltd,Care Establishment,2 - Commissioning - Older people Pool,Older People - City & South,Nursing Independent Sector
Cambridgeshire County Council,21-Jan-16,19884093-12722671,-700,Home Close Ltd,Care Establishment,2 - Commissioning - Older people Pool,Older People - City & South,Nursing Independent Sector
Cambridgeshire County Council,21-Jan-16,19884094-12722672,-700,Home Close Ltd,Care Establishment,2 - Commissioning - Older people Pool,Older People - City & South,Nursing Independent Sector
Cambridgeshire County Council,21-Jan-16,19884095-12722673,-700,Home Close Ltd,Care Establishment,2 - Commissioning - Older people Pool,Older People - City & South,Nursing Independent Sector
Cambridgeshire County Council,21-Jan-16,19884096-12722674,-700,Home Close Ltd,Care Establishment,2 - Commissioning - Older people Pool,Older People - City & South,Nursing Independent Sector
Cambridgeshire County Council,21-Jan-16,19884097-12722675,-700,Home Close Ltd,Care Establishment,2 - Commissioning - Older people Pool,Older People - City & South,Nursing Independent Sector
Cambridgeshire County Council,08-Jan-16,19734221-12637288,-692.92,Caerus Care Ltd,Care Establishment,2 - Operations - Learning Disability,LDP Fenland Team,Supported Living
Cambridgeshire County Council,14-Jan-16,19835774-12668800,-692.59,The Manor Cheshire Home,Care Establishment,3 - Operations - Countywide Services,Countywide PD Service,Residential Independent Sector
Cambridgeshire County Council,08-Jan-16,19555747-12627401,-677.7,Buchan Healthcare Ltd,Care Establishment,2 - Commissioning - Older people Pool,Older People - City & South,Nursing Independent Sector
Cambridgeshire County Council,08-Jan-16,19555748-12627402,-677.7,Buchan Healthcare Ltd,Care Establishment,2 - Commissioning - Older people Pool,Older People - City & South,Nursing Independent Sector
Cambridgeshire County Council,08-Jan-16,19555750-12627404,-677.7,Buchan Healthcare Ltd,Care Establishment,2 - Commissioning - Older people Pool,Older People - City & South,Nursing Independent Sector
Cambridgeshire County Council,08-Jan-16,19555751-12627405,-677.7,Buchan Healthcare Ltd,Care Establishment,2 - Commissioning - Older people Pool,Older People - City & South,Nursing Independent Sector
Cambridgeshire County Council,08-Jan-16,19555752-12627406,-677.7,Buchan Healthcare Ltd,Care Establishment,2 - Commissioning - Older people Pool,Older People - City & South,Nursing Independent Sector
Cambridgeshire County Council,08-Jan-16,19555753-12627407,-677.7,Buchan Healthcare Ltd,Care Establishment,2 - Commissioning - Older people Pool,Older People - City & South,Nursing Independent Sector
Cambridgeshire County Council,08-Jan-16,19555754-12627408,-677.7,Buchan Healthcare Ltd,Care Establishment,2 - Commissioning - Older people Pool,Older People - City & South,Nursing Independent Sector
Cambridgeshire County Council,08-Jan-16,19555755-12627409,-677.7,Buchan Healthcare Ltd,Care Establishment,2 - Commissioning - Older people Pool,Older People - City & South,Nursing Independent Sector
Cambridgeshire County Council,08-Jan-16,19555756-12627410,-677.7,Buchan Healthcare Ltd,Care Establishment,2 - Commissioning - Older people Pool,Older People - City & South,Nursing Independent Sector
Cambridgeshire County Council,08-Jan-16,19555757-12627411,-677.7,Buchan Healthcare Ltd,Care Establishment,2 - Commissioning - Older people Pool,Older People - City & South,Nursing Independent Sector
Cambridgeshire County Council,08-Jan-16,19555758-12627412,-677.7,Buchan Healthcare Ltd,Care Establishment,2 - Commissioning - Older people Pool,Older People - City & South,Nursing Independent Sector
Cambridgeshire County Council,08-Jan-16,19555759-12627413,-677.7,Buchan Healthcare Ltd,Care Establishment,2 - Commissioning - Older people Pool,Older People - City & South,Nursing Independent Sector
Cambridgeshire County Council,08-Jan-16,19555760-12627414,-677.7,Buchan Healthcare Ltd,Care Establishment,2 - Commissioning - Older people Pool,Older People - City & South,Nursing Independent Sector
Cambridgeshire County Council,08-Jan-16,19555762-12627416,-677.7,Buchan Healthcare Ltd,Care Establishment,2 - Commissioning - Older people Pool,Older People - City & South,Nursing Independent Sector
Cambridgeshire County Council,08-Jan-16,19555763-12627417,-677.7,Buchan Healthcare Ltd,Care Establishment,2 - Commissioning - Older people Pool,Older People - City & South,Nursing Independent Sector
Cambridgeshire County Council,08-Jan-16,19555765-12627419,-677.7,Buchan Healthcare Ltd,Care Establishment,2 - Commissioning - Older people Pool,Older People - City & South,Nursing Independent Sector
Cambridgeshire County Council,08-Jan-16,19555766-12627420,-677.7,Buchan Healthcare Ltd,Care Establishment,2 - Commissioning - Older people Pool,Older People - City & South,Nursing Independent Sector
Cambridgeshire County Council,08-Jan-16,19555767-12627421,-677.7,Buchan Healthcare Ltd,Care Establishment,2 - Commissioning - Older people Pool,Older People - City & South,Nursing Independent Sector
Cambridgeshire County Council,08-Jan-16,19555768-12627422,-677.7,Buchan Healthcare Ltd,Care Establishment,2 - Commissioning - Older people Pool,Older People - City & South,Nursing Independent Sector
Cambridgeshire County Council,08-Jan-16,19555769-12627423,-677.7,Buchan Healthcare Ltd,Care Establishment,2 - Commissioning - Older people Pool,Older People - City & South,Nursing Independent Sector
Cambridgeshire County Council,08-Jan-16,19555770-12627424,-677.7,Buchan Healthcare Ltd,Care Establishment,2 - Commissioning - Older people Pool,Older People - City & South,Nursing Independent Sector
Cambridgeshire County Council,08-Jan-16,19555771-12627425,-677.7,Buchan Healthcare Ltd,Care Establishment,2 - Commissioning - Older people Pool,Older People - City & South,Nursing Independent Sector
Cambridgeshire County Council,08-Jan-16,19555772-12627426,-677.7,Buchan Healthcare Ltd,Care Establishment,2 - Commissioning - Older people Pool,Older People - City & South,Nursing Independent Sector
Cambridgeshire County Council,08-Jan-16,19555773-12627427,-677.7,Buchan Healthcare Ltd,Care Establishment,2 - Commissioning - Older people Pool,Older People - City & South,Nursing Independent Sector
Cambridgeshire County Council,08-Jan-16,19555774-12627428,-677.7,Buchan Healthcare Ltd,Care Establishment,2 - Commissioning - Older people Pool,Older People - City & South,Nursing Independent Sector
Cambridgeshire County Council,08-Jan-16,19555776-12627430,-677.7,Buchan Healthcare Ltd,Care Establishment,2 - Commissioning - Older people Pool,Older People - City & South,Nursing Independent Sector
Cambridgeshire County Council,08-Jan-16,19555777-12627431,-677.7,Buchan Healthcare Ltd,Care Establishment,2 - Commissioning - Older people Pool,Older People - City & South,Nursing Independent Sector
Cambridgeshire County Council,08-Jan-16,19555778-12627432,-677.7,Buchan Healthcare Ltd,Care Establishment,2 - Commissioning - Older people Pool,Older People - City & South,Nursing Independent Sector
Cambridgeshire County Council,08-Jan-16,19555779-12627433,-677.7,Buchan Healthcare Ltd,Care Establishment,2 - Commissioning - Older people Pool,Older People - City & South,Nursing Independent Sector
Cambridgeshire County Council,08-Jan-16,19555780-12627434,-677.7,Buchan Healthcare Ltd,Care Establishment,2 - Commissioning - Older people Pool,Older People - City & South,Nursing Independent Sector
Cambridgeshire County Council,08-Jan-16,19555781-12627435,-677.7,Buchan Healthcare Ltd,Care Establishment,2 - Commissioning - Older people Pool,Older People - City & South,Nursing Independent Sector
Cambridgeshire County Council,08-Jan-16,19796177-12630382,-677.7,Etheldred House,Care Establishment,2 - Commissioning - Older people Pool,Older People Mental Health City & South,Nursing Independent Sector
Cambridgeshire County Council,08-Jan-16,19796178-12630383,-677.7,Etheldred House,Care Establishment,2 - Commissioning - Older people Pool,Older People Mental Health City & South,Nursing Independent Sector
Cambridgeshire County Council,08-Jan-16,19796180-12630385,-677.7,Etheldred House,Care Establishment,2 - Commissioning - Older people Pool,Older People Mental Health City & South,Nursing Independent Sector
Cambridgeshire County Council,08-Jan-16,19796182-12630387,-677.7,Etheldred House,Care Establishment,2 - Commissioning - Older people Pool,Older People Mental Health City & South,Nursing Independent Sector
Cambridgeshire County Council,08-Jan-16,19796183-12630388,-677.7,Etheldred House,Care Establishment,2 - Commissioning - Older people Pool,Older People Mental Health City & South,Nursing Independent Sector
Cambridgeshire County Council,08-Jan-16,19796184-12630389,-677.7,Etheldred House,Care Establishment,2 - Commissioning - Older people Pool,Older People - City & South,Nursing Independent Sector
Cambridgeshire County Council,08-Jan-16,19796185-12630390,-677.7,Etheldred House,Care Establishment,2 - Commissioning - Older people Pool,Older People Mental Health City & South,Nursing Independent Sector
Cambridgeshire County Council,08-Jan-16,19796186-12630368,-677.7,Etheldred House,Care Establishment,2 - Commissioning - Older people Pool,Older People Mental Health City & South,Nursing Independent Sector
Cambridgeshire County Council,08-Jan-16,19796187-12630369,-677.7,Etheldred House,Care Establishment,2 - Commissioning - Older people Pool,Older People Mental Health City & South,Nursing Independent Sector
Cambridgeshire County Council,08-Jan-16,19796188-12630370,-677.7,Etheldred House,Care Establishment,2 - Commissioning - Older people Pool,Older People Mental Health City & South,Nursing Independent Sector
Cambridgeshire County Council,08-Jan-16,19796189-12630371,-677.7,Etheldred House,Care Establishment,2 - Commissioning - Older people Pool,Older People Mental Health City & South,Nursing Independent Sector
Cambridgeshire County Council,08-Jan-16,19796190-12630372,-677.7,Etheldred House,Care Establishment,2 - Commissioning - Older people Pool,Older People Mental Health City & South,Nursing Independent Sector
Cambridgeshire County Council,08-Jan-16,19796191-12630373,-677.7,Etheldred House,Care Establishment,2 - Commissioning - Older people Pool,Older People Mental Health City & South,Nursing Independent Sector
Cambridgeshire County Council,08-Jan-16,19796192-12630374,-677.7,Etheldred House,Care Establishment,2 - Commissioning - Older people Pool,Older People Mental Health City & South,Nursing Independent Sector
Cambridgeshire County Council,08-Jan-16,19796193-12630375,-677.7,Etheldred House,Care Establishment,2 - Commissioning - Older people Pool,Older People Mental Health City & South,Nursing Independent Sector
Cambridgeshire County Council,08-Jan-16,19796194-12630376,-677.7,Etheldred House,Care Establishment,2 - Commissioning - Older people Pool,Older People Mental Health City & South,Nursing Independent Sector
Cambridgeshire County Council,08-Jan-16,19796196-12630378,-677.7,Etheldred House,Care Establishment,2 - Commissioning - Older people Pool,Older People Mental Health City & South,Nursing Independent Sector
Cambridgeshire County Council,08-Jan-16,19796197-12630379,-677.7,Etheldred House,Care Establishment,2 - Commissioning - Older people Pool,Older People Mental Health City & South,Nursing Independent Sector
Cambridgeshire County Council,08-Jan-16,19796198-12630380,-677.7,Etheldred House,Care Establishment,2 - Commissioning - Older people Pool,Older People Mental Health City & South,Nursing Independent Sector
Cambridgeshire County Council,08-Jan-16,19796199-12630381,-677.7,Etheldred House,Care Establishment,2 - Commissioning - Older people Pool,Older People Mental Health City & South,Nursing Independent Sector
Cambridgeshire County Council,08-Jan-16,19734374-12620049,-675,Cottenham Court Nursing Home,Care Establishment,2 - Commissioning - Older people Pool,Older People - City & South,Nursing Independent Sector
Cambridgeshire County Council,08-Jan-16,19555775-12627429,-669,Buchan Healthcare Ltd,Care Establishment,2 - Commissioning - Older people Pool,Older People - City & South,Nursing Independent Sector
Cambridgeshire County Council,14-Jan-16,19780335-12668835,-654.96,The Manor Cheshire Home,Care Establishment,3 - Operations - Countywide Services,Countywide PD Service,Residential Independent Sector
Cambridgeshire County Council,14-Jan-16,19752624-12668055,-653.25,Cherry Hinton Nursing Home,Care Establishment,2 - Commissioning - Older people Pool,Older People - City & South,Nursing Independent Sector
Cambridgeshire County Council,14-Jan-16,19752629-12668041,-653.25,Cherry Hinton Nursing Home,Care Establishment,2 - Commissioning - Older people Pool,Older People - City & South,Nursing Independent Sector
Cambridgeshire County Council,14-Jan-16,19752631-12668043,-653.25,Cherry Hinton Nursing Home,Care Establishment,2 - Commissioning - Older people Pool,Older People - City & South,Nursing Independent Sector
Cambridgeshire County Council,14-Jan-16,19752633-12668045,-653.25,Cherry Hinton Nursing Home,Care Establishment,2 - Commissioning - Older people Pool,Older People - City & South,Nursing Independent Sector
Cambridgeshire County Council,14-Jan-16,19752635-12668047,-653.25,Cherry Hinton Nursing Home,Care Establishment,2 - Commissioning - Older people Pool,Older People - City & South,Nursing Independent Sector
Cambridgeshire County Council,08-Jan-16,19704149-12620998,-630,Redacted Personal Data,Individual,2 - Operations - Learning Disability,LDP Huntingdonshire Team,SDS - Live Independently
Cambridgeshire County Council,08-Jan-16,19704150-12620999,-630,Redacted Personal Data,Individual,2 - Operations - Learning Disability,LDP Huntingdonshire Team,SDS - Live Independently
Cambridgeshire County Council,08-Jan-16,19704151-12621000,-630,Redacted Personal Data,Individual,2 - Operations - Learning Disability,LDP Huntingdonshire Team,SDS - Live Independently
Cambridgeshire County Council,08-Jan-16,19704153-12621002,-630,Redacted Personal Data,Individual,2 - Operations - Learning Disability,LDP Huntingdonshire Team,SDS - Live Independently
Cambridgeshire County Council,08-Jan-16,19704154-12621003,-630,Redacted Personal Data,Individual,2 - Operations - Learning Disability,LDP Huntingdonshire Team,SDS - Live Independently
Cambridgeshire County Council,08-Jan-16,19704155-12621004,-630,Redacted Personal Data,Individual,2 - Operations - Learning Disability,LDP Huntingdonshire Team,SDS - Live Independently
Cambridgeshire County Council,08-Jan-16,19704156-12621005,-630,Redacted Personal Data,Individual,2 - Operations - Learning Disability,LDP Huntingdonshire Team,SDS - Live Independently
Cambridgeshire County Council,08-Jan-16,19704157-12621006,-630,Redacted Personal Data,Individual,2 - Operations - Learning Disability,LDP Huntingdonshire Team,SDS - Live Independently
Cambridgeshire County Council,08-Jan-16,19704158-12621007,-630,Redacted Personal Data,Individual,2 - Operations - Learning Disability,LDP Huntingdonshire Team,SDS - Live Independently
Cambridgeshire County Council,08-Jan-16,19704159-12621008,-630,Redacted Personal Data,Individual,2 - Operations - Learning Disability,LDP Huntingdonshire Team,SDS - Live Independently
Cambridgeshire County Council,08-Jan-16,19704160-12621009,-630,Redacted Personal Data,Individual,2 - Operations - Learning Disability,LDP Huntingdonshire Team,SDS - Live Independently
Cambridgeshire County Council,08-Jan-16,19704161-12621010,-630,Redacted Personal Data,Individual,2 - Operations - Learning Disability,LDP Huntingdonshire Team,SDS - Live Independently
Cambridgeshire County Council,08-Jan-16,19704162-12621011,-630,Redacted Personal Data,Individual,2 - Operations - Learning Disability,LDP Huntingdonshire Team,SDS - Live Independently
Cambridgeshire County Council,08-Jan-16,19704163-12621012,-630,Redacted Personal Data,Individual,2 - Operations - Learning Disability,LDP Huntingdonshire Team,SDS - Live Independently
Cambridgeshire County Council,08-Jan-16,19704164-12621013,-630,Redacted Personal Data,Individual,2 - Operations - Learning Disability,LDP Huntingdonshire Team,SDS - Live Independently
Cambridgeshire County Council,08-Jan-16,19704165-12621014,-630,Redacted Personal Data,Individual,2 - Operations - Learning Disability,LDP Huntingdonshire Team,SDS - Live Independently
Cambridgeshire County Council,08-Jan-16,19704166-12621015,-630,Redacted Personal Data,Individual,2 - Operations - Learning Disability,LDP Huntingdonshire Team,SDS - Live Independently
Cambridgeshire County Council,08-Jan-16,19704167-12621016,-630,Redacted Personal Data,Individual,2 - Operations - Learning Disability,LDP Huntingdonshire Team,SDS - Live Independently
Cambridgeshire County Council,08-Jan-16,19704168-12621017,-630,Redacted Personal Data,Individual,2 - Operations - Learning Disability,LDP Huntingdonshire Team,SDS - Live Independently
Cambridgeshire County Council,08-Jan-16,19704169-12621018,-630,Redacted Personal Data,Individual,2 - Operations - Learning Disability,LDP Huntingdonshire Team,SDS - Live Independently
Cambridgeshire County Council,08-Jan-16,19704170-12621019,-630,Redacted Personal Data,Individual,2 - Operations - Learning Disability,LDP Huntingdonshire Team,SDS - Live Independently
Cambridgeshire County Council,08-Jan-16,19704171-12621020,-630,Redacted Personal Data,Individual,2 - Operations - Learning Disability,LDP Huntingdonshire Team,SDS - Live Independently
Cambridgeshire County Council,08-Jan-16,19704172-12621021,-630,Redacted Personal Data,Individual,2 - Operations - Learning Disability,LDP Huntingdonshire Team,SDS - Live Independently
Cambridgeshire County Council,08-Jan-16,19704173-12621022,-630,Redacted Personal Data,Individual,2 - Operations - Learning Disability,LDP Huntingdonshire Team,SDS - Live Independently
Cambridgeshire County Council,08-Jan-16,19704174-12621023,-630,Redacted Personal Data,Individual,2 - Operations - Learning Disability,LDP Huntingdonshire Team,SDS - Live Independently
Cambridgeshire County Council,08-Jan-16,19704175-12621024,-630,Redacted Personal Data,Individual,2 - Operations - Learning Disability,LDP Huntingdonshire Team,SDS - Live Independently
Cambridgeshire County Council,08-Jan-16,19704176-12621025,-630,Redacted Personal Data,Individual,2 - Operations - Learning Disability,LDP Huntingdonshire Team,SDS - Live Independently
Cambridgeshire County Council,08-Jan-16,19704177-12621026,-630,Redacted Personal Data,Individual,2 - Operations - Learning Disability,LDP Huntingdonshire Team,SDS - Live Independently
Cambridgeshire County Council,08-Jan-16,19704178-12621027,-630,Redacted Personal Data,Individual,2 - Operations - Learning Disability,LDP Huntingdonshire Team,SDS - Live Independently
Cambridgeshire County Council,08-Jan-16,19704179-12621028,-630,Redacted Personal Data,Individual,2 - Operations - Learning Disability,LDP Huntingdonshire Team,SDS - Live Independently
Cambridgeshire County Council,08-Jan-16,19704180-12621029,-630,Redacted Personal Data,Individual,2 - Operations - Learning Disability,LDP Huntingdonshire Team,SDS - Live Independently
Cambridgeshire County Council,08-Jan-16,19704181-12621030,-630,Redacted Personal Data,Individual,2 - Operations - Learning Disability,LDP Huntingdonshire Team,SDS - Live Independently
Cambridgeshire County Council,08-Jan-16,19704182-12621031,-630,Redacted Personal Data,Individual,2 - Operations - Learning Disability,LDP Huntingdonshire Team,SDS - Live Independently
Cambridgeshire County Council,08-Jan-16,19704183-12621032,-630,Redacted Personal Data,Individual,2 - Operations - Learning Disability,LDP Huntingdonshire Team,SDS - Live Independently
Cambridgeshire County Council,08-Jan-16,19704184-12621033,-630,Redacted Personal Data,Individual,2 - Operations - Learning Disability,LDP Huntingdonshire Team,SDS - Live Independently
Cambridgeshire County Council,08-Jan-16,19704185-12621034,-630,Redacted Personal Data,Individual,2 - Operations - Learning Disability,LDP Huntingdonshire Team,SDS - Live Independently
Cambridgeshire County Council,08-Jan-16,19704186-12620980,-630,Redacted Personal Data,Individual,2 - Operations - Learning Disability,LDP Huntingdonshire Team,SDS - Live Independently
Cambridgeshire County Council,08-Jan-16,19704187-12620981,-630,Redacted Personal Data,Individual,2 - Operations - Learning Disability,LDP Huntingdonshire Team,SDS - Live Independently
Cambridgeshire County Council,08-Jan-16,19704188-12620982,-630,Redacted Personal Data,Individual,2 - Operations - Learning Disability,LDP Huntingdonshire Team,SDS - Live Independently
Cambridgeshire County Council,08-Jan-16,19704190-12620984,-630,Redacted Personal Data,Individual,2 - Operations - Learning Disability,LDP Huntingdonshire Team,SDS - Live Independently
Cambridgeshire County Council,08-Jan-16,19704191-12620985,-630,Redacted Personal Data,Individual,2 - Operations - Learning Disability,LDP Huntingdonshire Team,SDS - Live Independently
Cambridgeshire County Council,08-Jan-16,19704192-12620986,-630,Redacted Personal Data,Individual,2 - Operations - Learning Disability,LDP Huntingdonshire Team,SDS - Live Independently
Cambridgeshire County Council,08-Jan-16,19704193-12620987,-630,Redacted Personal Data,Individual,2 - Operations - Learning Disability,LDP Huntingdonshire Team,SDS - Live Independently
Cambridgeshire County Council,08-Jan-16,19704194-12620988,-630,Redacted Personal Data,Individual,2 - Operations - Learning Disability,LDP Huntingdonshire Team,SDS - Live Independently
Cambridgeshire County Council,08-Jan-16,19704195-12620989,-630,Redacted Personal Data,Individual,2 - Operations - Learning Disability,LDP Huntingdonshire Team,SDS - Live Independently
Cambridgeshire County Council,08-Jan-16,19704196-12620990,-630,Redacted Personal Data,Individual,2 - Operations - Learning Disability,LDP Huntingdonshire Team,SDS - Live Independently
Cambridgeshire County Council,08-Jan-16,19704197-12620991,-630,Redacted Personal Data,Individual,2 - Operations - Learning Disability,LDP Huntingdonshire Team,SDS - Live Independently
Cambridgeshire County Council,08-Jan-16,19704198-12620992,-630,Redacted Personal Data,Individual,2 - Operations - Learning Disability,LDP Huntingdonshire Team,SDS - Live Independently
Cambridgeshire County Council,08-Jan-16,19704199-12620993,-630,Redacted Personal Data,Individual,2 - Operations - Learning Disability,LDP Huntingdonshire Team,SDS - Live Independently
Cambridgeshire County Council,08-Jan-16,19704200-12620994,-630,Redacted Personal Data,Individual,2 - Operations - Learning Disability,LDP Huntingdonshire Team,SDS - Live Independently
Cambridgeshire County Council,08-Jan-16,19704201-12620995,-630,Redacted Personal Data,Individual,2 - Operations - Learning Disability,LDP Huntingdonshire Team,SDS - Live Independently
Cambridgeshire County Council,08-Jan-16,19704202-12620996,-630,Redacted Personal Data,Individual,2 - Operations - Learning Disability,LDP Huntingdonshire Team,SDS - Live Independently
Cambridgeshire County Council,08-Jan-16,19704203-12620997,-630,Redacted Personal Data,Individual,2 - Operations - Learning Disability,LDP Huntingdonshire Team,SDS - Live Independently
Cambridgeshire County Council,08-Jan-16,19704204-12620968,-630,Redacted Personal Data,Individual,2 - Operations - Learning Disability,LDP Huntingdonshire Team,SDS - Live Independently
Cambridgeshire County Council,08-Jan-16,19704205-12620969,-630,Redacted Personal Data,Individual,2 - Operations - Learning Disability,LDP Huntingdonshire Team,SDS - Live Independently
Cambridgeshire County Council,08-Jan-16,19704206-12620970,-630,Redacted Personal Data,Individual,2 - Operations - Learning Disability,LDP Huntingdonshire Team,SDS - Live Independently
Cambridgeshire County Council,08-Jan-16,19704207-12620971,-630,Redacted Personal Data,Individual,2 - Operations - Learning Disability,LDP Huntingdonshire Team,SDS - Live Independently
Cambridgeshire County Council,08-Jan-16,19704208-12620972,-630,Redacted Personal Data,Individual,2 - Operations - Learning Disability,LDP Huntingdonshire Team,SDS - Live Independently
Cambridgeshire County Council,08-Jan-16,19704209-12620973,-630,Redacted Personal Data,Individual,2 - Operations - Learning Disability,LDP Huntingdonshire Team,SDS - Live Independently
Cambridgeshire County Council,08-Jan-16,19704210-12620974,-630,Redacted Personal Data,Individual,2 - Operations - Learning Disability,LDP Huntingdonshire Team,SDS - Live Independently
Cambridgeshire County Council,08-Jan-16,19704211-12620975,-630,Redacted Personal Data,Individual,2 - Operations - Learning Disability,LDP Huntingdonshire Team,SDS - Live Independently
Cambridgeshire County Council,08-Jan-16,19704212-12620976,-630,Redacted Personal Data,Individual,2 - Operations - Learning Disability,LDP Huntingdonshire Team,SDS - Live Independently
Cambridgeshire County Council,08-Jan-16,19704213-12620977,-630,Redacted Personal Data,Individual,2 - Operations - Learning Disability,LDP Huntingdonshire Team,SDS - Live Independently
Cambridgeshire County Council,08-Jan-16,19704214-12620978,-630,Redacted Personal Data,Individual,2 - Operations - Learning Disability,LDP Huntingdonshire Team,SDS - Live Independently
Cambridgeshire County Council,08-Jan-16,19704215-12620979,-630,Redacted Personal Data,Individual,2 - Operations - Learning Disability,LDP Huntingdonshire Team,SDS - Live Independently
Cambridgeshire County Council,08-Jan-16,19708152-12620941,-630,Redacted Personal Data,Individual,2 - Operations - Learning Disability,LDP Huntingdonshire Team,SDS - Live Independently
Cambridgeshire County Council,08-Jan-16,19708153-12620942,-630,Redacted Personal Data,Individual,2 - Operations - Learning Disability,LDP Huntingdonshire Team,SDS - Live Independently
Cambridgeshire County Council,08-Jan-16,19708154-12620943,-630,Redacted Personal Data,Individual,2 - Operations - Learning Disability,LDP Huntingdonshire Team,SDS - Live Independently
Cambridgeshire County Council,08-Jan-16,19708155-12620944,-630,Redacted Personal Data,Individual,2 - Operations - Learning Disability,LDP Huntingdonshire Team,SDS - Live Independently
Cambridgeshire County Council,08-Jan-16,19708156-12620945,-630,Redacted Personal Data,Individual,2 - Operations - Learning Disability,LDP Huntingdonshire Team,SDS - Live Independently
Cambridgeshire County Council,08-Jan-16,19708158-12620947,-630,Redacted Personal Data,Individual,2 - Operations - Learning Disability,LDP Huntingdonshire Team,SDS - Live Independently
Cambridgeshire County Council,08-Jan-16,19708159-12620948,-630,Redacted Personal Data,Individual,2 - Operations - Learning Disability,LDP Huntingdonshire Team,SDS - Live Independently
Cambridgeshire County Council,08-Jan-16,19708160-12620949,-630,Redacted Personal Data,Individual,2 - Operations - Learning Disability,LDP Huntingdonshire Team,SDS - Live Independently
Cambridgeshire County Council,08-Jan-16,19708161-12620950,-630,Redacted Personal Data,Individual,2 - Operations - Learning Disability,LDP Huntingdonshire Team,SDS - Live Independently
Cambridgeshire County Council,08-Jan-16,19708162-12620951,-630,Redacted Personal Data,Individual,2 - Operations - Learning Disability,LDP Huntingdonshire Team,SDS - Live Independently
Cambridgeshire County Council,08-Jan-16,19708163-12620952,-630,Redacted Personal Data,Individual,2 - Operations - Learning Disability,LDP Huntingdonshire Team,SDS - Live Independently
Cambridgeshire County Council,08-Jan-16,19708164-12620953,-630,Redacted Personal Data,Individual,2 - Operations - Learning Disability,LDP Huntingdonshire Team,SDS - Live Independently
Cambridgeshire County Council,08-Jan-16,19708165-12620954,-630,Redacted Personal Data,Individual,2 - Operations - Learning Disability,LDP Huntingdonshire Team,SDS - Live Independently
Cambridgeshire County Council,08-Jan-16,19708166-12620955,-630,Redacted Personal Data,Individual,2 - Operations - Learning Disability,LDP Huntingdonshire Team,SDS - Live Independently
Cambridgeshire County Council,08-Jan-16,19708167-12620956,-630,Redacted Personal Data,Individual,2 - Operations - Learning Disability,LDP Huntingdonshire Team,SDS - Live Independently
Cambridgeshire County Council,08-Jan-16,19708168-12620957,-630,Redacted Personal Data,Individual,2 - Operations - Learning Disability,LDP Huntingdonshire Team,SDS - Live Independently
Cambridgeshire County Council,08-Jan-16,19708169-12620958,-630,Redacted Personal Data,Individual,2 - Operations - Learning Disability,LDP Huntingdonshire Team,SDS - Live Independently
Cambridgeshire County Council,08-Jan-16,19708170-12620959,-630,Redacted Personal Data,Individual,2 - Operations - Learning Disability,LDP Huntingdonshire Team,SDS - Live Independently
Cambridgeshire County Council,08-Jan-16,19708171-12620960,-630,Redacted Personal Data,Individual,2 - Operations - Learning Disability,LDP Huntingdonshire Team,SDS - Live Independently
Cambridgeshire County Council,08-Jan-16,19708172-12620961,-630,Redacted Personal Data,Individual,2 - Operations - Learning Disability,LDP Huntingdonshire Team,SDS - Live Independently
Cambridgeshire County Council,08-Jan-16,19708173-12620962,-630,Redacted Personal Data,Individual,2 - Operations - Learning Disability,LDP Huntingdonshire Team,SDS - Live Independently
Cambridgeshire County Council,08-Jan-16,19708174-12620963,-630,Redacted Personal Data,Individual,2 - Operations - Learning Disability,LDP Huntingdonshire Team,SDS - Live Independently
Cambridgeshire County Council,08-Jan-16,19708175-12620964,-630,Redacted Personal Data,Individual,2 - Operations - Learning Disability,LDP Huntingdonshire Team,SDS - Live Independently
Cambridgeshire County Council,08-Jan-16,19708176-12620965,-630,Redacted Personal Data,Individual,2 - Operations - Learning Disability,LDP Huntingdonshire Team,SDS - Live Independently
Cambridgeshire County Council,08-Jan-16,19708177-12620966,-630,Redacted Personal Data,Individual,2 - Operations - Learning Disability,LDP Huntingdonshire Team,SDS - Live Independently
Cambridgeshire County Council,08-Jan-16,19708178-12620967,-630,Redacted Personal Data,Individual,2 - Operations - Learning Disability,LDP Huntingdonshire Team,SDS - Live Independently
Cambridgeshire County Council,08-Jan-16,19751340-12636246,-627.05,Hunters Healthcare (Hunters Down),Care Establishment,2 - Commissioning - Older people Pool,Older People Mental Health Hunts,Nursing Independent Sector
Cambridgeshire County Council,08-Jan-16,19751341-12636251,-627.05,Hunters Healthcare (Hunters Down),Care Establishment,2 - Commissioning - Older people Pool,Older People Mental Health Hunts,Nursing Independent Sector
Cambridgeshire County Council,08-Jan-16,19751342-12636252,-627.05,Hunters Healthcare (Hunters Down),Care Establishment,2 - Commissioning - Older people Pool,Older People Mental Health Hunts,Nursing Independent Sector
Cambridgeshire County Council,08-Jan-16,19751343-12636253,-627.05,Hunters Healthcare (Hunters Down),Care Establishment,2 - Commissioning - Older people Pool,Older People Mental Health Hunts,Nursing Independent Sector
Cambridgeshire County Council,08-Jan-16,19751345-12636255,-627.05,Hunters Healthcare (Hunters Down),Care Establishment,2 - Commissioning - Older people Pool,Older People Mental Health Hunts,Nursing Independent Sector
Cambridgeshire County Council,08-Jan-16,19751346-12636256,-627.05,Hunters Healthcare (Hunters Down),Care Establishment,2 - Commissioning - Older people Pool,Older People Mental Health Hunts,Nursing Independent Sector
Cambridgeshire County Council,08-Jan-16,19751347-12636257,-627.05,Hunters Healthcare (Hunters Down),Care Establishment,2 - Commissioning - Older people Pool,Older People Mental Health Hunts,Nursing Independent Sector
Cambridgeshire County Council,08-Jan-16,19751348-12636258,-627.05,Hunters Healthcare (Hunters Down),Care Establishment,2 - Commissioning - Older people Pool,Older People Mental Health Hunts,Nursing Independent Sector
Cambridgeshire County Council,08-Jan-16,19751349-12636259,-627.05,Hunters Healthcare (Hunters Down),Care Establishment,2 - Commissioning - Older people Pool,Older People Mental Health Hunts,Nursing Independent Sector
Cambridgeshire County Council,08-Jan-16,19751351-12636261,-627.05,Hunters Healthcare (Hunters Down),Care Establishment,2 - Commissioning - Older people Pool,Older People Mental Health Hunts,Nursing Independent Sector
Cambridgeshire County Council,08-Jan-16,19751352-12636262,-627.05,Hunters Healthcare (Hunters Down),Care Establishment,2 - Commissioning - Older people Pool,Older People Mental Health Hunts,Nursing Independent Sector
Cambridgeshire County Council,08-Jan-16,19751353-12636263,-627.05,Hunters Healthcare (Hunters Down),Care Establishment,2 - Commissioning - Older people Pool,Older People Mental Health Hunts,Nursing Independent Sector
Cambridgeshire County Council,08-Jan-16,19752335-12636250,-627.05,Hunters Healthcare (Hunters Down),Care Establishment,2 - Commissioning - Older people Pool,Older People Mental Health Hunts,Nursing Independent Sector
Cambridgeshire County Council,08-Jan-16,19733986-12628470,-615.61,Augusta Care Ltd,Care Establishment,2 - Operations - Learning Disability,LDP Fenland Team,Supported Living
Cambridgeshire County Council,08-Jan-16,19735163-12621235,-604.73,25 Scotney Street,Care Establishment,2 - Operations - Learning Disability,LDP Huntingdonshire Team,Supported Living
Cambridgeshire County Council,08-Jan-16,19582310-12627598,-603.6,Redacted Personal Data,Individual,2 - Commissioning - Older people Pool,East Cambs - O P Team,Direct Payments - Social Services
Cambridgeshire County Council,08-Jan-16,19582315-12627610,-603.6,Redacted Personal Data,Individual,2 - Commissioning - Older people Pool,East Cambs - O P Team,Direct Payments - Social Services
Cambridgeshire County Council,08-Jan-16,19582318-12627613,-603.6,Redacted Personal Data,Individual,2 - Commissioning - Older people Pool,East Cambs - O P Team,Direct Payments - Social Services
Cambridgeshire County Council,08-Jan-16,19582319-12627614,-603.6,Redacted Personal Data,Individual,2 - Commissioning - Older people Pool,East Cambs - O P Team,Direct Payments - Social Services
Cambridgeshire County Council,08-Jan-16,19582320-12627615,-603.6,Redacted Personal Data,Individual,2 - Commissioning - Older people Pool,East Cambs - O P Team,Direct Payments - Social Services
Cambridgeshire County Council,08-Jan-16,19582321-12627616,-603.6,Redacted Personal Data,Individual,2 - Commissioning - Older people Pool,East Cambs - O P Team,Direct Payments - Social Services
Cambridgeshire County Council,08-Jan-16,19582322-12627617,-603.6,Redacted Personal Data,Individual,2 - Commissioning - Older people Pool,East Cambs - O P Team,Direct Payments - Social Services
Cambridgeshire County Council,08-Jan-16,19582325-12627620,-603.6,Redacted Personal Data,Individual,2 - Commissioning - Older people Pool,East Cambs - O P Team,Direct Payments - Social Services
Cambridgeshire County Council,08-Jan-16,19582326-12627621,-603.6,Redacted Personal Data,Individual,2 - Commissioning - Older people Pool,East Cambs - O P Team,Direct Payments - Social Services
Cambridgeshire County Council,08-Jan-16,19584758-12627625,-603.6,Redacted Personal Data,Individual,2 - Commissioning - Older people Pool,East Cambs - O P Team,Direct Payments - Social Services
Cambridgeshire County Council,08-Jan-16,19584760-12627627,-603.6,Redacted Personal Data,Individual,2 - Commissioning - Older people Pool,East Cambs - O P Team,Direct Payments - Social Services
Cambridgeshire County Council,08-Jan-16,19584765-12627630,-603.6,Redacted Personal Data,Individual,2 - Commissioning - Older people Pool,East Cambs - O P Team,Direct Payments - Social Services
Cambridgeshire County Council,08-Jan-16,19584766-12627631,-603.6,Redacted Personal Data,Individual,2 - Commissioning - Older people Pool,East Cambs - O P Team,Direct Payments - Social Services
Cambridgeshire County Council,21-Jan-16,19884087-12722665,-600,Home Close Ltd,Care Establishment,2 - Commissioning - Older people Pool,Older People - City & South,Nursing Independent Sector
Cambridgeshire County Council,08-Jan-16,19797715-12624123,-587.31,Conquest Care Homes (Soham) Ltd,Care Establishment,2 - Operations - Learning Disability,LDP E Cambs Team,SDS - Care and support Services
Cambridgeshire County Council,14-Jan-16,19830903-12666588,-587.31,Conquest Care Homes (Soham) Ltd,Care Establishment,2 - Operations - Learning Disability,LDP E Cambs Team,SDS - Care and support Services
Cambridgeshire County Council,21-Jan-16,19880740-12720735,-587.31,Conquest Care Homes (Soham) Ltd,Care Establishment,2 - Operations - Learning Disability,LDP E Cambs Special Needs,SDS - Care and support Services
Cambridgeshire County Council,08-Jan-16,19710995-12636128,-583.28,Nurse Plus And Carer Plus (Uk) Ltd,Care Establishment,2 - Operations - Learning Disability,LDP City Team,Day and Domicillary Care Independent Sector
Cambridgeshire County Council,08-Jan-16,19710996-12636129,-583.28,Nurse Plus And Carer Plus (Uk) Ltd,Care Establishment,2 - Operations - Learning Disability,LDP City Team,Day and Domicillary Care Independent Sector
Cambridgeshire County Council,08-Jan-16,19710997-12636130,-583.28,Nurse Plus And Carer Plus (Uk) Ltd,Care Establishment,2 - Operations - Learning Disability,LDP City Team,Day and Domicillary Care Independent Sector
Cambridgeshire County Council,21-Jan-16,19826503-12721490,-582.2,Ringshill Care Home,Care Establishment,2 - Commissioning - Older people Pool,Hunts O P  Team,Nursing Independent Sector
Cambridgeshire County Council,21-Jan-16,19826506-12721492,-582.2,Ringshill Care Home,Care Establishment,2 - Commissioning - Older people Pool,Hunts O P  Team,Nursing Independent Sector
Cambridgeshire County Council,08-Jan-16,19555746-12627400,-580.89,Buchan Healthcare Ltd,Care Establishment,2 - Commissioning - Older people Pool,Older People - City & South,Nursing Independent Sector
Cambridgeshire County Council,08-Jan-16,19557067-12627436,-576.4,Buchan Healthcare Ltd,Care Establishment,2 - Commissioning - Older people Pool,Older People - City & South,Residential Independent Sector
Cambridgeshire County Council,08-Jan-16,19557068-12627437,-576.4,Buchan Healthcare Ltd,Care Establishment,2 - Commissioning - Older people Pool,Older People - City & South,Residential Independent Sector
Cambridgeshire County Council,12-Jan-16,19381279-12651057,-575,Redacted Personal Data,Individual,3 - Commissioning - Disabilities & Carers,Interim Carers Review Team,Direct Payments - Social Services
Cambridgeshire County Council,12-Jan-16,19376395-12651055,-574.4,Redacted Personal Data,Individual,3 - Commissioning - Disabilities & Carers,Interim Carers Review Team,Direct Payments - Social Services
Cambridgeshire County Council,08-Jan-16,19555749-12627403,-573.43,Buchan Healthcare Ltd,Care Establishment,2 - Commissioning - Older people Pool,Older People - City & South,Nursing Independent Sector
Cambridgeshire County Council,21-Jan-16,19887629-12723748,-568.83,Woodlands Care Centre,Care Establishment,2 - Commissioning - Older people Pool,Older People Mental Health City & South,Nursing Independent Sector
Cambridgeshire County Council,21-Jan-16,19887630-12723749,-568.83,Woodlands Care Centre,Care Establishment,2 - Commissioning - Older people Pool,Older People Mental Health City & South,Nursing Independent Sector
Cambridgeshire County Council,21-Jan-16,19887631-12723750,-568.83,Woodlands Care Centre,Care Establishment,2 - Commissioning - Older people Pool,Older People Mental Health City & South,Nursing Independent Sector
Cambridgeshire County Council,21-Jan-16,19887632-12723751,-568.83,Woodlands Care Centre,Care Establishment,2 - Commissioning - Older people Pool,Older People Mental Health City & South,Nursing Independent Sector
Cambridgeshire County Council,21-Jan-16,19887634-12723753,-568.83,Woodlands Care Centre,Care Establishment,2 - Commissioning - Older people Pool,Older People Mental Health City & South,Nursing Independent Sector
Cambridgeshire County Council,29-Jan-16,19911242-12748988,-568.83,Woodlands Care Centre,Care Establishment,2 - Commissioning - Older people Pool,Older People Mental Health City & South,Nursing Independent Sector
Cambridgeshire County Council,29-Jan-16,19911243-12748989,-568.83,Woodlands Care Centre,Care Establishment,2 - Commissioning - Older people Pool,Older People Mental Health City & South,Nursing Independent Sector
Cambridgeshire County Council,29-Jan-16,19911244-12748990,-568.83,Woodlands Care Centre,Care Establishment,2 - Commissioning - Older people Pool,Older People Mental Health City & South,Nursing Independent Sector
Cambridgeshire County Council,29-Jan-16,19911245-12748991,-568.83,Woodlands Care Centre,Care Establishment,2 - Commissioning - Older people Pool,Older People Mental Health City & South,Nursing Independent Sector
Cambridgeshire County Council,29-Jan-16,19911246-12748992,-568.83,Woodlands Care Centre,Care Establishment,2 - Commissioning - Older people Pool,Older People Mental Health City & South,Nursing Independent Sector
Cambridgeshire County Council,29-Jan-16,19911247-12748993,-568.83,Woodlands Care Centre,Care Establishment,2 - Commissioning - Older people Pool,Older People Mental Health City & South,Nursing Independent Sector
Cambridgeshire County Council,08-Jan-16,19733812-12632675,-566.31,Midfield Lodge Care Centre,Care Establishment,2 - Commissioning - Older people Pool,Older People - City & South,Nursing Independent Sector
Cambridgeshire County Council,08-Jan-16,19733813-12632676,-566.31,Midfield Lodge Care Centre,Care Establishment,2 - Commissioning - Older people Pool,Older People - City & South,Nursing Independent Sector
Cambridgeshire County Council,08-Jan-16,19733814-12632677,-566.31,Midfield Lodge Care Centre,Care Establishment,2 - Commissioning - Older people Pool,Older People - City & South,Nursing Independent Sector
Cambridgeshire County Council,29-Jan-16,19885379-12749408,-566.31,Midfield Lodge Care Centre,Care Establishment,2 - Commissioning - Older people Pool,Older People - City & South,Nursing Independent Sector
Cambridgeshire County Council,29-Jan-16,19885380-12749409,-566.31,Midfield Lodge Care Centre,Care Establishment,2 - Commissioning - Older people Pool,Older People - City & South,Nursing Independent Sector
Cambridgeshire County Council,29-Jan-16,19885381-12749410,-566.31,Midfield Lodge Care Centre,Care Establishment,2 - Commissioning - Older people Pool,Older People - City & South,Nursing Independent Sector
Cambridgeshire County Council,08-Jan-16,19797461-12631550,-559.73,Woodlands Care Centre,Care Establishment,2 - Commissioning - Older people Pool,Older People - City & South,Nursing Independent Sector
Cambridgeshire County Council,08-Jan-16,19797462-12631551,-559.73,Woodlands Care Centre,Care Establishment,2 - Commissioning - Older people Pool,Older People - City & South,Nursing Independent Sector
Cambridgeshire County Council,08-Jan-16,19797463-12631552,-559.73,Woodlands Care Centre,Care Establishment,2 - Commissioning - Older people Pool,Older People - City & South,Nursing Independent Sector
Cambridgeshire County Council,08-Jan-16,19797465-12631553,-559.73,Woodlands Care Centre,Care Establishment,2 - Commissioning - Older people Pool,Older People - City & South,Nursing Independent Sector
Cambridgeshire County Council,14-Jan-16,19827829-12670501,-559.73,Woodlands Care Centre,Care Establishment,2 - Commissioning - Older people Pool,Older People - City & South,Nursing Independent Sector
Cambridgeshire County Council,14-Jan-16,19827831-12670502,-559.73,Woodlands Care Centre,Care Establishment,2 - Commissioning - Older people Pool,Older People - City & South,Nursing Independent Sector
Cambridgeshire County Council,14-Jan-16,19827833-12670503,-559.73,Woodlands Care Centre,Care Establishment,2 - Commissioning - Older people Pool,Older People - City & South,Nursing Independent Sector
Cambridgeshire County Council,14-Jan-16,19827835-12670504,-559.73,Woodlands Care Centre,Care Establishment,2 - Commissioning - Older people Pool,Older People - City & South,Nursing Independent Sector
Cambridgeshire County Council,14-Jan-16,19827836-12670505,-559.73,Woodlands Care Centre,Care Establishment,2 - Commissioning - Older people Pool,Older People - City & South,Nursing Independent Sector
Cambridgeshire County Council,14-Jan-16,19833710-12670540,-559.73,Woodlands Care Centre,Care Establishment,2 - Commissioning - Older people Pool,Older People - City & South,Nursing Independent Sector
Cambridgeshire County Council,14-Jan-16,19833713-12670541,-559.73,Woodlands Care Centre,Care Establishment,2 - Commissioning - Older people Pool,Older People - City & South,Nursing Independent Sector
Cambridgeshire County Council,14-Jan-16,19833715-12670542,-559.73,Woodlands Care Centre,Care Establishment,2 - Commissioning - Older people Pool,Older People - City & South,Nursing Independent Sector
Cambridgeshire County Council,14-Jan-16,19833717-12670543,-559.73,Woodlands Care Centre,Care Establishment,2 - Commissioning - Older people Pool,Older People - City & South,Nursing Independent Sector
Cambridgeshire County Council,14-Jan-16,19834870-12670527,-559.73,Woodlands Care Centre,Care Establishment,2 - Commissioning - Older people Pool,Older People - City & South,Nursing Independent Sector
Cambridgeshire County Council,14-Jan-16,19834871-12670528,-559.73,Woodlands Care Centre,Care Establishment,2 - Commissioning - Older people Pool,Older People - City & South,Nursing Independent Sector
Cambridgeshire County Council,14-Jan-16,19834872-12670529,-559.73,Woodlands Care Centre,Care Establishment,2 - Commissioning - Older people Pool,Older People - City & South,Nursing Independent Sector
Cambridgeshire County Council,08-Jan-16,19779955-12631966,-558.54,Symonds House Nursing Home,Care Establishment,2 - Commissioning - Older people Pool,Older People - City & South,Nursing Independent Sector
Cambridgeshire County Council,08-Jan-16,19779956-12631967,-558.54,Symonds House Nursing Home,Care Establishment,2 - Commissioning - Older people Pool,Older People - City & South,Nursing Independent Sector
Cambridgeshire County Council,08-Jan-16,19789110-12632354,-556.95,Barchester Healthcare Homes Ltd,Care Establishment,2 - Commissioning - Older people Pool,East Cambs - O P Team,Nursing Independent Sector
Cambridgeshire County Council,14-Jan-16,19753445-12668048,-549.36,Cherry Hinton Nursing Home,Care Establishment,2 - Commissioning - Older people Pool,Older People - City & South,Nursing Independent Sector
Cambridgeshire County Council,14-Jan-16,19753449-12668049,-549.36,Cherry Hinton Nursing Home,Care Establishment,2 - Commissioning - Older people Pool,Older People - City & South,Nursing Independent Sector
Cambridgeshire County Council,14-Jan-16,19753471-12668051,-549.36,Cherry Hinton Nursing Home,Care Establishment,2 - Commissioning - Older people Pool,Older People - City & South,Nursing Independent Sector
Cambridgeshire County Council,14-Jan-16,19753475-12668052,-549.36,Cherry Hinton Nursing Home,Care Establishment,2 - Commissioning - Older people Pool,Older People - City & South,Nursing Independent Sector
Cambridgeshire County Council,14-Jan-16,19755210-12668053,-549.36,Cherry Hinton Nursing Home,Care Establishment,2 - Commissioning - Older people Pool,Older People - City & South,Nursing Independent Sector
Cambridgeshire County Council,14-Jan-16,19330070-12664287,-538,Redacted Personal Data,Individual,2 - Commissioning - Older people Pool,Hunts O P  Team,Direct Payments - Social Services
Cambridgeshire County Council,14-Jan-16,19330074-12664291,-538,Redacted Personal Data,Individual,2 - Commissioning - Older people Pool,Hunts O P  Team,Direct Payments - Social Services
Cambridgeshire County Council,14-Jan-16,19330329-12664299,-538,Redacted Personal Data,Individual,2 - Commissioning - Older people Pool,Hunts O P  Team,Direct Payments - Social Services
Cambridgeshire County Council,14-Jan-16,19330333-12664303,-538,Redacted Personal Data,Individual,2 - Commissioning - Older people Pool,Hunts O P  Team,Direct Payments - Social Services
Cambridgeshire County Council,14-Jan-16,19330334-12664304,-538,Redacted Personal Data,Individual,2 - Commissioning - Older people Pool,Hunts O P  Team,Direct Payments - Social Services
Cambridgeshire County Council,14-Jan-16,19330344-12664314,-538,Redacted Personal Data,Individual,2 - Commissioning - Older people Pool,Hunts O P  Team,Direct Payments - Social Services
Cambridgeshire County Council,14-Jan-16,19330346-12664316,-538,Redacted Personal Data,Individual,2 - Commissioning - Older people Pool,Hunts O P  Team,Direct Payments - Social Services
Cambridgeshire County Council,14-Jan-16,19335724-12664317,-538,Redacted Personal Data,Individual,2 - Commissioning - Older people Pool,Hunts O P  Team,Direct Payments - Social Services
Cambridgeshire County Council,14-Jan-16,19335729-12664322,-538,Redacted Personal Data,Individual,2 - Commissioning - Older people Pool,Hunts O P  Team,Direct Payments - Social Services
Cambridgeshire County Council,14-Jan-16,19335734-12664327,-538,Redacted Personal Data,Individual,2 - Commissioning - Older people Pool,Hunts O P  Team,Direct Payments - Social Services
Cambridgeshire County Council,14-Jan-16,19335737-12664330,-538,Redacted Personal Data,Individual,2 - Commissioning - Older people Pool,Hunts O P  Team,Direct Payments - Social Services
Cambridgeshire County Council,14-Jan-16,19335739-12664332,-538,Redacted Personal Data,Individual,2 - Commissioning - Older people Pool,Hunts O P  Team,Direct Payments - Social Services
Cambridgeshire County Council,14-Jan-16,19335745-12664338,-538,Redacted Personal Data,Individual,2 - Commissioning - Older people Pool,Hunts O P  Team,Direct Payments - Social Services
Cambridgeshire County Council,14-Jan-16,19335747-12664340,-538,Redacted Personal Data,Individual,2 - Commissioning - Older people Pool,Hunts O P  Team,Direct Payments - Social Services
Cambridgeshire County Council,14-Jan-16,19335753-12664346,-538,Redacted Personal Data,Individual,2 - Commissioning - Older people Pool,Hunts O P  Team,Direct Payments - Social Services
Cambridgeshire County Council,14-Jan-16,19335756-12664349,-538,Redacted Personal Data,Individual,2 - Commissioning - Older people Pool,Hunts O P  Team,Direct Payments - Social Services
Cambridgeshire County Council,08-Jan-16,19704646-12620003,-538,Kingfisher House,Care Establishment,2 - Commissioning - Older people Pool,East Cambs - O P Team,Nursing Independent Sector
Cambridgeshire County Council,14-Jan-16,19827582-12665821,-536,Glennfield Care Centre (Op),Care Establishment,2 - Commissioning - Older people Pool,Older People Mental Health Fenland,Nursing Independent Sector
Cambridgeshire County Council,14-Jan-16,19827586-12665824,-536,Glennfield Care Centre (Op),Care Establishment,2 - Commissioning - Older people Pool,Older People Mental Health Fenland,Nursing Independent Sector
Cambridgeshire County Council,14-Jan-16,19827588-12665825,-536,Glennfield Care Centre (Op),Care Establishment,2 - Commissioning - Older people Pool,Older People Mental Health Fenland,Nursing Independent Sector
Cambridgeshire County Council,14-Jan-16,19827087-12669999,-532.23,Wentworth Croft Residential And Nursing,Care Establishment,2 - Commissioning - Older people Pool,Older People - Fenland,Nursing Independent Sector
Cambridgeshire County Council,14-Jan-16,19827088-12670000,-532.23,Wentworth Croft Residential And Nursing,Care Establishment,2 - Commissioning - Older people Pool,Older People - Fenland,Nursing Independent Sector
Cambridgeshire County Council,14-Jan-16,19827089-12670001,-532.23,Wentworth Croft Residential And Nursing,Care Establishment,2 - Commissioning - Older people Pool,Older People - Fenland,Nursing Independent Sector
Cambridgeshire County Council,14-Jan-16,19827091-12670003,-532.23,Wentworth Croft Residential And Nursing,Care Establishment,2 - Commissioning - Older people Pool,Older People - Fenland,Nursing Independent Sector
Cambridgeshire County Council,14-Jan-16,19827092-12670004,-532.23,Wentworth Croft Residential And Nursing,Care Establishment,2 - Commissioning - Older people Pool,Older People - Fenland,Nursing Independent Sector
Cambridgeshire County Council,14-Jan-16,19833087-12670016,-532.23,Wentworth Croft Residential And Nursing,Care Establishment,2 - Commissioning - Older people Pool,Older People - Fenland,Nursing Independent Sector
Cambridgeshire County Council,14-Jan-16,19833088-12670017,-532.23,Wentworth Croft Residential And Nursing,Care Establishment,2 - Commissioning - Older people Pool,Older People - Fenland,Nursing Independent Sector
Cambridgeshire County Council,14-Jan-16,19833089-12670018,-532.23,Wentworth Croft Residential And Nursing,Care Establishment,2 - Commissioning - Older people Pool,Older People - Fenland,Nursing Independent Sector
Cambridgeshire County Council,14-Jan-16,19833090-12670019,-532.23,Wentworth Croft Residential And Nursing,Care Establishment,2 - Commissioning - Older people Pool,Older People - Fenland,Nursing Independent Sector
Cambridgeshire County Council,14-Jan-16,19833091-12670020,-532.23,Wentworth Croft Residential And Nursing,Care Establishment,2 - Commissioning - Older people Pool,Older People - Fenland,Nursing Independent Sector
Cambridgeshire County Council,14-Jan-16,19833092-12670021,-532.23,Wentworth Croft Residential And Nursing,Care Establishment,2 - Commissioning - Older people Pool,Older People - Fenland,Nursing Independent Sector
Cambridgeshire County Council,14-Jan-16,19833093-12670022,-532.23,Wentworth Croft Residential And Nursing,Care Establishment,2 - Commissioning - Older people Pool,Older People - Fenland,Nursing Independent Sector
Cambridgeshire County Council,14-Jan-16,19833094-12670023,-532.23,Wentworth Croft Residential And Nursing,Care Establishment,2 - Commissioning - Older people Pool,Older People - Fenland,Nursing Independent Sector
Cambridgeshire County Council,14-Jan-16,19833095-12670024,-532.23,Wentworth Croft Residential And Nursing,Care Establishment,2 - Commissioning - Older people Pool,Older People - Fenland,Nursing Independent Sector
Cambridgeshire County Council,14-Jan-16,19833096-12670025,-532.23,Wentworth Croft Residential And Nursing,Care Establishment,2 - Commissioning - Older people Pool,Older People - Fenland,Nursing Independent Sector
Cambridgeshire County Council,14-Jan-16,19833097-12670026,-532.23,Wentworth Croft Residential And Nursing,Care Establishment,2 - Commissioning - Older people Pool,Older People - Fenland,Nursing Independent Sector
Cambridgeshire County Council,14-Jan-16,19833098-12670027,-532.23,Wentworth Croft Residential And Nursing,Care Establishment,2 - Commissioning - Older people Pool,Older People - Fenland,Nursing Independent Sector
Cambridgeshire County Council,14-Jan-16,19833099-12670028,-532.23,Wentworth Croft Residential And Nursing,Care Establishment,2 - Commissioning - Older people Pool,Older People - Fenland,Nursing Independent Sector
Cambridgeshire County Council,14-Jan-16,19833100-12670029,-532.23,Wentworth Croft Residential And Nursing,Care Establishment,2 - Commissioning - Older people Pool,Older People - Fenland,Nursing Independent Sector
Cambridgeshire County Council,14-Jan-16,19833101-12670030,-532.23,Wentworth Croft Residential And Nursing,Care Establishment,2 - Commissioning - Older people Pool,Older People - Fenland,Nursing Independent Sector
Cambridgeshire County Council,14-Jan-16,19833102-12670031,-532.23,Wentworth Croft Residential And Nursing,Care Establishment,2 - Commissioning - Older people Pool,Older People - Fenland,Nursing Independent Sector
Cambridgeshire County Council,14-Jan-16,19833103-12670032,-532.23,Wentworth Croft Residential And Nursing,Care Establishment,2 - Commissioning - Older people Pool,Older People - Fenland,Nursing Independent Sector
Cambridgeshire County Council,14-Jan-16,19833104-12670033,-532.23,Wentworth Croft Residential And Nursing,Care Establishment,2 - Commissioning - Older people Pool,Older People - Fenland,Nursing Independent Sector
Cambridgeshire County Council,14-Jan-16,19833105-12670034,-532.23,Wentworth Croft Residential And Nursing,Care Establishment,2 - Commissioning - Older people Pool,Older People - Fenland,Nursing Independent Sector
Cambridgeshire County Council,14-Jan-16,19833106-12670035,-532.23,Wentworth Croft Residential And Nursing,Care Establishment,2 - Commissioning - Older people Pool,Older People - Fenland,Nursing Independent Sector
Cambridgeshire County Council,29-Jan-16,19912073-12747750,-521.74,Heron House Care Home,Care Establishment,2 - Commissioning - Older people Pool,Hunts O P  Team,Nursing Independent Sector
Cambridgeshire County Council,29-Jan-16,19912074-12747751,-521.74,Heron House Care Home,Care Establishment,2 - Commissioning - Older people Pool,Hunts O P  Team,Nursing Independent Sector
Cambridgeshire County Council,29-Jan-16,19912075-12747752,-521.74,Heron House Care Home,Care Establishment,2 - Commissioning - Older people Pool,Hunts O P  Team,Nursing Independent Sector
Cambridgeshire County Council,14-Jan-16,19834410-12669224,-515.6,The Elms Nursing Home,Care Establishment,2 - Commissioning - Older people Pool,Older People - Fenland,Nursing Independent Sector
Cambridgeshire County Council,14-Jan-16,19834411-12669225,-515.6,The Elms Nursing Home,Care Establishment,2 - Commissioning - Older people Pool,Older People - Fenland,Nursing Independent Sector
Cambridgeshire County Council,14-Jan-16,19834416-12669229,-515.6,The Elms Nursing Home,Care Establishment,2 - Commissioning - Older people Pool,Older People - Fenland,Nursing Independent Sector
Cambridgeshire County Council,14-Jan-16,19834419-12669231,-515.6,The Elms Nursing Home,Care Establishment,2 - Commissioning - Older people Pool,Older People - Fenland,Nursing Independent Sector
Cambridgeshire County Council,08-Jan-16,19754552-12621489,-513.1,Heron House Care Home,Care Establishment,2 - Commissioning - Older people Pool,Older People Mental Health Hunts,Nursing Independent Sector
Cambridgeshire County Council,08-Jan-16,19754555-12621492,-513.1,Heron House Care Home,Care Establishment,2 - Commissioning - Older people Pool,Older People Mental Health Hunts,Nursing Independent Sector
Cambridgeshire County Council,08-Jan-16,19754557-12621494,-513.1,Heron House Care Home,Care Establishment,2 - Commissioning - Older people Pool,Older People Mental Health Hunts,Nursing Independent Sector
Cambridgeshire County Council,08-Jan-16,19754558-12621495,-513.1,Heron House Care Home,Care Establishment,2 - Commissioning - Older people Pool,Older People Mental Health Hunts,Nursing Independent Sector
Cambridgeshire County Council,08-Jan-16,19754560-12621497,-513.1,Heron House Care Home,Care Establishment,2 - Commissioning - Older people Pool,Older People Mental Health Hunts,Nursing Independent Sector
Cambridgeshire County Council,08-Jan-16,19754567-12621504,-513.1,Heron House Care Home,Care Establishment,2 - Commissioning - Older people Pool,Older People Mental Health Hunts,Nursing Independent Sector
Cambridgeshire County Council,08-Jan-16,19754568-12621505,-513.1,Heron House Care Home,Care Establishment,2 - Commissioning - Older people Pool,Older People Mental Health Hunts,Nursing Independent Sector
Cambridgeshire County Council,08-Jan-16,19754569-12621506,-513.1,Heron House Care Home,Care Establishment,2 - Commissioning - Older people Pool,Older People Mental Health Hunts,Nursing Independent Sector
Cambridgeshire County Council,08-Jan-16,19754571-12621508,-513.1,Heron House Care Home,Care Establishment,2 - Commissioning - Older people Pool,Older People Mental Health Hunts,Nursing Independent Sector
Cambridgeshire County Council,08-Jan-16,19754573-12621510,-513.1,Heron House Care Home,Care Establishment,2 - Commissioning - Older people Pool,Older People Mental Health Hunts,Nursing Independent Sector
Cambridgeshire County Council,08-Jan-16,19754574-12621511,-513.1,Heron House Care Home,Care Establishment,2 - Commissioning - Older people Pool,Older People Mental Health Hunts,Nursing Independent Sector
Cambridgeshire County Council,08-Jan-16,19754575-12621512,-513.1,Heron House Care Home,Care Establishment,2 - Commissioning - Older people Pool,Older People Mental Health Hunts,Nursing Independent Sector
Cambridgeshire County Council,08-Jan-16,19754576-12621513,-513.1,Heron House Care Home,Care Establishment,2 - Commissioning - Older people Pool,Older People Mental Health Hunts,Nursing Independent Sector
Cambridgeshire County Council,08-Jan-16,19754582-12621519,-513.1,Heron House Care Home,Care Establishment,2 - Commissioning - Older people Pool,Older People Mental Health Hunts,Nursing Independent Sector
Cambridgeshire County Council,08-Jan-16,19754584-12621521,-513.1,Heron House Care Home,Care Establishment,2 - Commissioning - Older people Pool,Older People Mental Health Hunts,Nursing Independent Sector
Cambridgeshire County Council,08-Jan-16,19754585-12621522,-513.1,Heron House Care Home,Care Establishment,2 - Commissioning - Older people Pool,Older People Mental Health Hunts,Nursing Independent Sector
Cambridgeshire County Council,08-Jan-16,19754589-12621526,-513.1,Heron House Care Home,Care Establishment,2 - Commissioning - Older people Pool,Older People Mental Health Hunts,Nursing Independent Sector
Cambridgeshire County Council,08-Jan-16,19754590-12621527,-513.1,Heron House Care Home,Care Establishment,2 - Commissioning - Older people Pool,Older People Mental Health Hunts,Nursing Independent Sector
Cambridgeshire County Council,08-Jan-16,19754591-12621528,-513.1,Heron House Care Home,Care Establishment,2 - Commissioning - Older people Pool,Older People Mental Health Hunts,Nursing Independent Sector
Cambridgeshire County Council,08-Jan-16,19787281-12621531,-513.1,Heron House Care Home,Care Establishment,2 - Commissioning - Older people Pool,Older People Mental Health Hunts,Nursing Independent Sector
Cambridgeshire County Council,08-Jan-16,19787292-12621540,-513.1,Heron House Care Home,Care Establishment,2 - Commissioning - Older people Pool,Older People Mental Health Hunts,Nursing Independent Sector
Cambridgeshire County Council,08-Jan-16,19787293-12621541,-513.1,Heron House Care Home,Care Establishment,2 - Commissioning - Older people Pool,Older People Mental Health Hunts,Nursing Independent Sector
Cambridgeshire County Council,08-Jan-16,19787294-12621542,-513.1,Heron House Care Home,Care Establishment,2 - Commissioning - Older people Pool,Older People Mental Health Hunts,Nursing Independent Sector
Cambridgeshire County Council,08-Jan-16,19797844-12621618,-513.1,Heron House Care Home,Care Establishment,2 - Commissioning - Older people Pool,Older People Mental Health Hunts,Nursing Independent Sector
Cambridgeshire County Council,08-Jan-16,19797847-12621621,-513.1,Heron House Care Home,Care Establishment,2 - Commissioning - Older people Pool,Older People Mental Health Hunts,Nursing Independent Sector
Cambridgeshire County Council,08-Jan-16,19797848-12621622,-513.1,Heron House Care Home,Care Establishment,2 - Commissioning - Older people Pool,Older People Mental Health Hunts,Nursing Independent Sector
Cambridgeshire County Council,08-Jan-16,19797850-12621624,-513.1,Heron House Care Home,Care Establishment,2 - Commissioning - Older people Pool,Older People Mental Health Hunts,Nursing Independent Sector
Cambridgeshire County Council,08-Jan-16,19797854-12621596,-513.1,Heron House Care Home,Care Establishment,2 - Commissioning - Older people Pool,Older People Mental Health Hunts,Nursing Independent Sector
Cambridgeshire County Council,08-Jan-16,19797855-12621597,-513.1,Heron House Care Home,Care Establishment,2 - Commissioning - Older people Pool,Older People Mental Health Hunts,Nursing Independent Sector
Cambridgeshire County Council,08-Jan-16,19797856-12621598,-513.1,Heron House Care Home,Care Establishment,2 - Commissioning - Older people Pool,Older People Mental Health Hunts,Nursing Independent Sector
Cambridgeshire County Council,08-Jan-16,19797857-12621599,-513.1,Heron House Care Home,Care Establishment,2 - Commissioning - Older people Pool,Older People Mental Health Hunts,Nursing Independent Sector
Cambridgeshire County Council,08-Jan-16,19797858-12621600,-513.1,Heron House Care Home,Care Establishment,2 - Commissioning - Older people Pool,Older People Mental Health Hunts,Nursing Independent Sector
Cambridgeshire County Council,08-Jan-16,19797862-12621603,-513.1,Heron House Care Home,Care Establishment,2 - Commissioning - Older people Pool,Older People Mental Health Hunts,Nursing Independent Sector
Cambridgeshire County Council,08-Jan-16,19797867-12621607,-513.1,Heron House Care Home,Care Establishment,2 - Commissioning - Older people Pool,Older People Mental Health Hunts,Nursing Independent Sector
Cambridgeshire County Council,08-Jan-16,19797868-12621608,-513.1,Heron House Care Home,Care Establishment,2 - Commissioning - Older people Pool,Older People Mental Health Hunts,Nursing Independent Sector
Cambridgeshire County Council,08-Jan-16,19797871-12621610,-513.1,Heron House Care Home,Care Establishment,2 - Commissioning - Older people Pool,Older People Mental Health Hunts,Nursing Independent Sector
Cambridgeshire County Council,08-Jan-16,19797878-12621614,-513.1,Heron House Care Home,Care Establishment,2 - Commissioning - Older people Pool,Older People Mental Health Hunts,Nursing Independent Sector
Cambridgeshire County Council,08-Jan-16,19797883-12621617,-513.1,Heron House Care Home,Care Establishment,2 - Commissioning - Older people Pool,Older People Mental Health Hunts,Nursing Independent Sector
Cambridgeshire County Council,29-Jan-16,19823035-12747713,-513.1,Heron House Care Home,Care Establishment,2 - Commissioning - Older people Pool,Older People Mental Health Hunts,Nursing Independent Sector
Cambridgeshire County Council,29-Jan-16,19823037-12747715,-513.1,Heron House Care Home,Care Establishment,2 - Commissioning - Older people Pool,Older People Mental Health Hunts,Nursing Independent Sector
Cambridgeshire County Council,29-Jan-16,19823038-12747716,-513.1,Heron House Care Home,Care Establishment,2 - Commissioning - Older people Pool,Older People Mental Health Hunts,Nursing Independent Sector
Cambridgeshire County Council,29-Jan-16,19823039-12747717,-513.1,Heron House Care Home,Care Establishment,2 - Commissioning - Older people Pool,Older People Mental Health Hunts,Nursing Independent Sector
Cambridgeshire County Council,29-Jan-16,19823040-12747718,-513.1,Heron House Care Home,Care Establishment,2 - Commissioning - Older people Pool,Older People Mental Health Hunts,Nursing Independent Sector
Cambridgeshire County Council,29-Jan-16,19823043-12747721,-513.1,Heron House Care Home,Care Establishment,2 - Commissioning - Older people Pool,Older People Mental Health Hunts,Nursing Independent Sector
Cambridgeshire County Council,29-Jan-16,19823045-12747723,-513.1,Heron House Care Home,Care Establishment,2 - Commissioning - Older people Pool,Older People Mental Health Hunts,Nursing Independent Sector
Cambridgeshire County Council,29-Jan-16,19823047-12747725,-513.1,Heron House Care Home,Care Establishment,2 - Commissioning - Older people Pool,Older People Mental Health Hunts,Nursing Independent Sector
Cambridgeshire County Council,29-Jan-16,19823049-12747727,-513.1,Heron House Care Home,Care Establishment,2 - Commissioning - Older people Pool,Older People Mental Health Hunts,Nursing Independent Sector
Cambridgeshire County Council,29-Jan-16,19823051-12747729,-513.1,Heron House Care Home,Care Establishment,2 - Commissioning - Older people Pool,Older People Mental Health Hunts,Nursing Independent Sector
Cambridgeshire County Council,29-Jan-16,19823055-12747733,-513.1,Heron House Care Home,Care Establishment,2 - Commissioning - Older people Pool,Older People Mental Health Hunts,Nursing Independent Sector
Cambridgeshire County Council,29-Jan-16,19823056-12747734,-513.1,Heron House Care Home,Care Establishment,2 - Commissioning - Older people Pool,Older People Mental Health Hunts,Nursing Independent Sector
Cambridgeshire County Council,29-Jan-16,19823057-12747735,-513.1,Heron House Care Home,Care Establishment,2 - Commissioning - Older people Pool,Older People Mental Health Hunts,Nursing Independent Sector
Cambridgeshire County Council,29-Jan-16,19823058-12747736,-513.1,Heron House Care Home,Care Establishment,2 - Commissioning - Older people Pool,Older People Mental Health Hunts,Nursing Independent Sector
Cambridgeshire County Council,29-Jan-16,19823059-12747737,-513.1,Heron House Care Home,Care Establishment,2 - Commissioning - Older people Pool,Older People Mental Health Hunts,Nursing Independent Sector
Cambridgeshire County Council,29-Jan-16,19823063-12747741,-513.1,Heron House Care Home,Care Establishment,2 - Commissioning - Older people Pool,Older People Mental Health Hunts,Nursing Independent Sector
Cambridgeshire County Council,29-Jan-16,19823064-12747742,-513.1,Heron House Care Home,Care Establishment,2 - Commissioning - Older people Pool,Older People Mental Health Hunts,Nursing Independent Sector
Cambridgeshire County Council,29-Jan-16,19823066-12747744,-513.1,Heron House Care Home,Care Establishment,2 - Commissioning - Older people Pool,Older People Mental Health Hunts,Nursing Independent Sector
Cambridgeshire County Council,29-Jan-16,19823069-12747747,-513.1,Heron House Care Home,Care Establishment,2 - Commissioning - Older people Pool,Older People Mental Health Hunts,Nursing Independent Sector
Cambridgeshire County Council,29-Jan-16,19880802-12747665,-513.1,Heron House Care Home,Care Establishment,2 - Commissioning - Older people Pool,Older People Mental Health Hunts,Nursing Independent Sector
Cambridgeshire County Council,29-Jan-16,19880803-12747666,-513.1,Heron House Care Home,Care Establishment,2 - Commissioning - Older people Pool,Older People Mental Health Hunts,Nursing Independent Sector
Cambridgeshire County Council,29-Jan-16,19880810-12747673,-513.1,Heron House Care Home,Care Establishment,2 - Commissioning - Older people Pool,Older People Mental Health Hunts,Nursing Independent Sector
Cambridgeshire County Council,29-Jan-16,19880811-12747674,-513.1,Heron House Care Home,Care Establishment,2 - Commissioning - Older people Pool,Older People Mental Health Hunts,Nursing Independent Sector
Cambridgeshire County Council,29-Jan-16,19880812-12747675,-513.1,Heron House Care Home,Care Establishment,2 - Commissioning - Older people Pool,Older People Mental Health Hunts,Nursing Independent Sector
Cambridgeshire County Council,29-Jan-16,19880813-12747676,-513.1,Heron House Care Home,Care Establishment,2 - Commissioning - Older people Pool,Older People Mental Health Hunts,Nursing Independent Sector
Cambridgeshire County Council,29-Jan-16,19880815-12747677,-513.1,Heron House Care Home,Care Establishment,2 - Commissioning - Older people Pool,Older People Mental Health Hunts,Nursing Independent Sector
Cambridgeshire County Council,29-Jan-16,19880820-12747682,-513.1,Heron House Care Home,Care Establishment,2 - Commissioning - Older people Pool,Older People Mental Health Hunts,Nursing Independent Sector
Cambridgeshire County Council,29-Jan-16,19880821-12747683,-513.1,Heron House Care Home,Care Establishment,2 - Commissioning - Older people Pool,Older People Mental Health Hunts,Nursing Independent Sector
Cambridgeshire County Council,29-Jan-16,19880823-12747685,-513.1,Heron House Care Home,Care Establishment,2 - Commissioning - Older people Pool,Older People Mental Health Hunts,Nursing Independent Sector
Cambridgeshire County Council,29-Jan-16,19880826-12747688,-513.1,Heron House Care Home,Care Establishment,2 - Commissioning - Older people Pool,Older People Mental Health Hunts,Nursing Independent Sector
Cambridgeshire County Council,29-Jan-16,19880830-12747691,-513.1,Heron House Care Home,Care Establishment,2 - Commissioning - Older people Pool,Older People Mental Health Hunts,Nursing Independent Sector
Cambridgeshire County Council,29-Jan-16,19880833-12747694,-513.1,Heron House Care Home,Care Establishment,2 - Commissioning - Older people Pool,Older People Mental Health Hunts,Nursing Independent Sector
Cambridgeshire County Council,29-Jan-16,19880839-12747700,-513.1,Heron House Care Home,Care Establishment,2 - Commissioning - Older people Pool,Older People Mental Health Hunts,Nursing Independent Sector
Cambridgeshire County Council,29-Jan-16,19880840-12747701,-513.1,Heron House Care Home,Care Establishment,2 - Commissioning - Older people Pool,Older People Mental Health Hunts,Nursing Independent Sector
Cambridgeshire County Council,29-Jan-16,19880841-12747702,-513.1,Heron House Care Home,Care Establishment,2 - Commissioning - Older people Pool,Older People Mental Health Hunts,Nursing Independent Sector
Cambridgeshire County Council,29-Jan-16,19880842-12747703,-513.1,Heron House Care Home,Care Establishment,2 - Commissioning - Older people Pool,Older People Mental Health Hunts,Nursing Independent Sector
Cambridgeshire County Council,29-Jan-16,19880844-12747704,-513.1,Heron House Care Home,Care Establishment,2 - Commissioning - Older people Pool,Older People Mental Health Hunts,Nursing Independent Sector
Cambridgeshire County Council,29-Jan-16,19880846-12747706,-513.1,Heron House Care Home,Care Establishment,2 - Commissioning - Older people Pool,Older People Mental Health Hunts,Nursing Independent Sector
Cambridgeshire County Council,29-Jan-16,19908132-12747642,-513.1,Heron House Care Home,Care Establishment,2 - Commissioning - Older people Pool,Older People Mental Health Hunts,Nursing Independent Sector
Cambridgeshire County Council,29-Jan-16,19908133-12747643,-513.1,Heron House Care Home,Care Establishment,2 - Commissioning - Older people Pool,Older People Mental Health Hunts,Nursing Independent Sector
Cambridgeshire County Council,29-Jan-16,19908134-12747644,-513.1,Heron House Care Home,Care Establishment,2 - Commissioning - Older people Pool,Older People Mental Health Hunts,Nursing Independent Sector
Cambridgeshire County Council,29-Jan-16,19908138-12747648,-513.1,Heron House Care Home,Care Establishment,2 - Commissioning - Older people Pool,Older People Mental Health Hunts,Nursing Independent Sector
Cambridgeshire County Council,29-Jan-16,19908140-12747650,-513.1,Heron House Care Home,Care Establishment,2 - Commissioning - Older people Pool,Older People Mental Health Hunts,Nursing Independent Sector
Cambridgeshire County Council,29-Jan-16,19908141-12747651,-513.1,Heron House Care Home,Care Establishment,2 - Commissioning - Older people Pool,Older People Mental Health Hunts,Nursing Independent Sector
Cambridgeshire County Council,29-Jan-16,19908142-12747652,-513.1,Heron House Care Home,Care Establishment,2 - Commissioning - Older people Pool,Older People Mental Health Hunts,Nursing Independent Sector
Cambridgeshire County Council,29-Jan-16,19908148-12747658,-513.1,Heron House Care Home,Care Establishment,2 - Commissioning - Older people Pool,Older People Mental Health Hunts,Nursing Independent Sector
Cambridgeshire County Council,29-Jan-16,19908149-12747659,-513.1,Heron House Care Home,Care Establishment,2 - Commissioning - Older people Pool,Older People Mental Health Hunts,Nursing Independent Sector
Cambridgeshire County Council,29-Jan-16,19908153-12747663,-513.1,Heron House Care Home,Care Establishment,2 - Commissioning - Older people Pool,Older People Mental Health Hunts,Nursing Independent Sector
Cambridgeshire County Council,29-Jan-16,19911027-12747757,-513.1,Heron House Care Home,Care Establishment,2 - Commissioning - Older people Pool,Older People Mental Health Hunts,Nursing Independent Sector
Cambridgeshire County Council,29-Jan-16,19911028-12747758,-513.1,Heron House Care Home,Care Establishment,2 - Commissioning - Older people Pool,Older People Mental Health Hunts,Nursing Independent Sector
Cambridgeshire County Council,29-Jan-16,19911029-12747759,-513.1,Heron House Care Home,Care Establishment,2 - Commissioning - Older people Pool,Older People Mental Health Hunts,Nursing Independent Sector
Cambridgeshire County Council,29-Jan-16,19911030-12747760,-513.1,Heron House Care Home,Care Establishment,2 - Commissioning - Older people Pool,Older People Mental Health Hunts,Nursing Independent Sector
Cambridgeshire County Council,29-Jan-16,19911031-12747761,-513.1,Heron House Care Home,Care Establishment,2 - Commissioning - Older people Pool,Older People Mental Health Hunts,Nursing Independent Sector
Cambridgeshire County Council,29-Jan-16,19911034-12747764,-513.1,Heron House Care Home,Care Establishment,2 - Commissioning - Older people Pool,Older People Mental Health Hunts,Nursing Independent Sector
Cambridgeshire County Council,29-Jan-16,19911035-12747765,-513.1,Heron House Care Home,Care Establishment,2 - Commissioning - Older people Pool,Older People Mental Health Hunts,Nursing Independent Sector
Cambridgeshire County Council,29-Jan-16,19911036-12747766,-513.1,Heron House Care Home,Care Establishment,2 - Commissioning - Older people Pool,Older People Mental Health Hunts,Nursing Independent Sector
Cambridgeshire County Council,29-Jan-16,19911037-12747767,-513.1,Heron House Care Home,Care Establishment,2 - Commissioning - Older people Pool,Older People Mental Health Hunts,Nursing Independent Sector
Cambridgeshire County Council,08-Jan-16,19734652-12636010,-513.05,Ringshill Care Home,Care Establishment,2 - Commissioning - Older people Pool,Older People Mental Health Hunts,Nursing Independent Sector
Cambridgeshire County Council,08-Jan-16,19734653-12636011,-513.05,Ringshill Care Home,Care Establishment,2 - Commissioning - Older people Pool,Older People Mental Health Hunts,Nursing Independent Sector
Cambridgeshire County Council,08-Jan-16,19734654-12636012,-513.05,Ringshill Care Home,Care Establishment,2 - Commissioning - Older people Pool,Older People Mental Health Hunts,Nursing Independent Sector
Cambridgeshire County Council,08-Jan-16,19734656-12636014,-513.05,Ringshill Care Home,Care Establishment,2 - Commissioning - Older people Pool,Older People Mental Health Hunts,Nursing Independent Sector
Cambridgeshire County Council,08-Jan-16,19734658-12636016,-513.05,Ringshill Care Home,Care Establishment,2 - Commissioning - Older people Pool,Older People Mental Health Hunts,Nursing Independent Sector
Cambridgeshire County Council,08-Jan-16,19752750-12635983,-513.05,Ringshill Care Home,Care Establishment,2 - Commissioning - Older people Pool,Older People Mental Health Hunts,Nursing Independent Sector
Cambridgeshire County Council,08-Jan-16,19752753-12635986,-513.05,Ringshill Care Home,Care Establishment,2 - Commissioning - Older people Pool,Older People Mental Health Hunts,Nursing Independent Sector
Cambridgeshire County Council,08-Jan-16,19752754-12635987,-513.05,Ringshill Care Home,Care Establishment,2 - Commissioning - Older people Pool,Older People Mental Health Hunts,Nursing Independent Sector
Cambridgeshire County Council,08-Jan-16,19752756-12635989,-513.05,Ringshill Care Home,Care Establishment,2 - Commissioning - Older people Pool,Older People Mental Health Hunts,Nursing Independent Sector
Cambridgeshire County Council,08-Jan-16,19752759-12635992,-513.05,Ringshill Care Home,Care Establishment,2 - Commissioning - Older people Pool,Older People Mental Health Hunts,Nursing Independent Sector
Cambridgeshire County Council,08-Jan-16,19781743-12636095,-513.05,Ringshill Care Home,Care Establishment,2 - Commissioning - Older people Pool,Older People Mental Health Hunts,Nursing Independent Sector
Cambridgeshire County Council,08-Jan-16,19781744-12636096,-513.05,Ringshill Care Home,Care Establishment,2 - Commissioning - Older people Pool,Older People Mental Health Hunts,Nursing Independent Sector
Cambridgeshire County Council,08-Jan-16,19781746-12636098,-513.05,Ringshill Care Home,Care Establishment,2 - Commissioning - Older people Pool,Older People Mental Health Hunts,Nursing Independent Sector
Cambridgeshire County Council,08-Jan-16,19781748-12636100,-513.05,Ringshill Care Home,Care Establishment,2 - Commissioning - Older people Pool,Older People Mental Health Hunts,Nursing Independent Sector
Cambridgeshire County Council,08-Jan-16,19781750-12636102,-513.05,Ringshill Care Home,Care Establishment,2 - Commissioning - Older people Pool,Older People Mental Health Hunts,Nursing Independent Sector
Cambridgeshire County Council,21-Jan-16,19827268-12721478,-513.05,Ringshill Care Home,Care Establishment,2 - Commissioning - Older people Pool,Older People Mental Health Hunts,Nursing Independent Sector
Cambridgeshire County Council,21-Jan-16,19827269-12721479,-513.05,Ringshill Care Home,Care Establishment,2 - Commissioning - Older people Pool,Older People Mental Health Hunts,Nursing Independent Sector
Cambridgeshire County Council,21-Jan-16,19827271-12721481,-513.05,Ringshill Care Home,Care Establishment,2 - Commissioning - Older people Pool,Older People Mental Health Hunts,Nursing Independent Sector
Cambridgeshire County Council,21-Jan-16,19827273-12721483,-513.05,Ringshill Care Home,Care Establishment,2 - Commissioning - Older people Pool,Older People Mental Health Hunts,Nursing Independent Sector
Cambridgeshire County Council,21-Jan-16,19827274-12721484,-513.05,Ringshill Care Home,Care Establishment,2 - Commissioning - Older people Pool,Older People Mental Health Hunts,Nursing Independent Sector
Cambridgeshire County Council,21-Jan-16,19885902-12721429,-513.05,Ringshill Care Home,Care Establishment,2 - Commissioning - Older people Pool,Older People Mental Health Hunts,Nursing Independent Sector
Cambridgeshire County Council,21-Jan-16,19885903-12721430,-513.05,Ringshill Care Home,Care Establishment,2 - Commissioning - Older people Pool,Older People Mental Health Hunts,Nursing Independent Sector
Cambridgeshire County Council,21-Jan-16,19885906-12721433,-513.05,Ringshill Care Home,Care Establishment,2 - Commissioning - Older people Pool,Older People Mental Health Hunts,Nursing Independent Sector
Cambridgeshire County Council,21-Jan-16,19885908-12721435,-513.05,Ringshill Care Home,Care Establishment,2 - Commissioning - Older people Pool,Older People Mental Health Hunts,Nursing Independent Sector
Cambridgeshire County Council,21-Jan-16,19885909-12721436,-513.05,Ringshill Care Home,Care Establishment,2 - Commissioning - Older people Pool,Older People Mental Health Hunts,Nursing Independent Sector
Cambridgeshire County Council,29-Jan-16,19909054-12750002,-513.05,Ringshill Care Home,Care Establishment,2 - Commissioning - Older people Pool,Older People Mental Health Hunts,Nursing Independent Sector
Cambridgeshire County Council,29-Jan-16,19909055-12750003,-513.05,Ringshill Care Home,Care Establishment,2 - Commissioning - Older people Pool,Older People Mental Health Hunts,Nursing Independent Sector
Cambridgeshire County Council,29-Jan-16,19909057-12750005,-513.05,Ringshill Care Home,Care Establishment,2 - Commissioning - Older people Pool,Older People Mental Health Hunts,Nursing Independent Sector
Cambridgeshire County Council,29-Jan-16,19909059-12750007,-513.05,Ringshill Care Home,Care Establishment,2 - Commissioning - Older people Pool,Older People Mental Health Hunts,Nursing Independent Sector
Cambridgeshire County Council,29-Jan-16,19909061-12750009,-513.05,Ringshill Care Home,Care Establishment,2 - Commissioning - Older people Pool,Older People Mental Health Hunts,Nursing Independent Sector
Cambridgeshire County Council,14-Jan-16,19835278-12667747,-504,Chamarel Ld,Care Establishment,2 - Operations - Learning Disability,LDP South Cambs Team,Residential Accommodation - Adults - Independent Sector
Cambridgeshire County Council,08-Jan-16,19753665-12630660,-502.95,Mihomecare Ltd (Enara Hunts),Care Establishment,3 - Operations - Countywide Services,Countywide PD Service,Day and Domicillary Care Independent Sector
Cambridgeshire County Council,08-Jan-16,19753670-12630665,-502.95,Mihomecare Ltd (Enara Hunts),Care Establishment,3 - Operations - Countywide Services,Countywide PD Service,Day and Domicillary Care Independent Sector
Cambridgeshire County Council,08-Jan-16,19753673-12630668,-502.95,Mihomecare Ltd (Enara Hunts),Care Establishment,3 - Operations - Countywide Services,Countywide PD Service,Day and Domicillary Care Independent Sector
Cambridgeshire County Council,08-Jan-16,19753674-12630669,-502.95,Mihomecare Ltd (Enara Hunts),Care Establishment,3 - Operations - Countywide Services,Countywide PD Service,Day and Domicillary Care Independent Sector
Cambridgeshire County Council,08-Jan-16,19753675-12630670,-502.95,Mihomecare Ltd (Enara Hunts),Care Establishment,3 - Operations - Countywide Services,Countywide PD Service,Day and Domicillary Care Independent Sector
Cambridgeshire County Council,08-Jan-16,19753678-12630673,-502.95,Mihomecare Ltd (Enara Hunts),Care Establishment,3 - Operations - Countywide Services,Countywide PD Service,Day and Domicillary Care Independent Sector
Cambridgeshire County Council,08-Jan-16,19753679-12630674,-502.95,Mihomecare Ltd (Enara Hunts),Care Establishment,3 - Operations - Countywide Services,Countywide PD Service,Day and Domicillary Care Independent Sector
Cambridgeshire County Council,08-Jan-16,19753681-12630676,-502.95,Mihomecare Ltd (Enara Hunts),Care Establishment,3 - Operations - Countywide Services,Countywide PD Service,Day and Domicillary Care Independent Sector
Cambridgeshire County Council,08-Jan-16,19753682-12630677,-502.95,Mihomecare Ltd (Enara Hunts),Care Establishment,3 - Operations - Countywide Services,Countywide PD Service,Day and Domicillary Care Independent Sector
Cambridgeshire County Council,08-Jan-16,19753683-12630678,-502.95,Mihomecare Ltd (Enara Hunts),Care Establishment,3 - Operations - Countywide Services,Countywide PD Service,Day and Domicillary Care Independent Sector
Cambridgeshire County Council,08-Jan-16,19753687-12630682,-502.95,Mihomecare Ltd (Enara Hunts),Care Establishment,3 - Operations - Countywide Services,Countywide PD Service,Day and Domicillary Care Independent Sector
Cambridgeshire County Council,08-Jan-16,19753691-12630686,-502.95,Mihomecare Ltd (Enara Hunts),Care Establishment,3 - Operations - Countywide Services,Countywide PD Service,Day and Domicillary Care Independent Sector
Cambridgeshire County Council,08-Jan-16,19753692-12630687,-502.95,Mihomecare Ltd (Enara Hunts),Care Establishment,3 - Operations - Countywide Services,Countywide PD Service,Day and Domicillary Care Independent Sector
Cambridgeshire County Council,08-Jan-16,19753693-12630688,-502.95,Mihomecare Ltd (Enara Hunts),Care Establishment,3 - Operations - Countywide Services,Countywide PD Service,Day and Domicillary Care Independent Sector
Cambridgeshire County Council,08-Jan-16,19753694-12630689,-502.95,Mihomecare Ltd (Enara Hunts),Care Establishment,3 - Operations - Countywide Services,Countywide PD Service,Day and Domicillary Care Independent Sector
Cambridgeshire County Council,08-Jan-16,19753697-12630692,-502.95,Mihomecare Ltd (Enara Hunts),Care Establishment,3 - Operations - Countywide Services,Countywide PD Service,Day and Domicillary Care Independent Sector
Cambridgeshire County Council,08-Jan-16,19753698-12630693,-502.95,Mihomecare Ltd (Enara Hunts),Care Establishment,3 - Operations - Countywide Services,Countywide PD Service,Day and Domicillary Care Independent Sector
Cambridgeshire County Council,08-Jan-16,19753709-12630704,-502.95,Mihomecare Ltd (Enara Hunts),Care Establishment,3 - Operations - Countywide Services,Countywide PD Service,Day and Domicillary Care Independent Sector
Cambridgeshire County Council,08-Jan-16,19753710-12630705,-502.95,Mihomecare Ltd (Enara Hunts),Care Establishment,3 - Operations - Countywide Services,Countywide PD Service,Day and Domicillary Care Independent Sector
Cambridgeshire County Council,08-Jan-16,19753714-12630709,-502.95,Mihomecare Ltd (Enara Hunts),Care Establishment,3 - Operations - Countywide Services,Countywide PD Service,Day and Domicillary Care Independent Sector
Cambridgeshire County Council,08-Jan-16,19753720-12630715,-502.95,Mihomecare Ltd (Enara Hunts),Care Establishment,3 - Operations - Countywide Services,Countywide PD Service,Day and Domicillary Care Independent Sector
Cambridgeshire County Council,08-Jan-16,19753723-12630718,-502.95,Mihomecare Ltd (Enara Hunts),Care Establishment,3 - Operations - Countywide Services,Countywide PD Service,Day and Domicillary Care Independent Sector
Cambridgeshire County Council,08-Jan-16,19753728-12630723,-502.95,Mihomecare Ltd (Enara Hunts),Care Establishment,3 - Operations - Countywide Services,Countywide PD Service,Day and Domicillary Care Independent Sector
Cambridgeshire County Council,08-Jan-16,19753731-12630726,-502.95,Mihomecare Ltd (Enara Hunts),Care Establishment,3 - Operations - Countywide Services,Countywide PD Service,Day and Domicillary Care Independent Sector
Cambridgeshire County Council,08-Jan-16,19755393-12630630,-502.95,Mihomecare Ltd (Enara Hunts),Care Establishment,3 - Operations - Countywide Services,Countywide PD Service,Day and Domicillary Care Independent Sector
Cambridgeshire County Council,08-Jan-16,19755394-12630631,-502.95,Mihomecare Ltd (Enara Hunts),Care Establishment,3 - Operations - Countywide Services,Countywide PD Service,Day and Domicillary Care Independent Sector
Cambridgeshire County Council,08-Jan-16,19755395-12630632,-502.95,Mihomecare Ltd (Enara Hunts),Care Establishment,3 - Operations - Countywide Services,Countywide PD Service,Day and Domicillary Care Independent Sector
Cambridgeshire County Council,08-Jan-16,19755401-12630607,-502.95,Mihomecare Ltd (Enara Hunts),Care Establishment,3 - Operations - Countywide Services,Countywide PD Service,Day and Domicillary Care Independent Sector
Cambridgeshire County Council,08-Jan-16,19755405-12630611,-502.95,Mihomecare Ltd (Enara Hunts),Care Establishment,3 - Operations - Countywide Services,Countywide PD Service,Day and Domicillary Care Independent Sector
Cambridgeshire County Council,08-Jan-16,19755408-12630614,-502.95,Mihomecare Ltd (Enara Hunts),Care Establishment,3 - Operations - Countywide Services,Countywide PD Service,Day and Domicillary Care Independent Sector
Cambridgeshire County Council,08-Jan-16,19755411-12630617,-502.95,Mihomecare Ltd (Enara Hunts),Care Establishment,3 - Operations - Countywide Services,Countywide PD Service,Day and Domicillary Care Independent Sector
Cambridgeshire County Council,08-Jan-16,19753704-12630699,-502.38,Mihomecare Ltd (Enara Hunts),Care Establishment,3 - Operations - Countywide Services,Countywide PD Service,Day and Domicillary Care Independent Sector
Cambridgeshire County Council,20-Jan-16,19509971-12710406,500,Tim Redmond,Trade Supplier,LRNG,Cambs Music  County Ensembles,Pay - Casual Staff - Course Instructors
Cambridgeshire County Council,08-Jan-16,19775665-12621943,500,The Chestnuts Residential Home,Care Establishment,2 - Commissioning - Older people Pool,Older People - Fenland,Residential Independent Sector
Cambridgeshire County Council,08-Jan-16,19775666-12621944,500,The Chestnuts Residential Home,Care Establishment,2 - Commissioning - Older people Pool,Older People - Fenland,Residential Independent Sector
Cambridgeshire County Council,08-Jan-16,19775667-12621945,500,The Chestnuts Residential Home,Care Establishment,2 - Commissioning - Older people Pool,Older People - Fenland,Residential Independent Sector
Cambridgeshire County Council,08-Jan-16,19775668-12621946,500,The Chestnuts Residential Home,Care Establishment,2 - Commissioning - Older people Pool,Older People - Fenland,Residential Independent Sector
Cambridgeshire County Council,08-Jan-16,19777521-12632497,500,Redacted Personal Data,Parent/Guardian,3 - Operations - Countywide Services,Countywide PD Service,Direct Payments - Social Services
Cambridgeshire County Council,08-Jan-16,19777522-12632498,500,Redacted Personal Data,Parent/Guardian,3 - Operations - Countywide Services,Countywide PD Service,Direct Payments - Social Services
Cambridgeshire County Council,08-Jan-16,19777523-12632499,500,Redacted Personal Data,Parent/Guardian,3 - Operations - Countywide Services,Countywide PD Service,Direct Payments - Social Services
Cambridgeshire County Council,08-Jan-16,19777524-12632500,500,Redacted Personal Data,Parent/Guardian,3 - Operations - Countywide Services,Countywide PD Service,Direct Payments - Social Services
Cambridgeshire County Council,08-Jan-16,19784336-12636804,500,Redacted Personal Data,Individual,3 - Commissioning - Disabilities & Carers,Interim Carers Review Team,Direct Payments - Social Services
Cambridgeshire County Council,08-Jan-16,19785500-12621559,500,Heron House Care Home,Care Establishment,2 - Commissioning - Older people Pool,Older People - Fenland,Nursing Independent Sector
Cambridgeshire County Council,08-Jan-16,19788906-12622740,500,Bethany Francis House#1,Care Establishment,2 - Commissioning - Older people Pool,Hunts O P  Team,Residential Independent Sector
Cambridgeshire County Council,08-Jan-16,19788907-12622741,500,Bethany Francis House#1,Care Establishment,2 - Commissioning - Older people Pool,Hunts O P  Team,Residential Independent Sector
Cambridgeshire County Council,08-Jan-16,19788908-12622742,500,Bethany Francis House#1,Care Establishment,2 - Commissioning - Older people Pool,Hunts O P  Team,Residential Independent Sector
